Workbook

Sheet データリスト
A2: 活動年度 | F2: 2021
A4: 活動分会名 ＆ 組合員人数 | F4: 福島 | H4: ＆ | I4: 37
A6: 2021年9月の大会回数 | F6: 58 | H6: =F2-2020 -> 1 | I6: =F6+H6 -> 59
A8: =F2+1&"年度新役員選挙" -> 2022年度新役員選挙 | F8: 告示日 | G8: 締切日 | H8: 公示日
F9: 2021-08-06 | G9: 2021-08-16 | H9: 2021-08-19 | I9: =TEXT(F9,"ｙｙｙｙ年ｍ月ｄ日") -> 2021年8月6日 | J9: =TEXT(G9,"ｙｙｙｙ年ｍ月ｄ日") -> 2021年8月16日 | K9: =TEXT(H9,"ｙｙｙｙ年ｍ月ｄ日") -> 2021年8月19日
A11: 分会役員名簿 ＊10名未満の分会については『委員長・書記長・会計監査』のみ入力 | F11: 分会執行委員長 | G11: 分会執行副委員長 | H11: 分会書記長 | I11: 分会執行委員 | J11: 分会執行委員 | K11: 分会会計監査員 | L11: 分会青年部長 | M11: 共済事務担当者 | N11: 予備 | O11: 予備
B12: =F2+1&"年度新役員" -> 2022年度新役員 | F12: あ | G12: い | H12: う | I12: え | J12: お | K12: か | L12: き | M12: く
B13: =F2&"年度役員" -> 2021年度役員 | E13: 全員 | F13: A | G13: B | H13: C | I13: D | J13: E | K13: F | L13: G | M13: H
F14: =LEFT(F12,2) -> あ | G14: い | H14: う | I14: え | J14: お | K14: か | L14: き | M14: く
D15: 執行委員 | E15: 全員 | F15: =LEFT(F13,2) -> A | G15: =LEFT(G13,2) -> B | H15: C | I15: D | J15: E | K15: F | L15: =LEFT(L13,2) -> G | M15: H
A17: =F2&"年度の祝日・休日入力" -> 2021年度の祝日・休日入力 | F17: 2021-09-21 | G17: 2021-09-23 | H17: 2021-10-11 | I17: 2021-11-03 | J17: 2021-11-23 | K17: 2022-01-01 | L17: 2022-01-10 | M17: 2022-02-11 | N17: 2022-02-23 | O17: 2022-03-21 | P17: 2022-04-29 | Q17: 2022-05-03 | R17: 2022-05-04 | S17: 2022-05-05 | T17: 2022-07-18 | U17: 2022-08-11
A19: =F2+1&"年度の大会日時＆場所" -> 2022年度の大会日時＆場所 | F19: 2022-09-06T18:30:00 | H19: ＆ | I19: 別館会議室２F
A21: 大会の種別（定期・臨時） ＊本部大会議案書参照 | F21: 定期
A23: 議事進行メモ作成 | F23: 司会者 | G23: 資格審査 | H23: 大会成立宣言 | I23: 大会議長 | J23: 大会書記 | K23: 来賓（役職まで入力）その他は「様」 | N23: 分会活動経過報告 | O23: 会計報告 | P23: 会計監査報告 | Q23: 活動方針 | R23: 収支剰余金処理 | S23: 予算
F24: 花見 | G24: 冨塚 | H24: 冨塚 | I24: 佐藤 | J24: 元内 | K24: 神 本部常任執行役員 | L24: 樋口 本部常任執行役員 | M24: 猪狩 福島支部委員長 | N24: 篤志 | O24: 篤志 | P24: 柏原 | Q24: 篤志 | R24: 篤志 | S24: 篤志
A26: =F2&"年度分会交付金 ＆ "&F2-1&"年度繰越額" -> 2021年度分会交付金 ＆ 2020年度繰越額 | F26: =F33+G33+H33+I33 -> ¥386,600 | H26: ＆ | I26: ¥13,618
A28: 2021年度受取利息 | F28: ¥1
A30: =F2+1&"年度分会交付金予算金額 & "&"2021年度繰越金額" -> 2022年度分会交付金予算金額 & 2021年度繰越金額 | H30: ＆ | I30: =分会大会議案書!AD50 -> ¥93,013
F32: 総務費 | G32: 活動調査費 | H32: 組織活動費 | I32: 大会費 | J32: 予備費 | K32: 割振り可能金額
A33: =F2&"年度予算" -> 2021年度予算 | F33: ¥37,400 | G33: ¥135,000 | H33: ¥198,100 | I33: ¥16,100 | J33: =I26 -> ¥13,618 | K33: =F26+I26-F33-G33-H33-I33-J33 -> ¥0 | Q33: =IF(K36=1,L36,IF(K36=2,Q36,IF(K36=3,R36,IF(K36=4,S36,IF(K36=5,T36,""))))) -> 
A34: =F2+1&"年度予算" -> 2022年度予算 | J34: =I30 -> ¥93,013 | K34: =F30+I30-F34-G34-I34-H34-J34 -> ¥0
A36: =F2&"年度会計監査日" -> 2021年度会計監査日 | K36: =COUNT(F36:J36) -> 0 | L36: =TEXT(F36,"ggge年m月d日") -> 明治33年1月0日 | M36: =TEXT(G36,"ggge年m月d日") -> 明治33年1月0日 | N36: =TEXT(H36,"ggge年m月d日") -> 明治33年1月0日 | O36: =TEXT(I36,"ggge年m月d日") -> 明治33年1月0日 | P36: =TEXT(J36,"ggge年m月d日") -> 明治33年1月0日 | Q36: =IF(M36="",L36,L36&"、"&M36) -> 明治33年1月0日、明治33年1月0日 | R36: =IF(N36="",Q36,Q36&"、"&N36) -> 明治33年1月0日、明治33年1月0日、明治33年1月0日 | S36: =IF(O36="",R36,R36&"、"&O36) -> 明治33年1月0日、明治33年1月0日、明治33年1月0日、明治33年1月0日 | T36: =IF(P36="",S36,S36&"、"&P36) -> 明治33年1月0日、明治33年1月0日、明治33年1月0日、明治33年1月0日、明治33年1月0日
A38: 第一号議案活動の基調 ＊本部大会資料を基に自分で作ってみよう！！ | F38: がんばるベア！！
A40: 第一号議案 具体的活動について ＊分会の活動を自分で作ってみよう！！ | F40: ～生きいきとした存在感ある組織づくりをめざして～ | H40: ～頼りがいのある生活支援機能の充実をめざして～ | J40: ～仲間との連携活動の強化をめざして～ | L40: ～豊かでゆとりあるライフステージの実現をめざして～ | N40: ～安全で健康な明るい職場の確立をめざして～ | P40: ～創造的で活力ある職場風土をめざして～
F41: ・生きいきとした存在感ある組織づくりを目指して ・頼りがいのある生活支援機能の充実を目指して ・仲間との連携活動の強化を目指して豊かでゆとりあるライフステージの実現を目指して | H41: 何としても頑張る | J41: たまに息抜き | L41: そして頑張る | N41: さらに頑張る | P41: 神になる
A45: 活動内容 | F45: 本部・支部活動 | P45: 分会活動関係 | V45: 会社対応関係 | AA45: 教育活動関係 | AE45: 対外活動 | AG45: 保険・生協 | AK45: その他
F46: 本部大会 | G46: 代表代議員会 | H46: 分会代表者会議 | I46: 分会三役会議 | J46: 職場オルグ | K46: 分会委員長連絡会議 | L46: 総合生活改善交渉 | M46: 支部青年委員会総会 | N46: 支部・各種委員会・協議会 | O46: 会社提案・協議申入れ | P46: 分会大会 | Q46: 分会執行委員会 | R46: 分会集会 | S46: 分会青年部総会 | T46: 分会青年部幹事会 | U46: 各種役員選挙 | V46: 労使協議会 | W46: 安全衛生委員会 | X46: 労使パトロール | Y46: 三六協定 | Z46: 安全推進月間 | AA46: ユニオンスクール | AB46: リーダーカレッジ | AC46: ライフプランセミナー | AD46: 外部団体主催の教育 | AE46: 地協・県総連 | AF46: 政治関連活動 | AG46: 電力生協 | AH46: 電力年金 | AI46: 国民共済 | AJ46: その他共済 | AK46: その他1 | AL46: その他2 | AM46: その他3 | AN46: その他4
F47: 開催案内・議案周知 | G47: 開催案内・議案周知 | H47: 出欠確認・報告 | I47: 出欠確認・報告 | J47: 日程調整 | K47: 出欠確認・報告 | L47: 開催周知 | M47: 計画・日程調整 | N47: 支社・支部労使協議会 | O47: 申入れ内容の周知 | P47: 会計監査 | Q47: 計画・周知 | R47: 計画・日程調整 | S47: 計画・日程調整 | T47: 計画・日程調整 | U47: 選挙管理委員会設置 | V47: 会社との日程調整 | W47: 会社との日程調整 | X47: 会社との日程調整 | Y47: 次年度三六協定説明 | Z47: 《準備月間(6月・11月)》 | AA47: フレッシュコース(新入社員) | AB47: 青年リーダー研修 | AC47: ライフステージコース | AD47: ユースリーダーセミナー | AE47: 参加人数集約・報告 | AF47: 政治研修会 | AG47: 募集周知 | AH47: 職場周知 | AI47: 対外窓口 | AJ47: 概要周知
F48: 分会執行委員会（事前確認） | G48: 分会執行委員会（事前確認） | H48: 会議出席 | I48: 会議出席 | J48: 開催周知(会社・職場) | K48: 会議出席 | L48: 職場オルグ準備 | M48: 開催周知 | N48: 支社・支部安全衛生委員会協議会 | O48: 分会集会の開催 | P48: 周知(職場・会社依頼) | Q48: 資料作成 | R48: 周知(職場・会社依頼) | S48: 周知(職場・会社依頼) | T48: 事前準備(資料作成) | U48: 告示 | V48: 分会執行委員会（日程の確認） | W48: 分会執行委員会 | X48: パトロール | Y48: 締結 | Z48: 取組事項の協議 | AA48: ヤングコース(3年目) | AB48: レクリーダー研修 | AC48: ライフサポートコース | AD48: ﾕﾆｵﾝﾘｰﾀﾞｰｽｸｰﾙ | AE48: ・メーデー | AF48: 後援会入会・紹介活動 | AG48: 資料・申込書配布 | AH48: 資料・申込書配布 | AI48: 所内窓口 | AJ48: 申請書類の確認
F49: 分会集会・意見集約 | G49: 分会集会・意見集約 | H49: 確認事項 職場周知 | I49: 確認事項 職場周知 | J49: 会場設営 | K49: 分会執行委員会(内容周知) | L49: オルグの開催 | M49: 事前準備(資料作成) | N49: WLB支社委員会 | O49: 意見集約 | P49: 事前準備(資料作成) | Q49: 買い出し(必要に応じて) | R49: 事前準備(資料作成) | S49: 事前準備(資料作成) | T49: 《幹事会の開催》 | U49: 立候補 | V49: 分会集会（意見収集） | W49: 職場意見収集 | X49: 結果の確認 | Y49: 締結事項報告 | Z49: 取組事項の周知 | AA49: パワーアップコース(7年目) | AB49: 分会役員研修 | AD49: 県総連要請 研修会 | AE49: ・中央・各地区決起集会 | AF49: ポスティング活動 | AG49: 東日本興業との日程調整 | AH49: 不足書類の手配 | AI49: 新規・更新案内 | AJ49: 各種申請
F50: 分会執行委員会（意見確認） | G50: 分会執行委員会（意見確認） | J50: オルグの開催 | K50: 職場集会（報告・内容周知） | L50: 意見集約 | M50: 議長・進行 | O50: 報告 | P50: 事前準備(会場手配・設営・撤収) | Q50: 執行委員会開催 | R50: 事前準備(会場設営) | S50: 事前準備(会場準備) | T50: 議長・司会進行 | U50: 公示 | V50: 分会執行委員会（議題の提案） | W50: 委員会の開催 | Y50: 職場周知 | Z50: 労使パトロールの日程調整 | AA50: ステップアップコース(10年目) | AB50: 分会委員長研修 | AE50: ・地協代表者会議・幹事会 | AF50: 事務所開き | AG50: 職場周知・申込書の配布 | AH50: 申込書回収 | AI50: 資料・申込書配布 | AJ50: 金額確認・引出し
F51: 大会出席 | G51: 大会出席 | J51: 会場片付け | L51: スト権批准投票 | M51: 確認事項周知 | P51: 事前準備(買い出し) | Q51: 議事録の作成 | R51: 事前準備(買い出し) | S51: 《総会の開催》 | T51: 意見集約 | U51: 投票 | V51: 分会集会（提起議題決定） | W51: 決定・確認事項周知 | Z51: 安全点検・衛生対話の日程調整 | AA51: フォローアップコース(15年目以降の対象者) | AE51: 県総連 青年女性委員会 | AF51: 出陣式 | AG51: 会場調整 | AH51: 申込書の記載内容の確認 | AI51: 日程調整 | AJ51: 金種分け・袋詰め
F52: 決定・確認事項 職場周知 | G52: 決定・確認事項 職場周知 | L52: スト権報告 | M52: 報告（支部・本部へ報告） | P52: 各種役員依頼 | Q52: 会計確認 | R52: 《分会集会開催》 | S52: 議長・司会進行 | T52: 職場周知 | V52: 議題会社提起 | Z52: 《本月間(7月・12月)》 | AE52: 集約・報告 | AF52: 電話作戦・ウグイス | AG52: 会場準備 | AH52: 書類の送付 | AI52: 職場周知 | AJ52: 保険金控除証明書
L53: 地区交渉推進会議 | P53: 会場設営 | R53: 議長・司会進行 | S53: 意見集約 | V53: 協議会の開催 | Z53: 本部委員長メッセージ代読 | AE53: 県総連 青年女性イベント | AF53: 点検定着活動 | AG53: 説明会司会 | AI53: 会場調整 | AJ53: 慶弔共済金請求
L54: 分会執行委員会(内容周知) | P54: 分会大会開催 | R54: 意見集約 | S54: 報告(分会へ) | V54: 分会集会にて協議事項の周知 | Z54: 「私たちの取組み」の掲示 | AE54: 集約・報告 | AF54: 期日前投票のお願い | AG54: 会場片付け | AI54: 会場準備
L55: 職場集会(内容周知) | P55: 司会進行 | Z55: ☆事業所取り組み事項 | AF55: 遊説打ち上げ | AG55: 申込書回収 | AI55: 説明会司会
P56: 活動経過報告 | Z56: 労使パトロール実施 | AF56: 投票確認・報告 | AG56: 申込書の記載内容の確認 | AI56: 会場片付け
P57: 会計報告 | Z57: 安全点検・衛生対話実施 | AG57: 申込書の送付 | AI57: 申込書回収
P58: 会計監査報告 | AG58: 対外窓口 | AI58: 書類の確認
P59: 議案の上程 | AG59: 所内窓口 | AI59: 書類の提出
AG60: 書類の管理・手配
AG61: 提出書類の確認
AG62: 書類の送付
A68: カレンダー | F68: =F2 -> 2021 | G68: 年度 | H68: 8 | I68: 月 | J68: =DATE(F68,H68,1) -> 2021-08-01 | K68: =WEEKDAY(J68) -> 1
A70: 出費・収入項目 | F70: 総務費 | G70: 活動調査費 | H70: 組織活動費 | I70: 大会費 | J70: 予備費 | K70: 分会交付金 | L70: 申請金額

Sheet 役員の割り振り
D2: 業務比率
D3: =IF(データリスト!F13="","",データリスト!F15) -> A | E3: =IF(データリスト!G13="","",データリスト!G15) -> B | F3: =IF(データリスト!H13="","",データリスト!H15) -> C | G3: =IF(データリスト!I13="","",データリスト!I15) -> D | H3: =IF(データリスト!J13="","",データリスト!J15) -> E | I3: =IF(データリスト!K13="","",データリスト!K15) -> F | J3: =IF(データリスト!L13="","",データリスト!L15) -> G | K3: =IF(データリスト!M13="","",データリスト!M15) -> H | L3: =IF(データリスト!N13="","",データリスト!N15) ->  | M3: =IF(データリスト!O13="","",データリスト!O15) -> 
D4: =T8 -> 0.0% | E4: =T9 -> 0.0% | F4: =T10 -> 0.0% | G4: =T11 -> 0.0% | H4: =T12 -> 0.0% | I4: =T13 -> 0.0% | J4: =T14 -> 0.0% | K4: =T15 -> 0.0% | L4: =T16 -> 0.0% | M4: =T17 -> 0.0%
B6: 活動内容 | I6: 担当者選択 | R6: =700-COUNTIF(C9:C708,"") -> 200
I8: メイン | J8: サブ１ | K8: サブ２ | L8: サブ３ | M8: サブ４ | N8: サブ５ | R8: =IF(データリスト!F15="",0,COUNTIF($I$9:$N$708,データリスト!F15)) -> 0 | S8: =データリスト!F15 -> A | T8: =R8/R6 -> 0.000%
B9: =データリスト!F$46 -> 本部大会 | C9: =IF(データリスト!$F47="","",データリスト!$F47) -> 開催案内・議案周知 | R9: =IF(データリスト!G15="",0,COUNTIF($I$9:$N$708,データリスト!G15)) -> 0 | S9: =データリスト!G15 -> B | T9: =R9/R6 -> 0.000% | U9: =IF(I9:N9="","",IF(J9:N9="",I9,IF(K9:N9="",I9&"・"&J9,IF(L9:N9="",I9&"・"&J9&"・"&K9,IF(M9:N9="",I9&"・"&J9&"・"&K9&"・"&L9,IF(N9="",I9&"・"&J9&"・"&K9&"・"&L9&"・"&M9,I9&"・"&J9&"・"&K9&"・"&L9&"・"&M9&"・"&N9)))))) -> 
B10: =データリスト!F$46 -> 本部大会 | C10: =IF(データリスト!$F48="","",データリスト!$F48) -> 分会執行委員会（事前確認） | R10: =IF(データリスト!H15="",0,COUNTIF($I$9:$N$708,データリスト!H15)) -> 0 | S10: =データリスト!H15 -> C | T10: =R10/R6 -> 0.000% | U10: =IF(I10:N10="","",IF(J10:N10="",I10,IF(K10:N10="",I10&"・"&J10,IF(L10:N10="",I10&"・"&J10&"・"&K10,IF(M10:N10="",I10&"・"&J10&"・"&K10&"・"&L10,IF(N10="",I10&"・"&J10&"・"&K10&"・"&L10&"・"&M10,I10&"・"&J10&"・"&K10&"・"&L10&"・"&M10&"・"&N10)))))) -> 
B11: =データリスト!F$46 -> 本部大会 | C11: =IF(データリスト!$F49="","",データリスト!$F49) -> 分会集会・意見集約 | R11: =IF(データリスト!I15="",0,COUNTIF($I$9:$N$708,データリスト!I15)) -> 0 | S11: =データリスト!I15 -> D | T11: =R11/R6 -> 0.000% | U11: =IF(I11:N11="","",IF(J11:N11="",I11,IF(K11:N11="",I11&"・"&J11,IF(L11:N11="",I11&"・"&J11&"・"&K11,IF(M11:N11="",I11&"・"&J11&"・"&K11&"・"&L11,IF(N11="",I11&"・"&J11&"・"&K11&"・"&L11&"・"&M11,I11&"・"&J11&"・"&K11&"・"&L11&"・"&M11&"・"&N11)))))) -> 
B12: =データリスト!F$46 -> 本部大会 | C12: =IF(データリスト!$F50="","",データリスト!$F50) -> 分会執行委員会（意見確認） | R12: =IF(データリスト!J15="",0,COUNTIF($I$9:$N$708,データリスト!J15)) -> 0 | S12: =データリスト!J15 -> E | T12: =R12/R6 -> 0.000% | U12: =IF(I12:N12="","",IF(J12:N12="",I12,IF(K12:N12="",I12&"・"&J12,IF(L12:N12="",I12&"・"&J12&"・"&K12,IF(M12:N12="",I12&"・"&J12&"・"&K12&"・"&L12,IF(N12="",I12&"・"&J12&"・"&K12&"・"&L12&"・"&M12,I12&"・"&J12&"・"&K12&"・"&L12&"・"&M12&"・"&N12)))))) -> 
B13: =データリスト!F$46 -> 本部大会 | C13: =IF(データリスト!$F51="","",データリスト!$F51) -> 大会出席 | R13: =IF(データリスト!K15="",0,COUNTIF($I$9:$N$708,データリスト!K15)) -> 0 | S13: =データリスト!K15 -> F | T13: =R13/R6 -> 0.000% | U13: =IF(I13:N13="","",IF(J13:N13="",I13,IF(K13:N13="",I13&"・"&J13,IF(L13:N13="",I13&"・"&J13&"・"&K13,IF(M13:N13="",I13&"・"&J13&"・"&K13&"・"&L13,IF(N13="",I13&"・"&J13&"・"&K13&"・"&L13&"・"&M13,I13&"・"&J13&"・"&K13&"・"&L13&"・"&M13&"・"&N13)))))) -> 
B14: =データリスト!F$46 -> 本部大会 | C14: =IF(データリスト!$F52="","",データリスト!$F52) -> 決定・確認事項 職場周知 | R14: =IF(データリスト!L15="",0,COUNTIF($I$9:$N$708,データリスト!L15)) -> 0 | S14: =データリスト!L15 -> G | T14: =R14/R6 -> 0.000% | U14: =IF(I14:N14="","",IF(J14:N14="",I14,IF(K14:N14="",I14&"・"&J14,IF(L14:N14="",I14&"・"&J14&"・"&K14,IF(M14:N14="",I14&"・"&J14&"・"&K14&"・"&L14,IF(N14="",I14&"・"&J14&"・"&K14&"・"&L14&"・"&M14,I14&"・"&J14&"・"&K14&"・"&L14&"・"&M14&"・"&N14)))))) -> 
B15: =データリスト!F$46 -> 本部大会 | C15: =IF(データリスト!$F53="","",データリスト!$F53) ->  | R15: =IF(データリスト!M15="",0,COUNTIF($I$9:$N$708,データリスト!M15)) -> 0 | S15: =データリスト!M15 -> H | T15: =R15/R6 -> 0.000% | U15: =IF(I15:N15="","",IF(J15:N15="",I15,IF(K15:N15="",I15&"・"&J15,IF(L15:N15="",I15&"・"&J15&"・"&K15,IF(M15:N15="",I15&"・"&J15&"・"&K15&"・"&L15,IF(N15="",I15&"・"&J15&"・"&K15&"・"&L15&"・"&M15,I15&"・"&J15&"・"&K15&"・"&L15&"・"&M15&"・"&N15)))))) -> 
B16: =データリスト!F$46 -> 本部大会 | C16: =IF(データリスト!$F54="","",データリスト!$F54) ->  | R16: =IF(データリスト!N15="",0,COUNTIF($I$9:$N$708,データリスト!N15)) -> 0 | S16: =データリスト!N15 ->  | T16: =R16/R6 -> 0.000% | U16: =IF(I16:N16="","",IF(J16:N16="",I16,IF(K16:N16="",I16&"・"&J16,IF(L16:N16="",I16&"・"&J16&"・"&K16,IF(M16:N16="",I16&"・"&J16&"・"&K16&"・"&L16,IF(N16="",I16&"・"&J16&"・"&K16&"・"&L16&"・"&M16,I16&"・"&J16&"・"&K16&"・"&L16&"・"&M16&"・"&N16)))))) -> 
B17: =データリスト!F$46 -> 本部大会 | C17: =IF(データリスト!$F55="","",データリスト!$F55) ->  | R17: =IF(データリスト!O15="",0,COUNTIF($I$9:$N$708,データリスト!O15)) -> 0 | S17: =データリスト!O15 ->  | T17: =R17/R6 -> 0.000% | U17: =IF(I17:N17="","",IF(J17:N17="",I17,IF(K17:N17="",I17&"・"&J17,IF(L17:N17="",I17&"・"&J17&"・"&K17,IF(M17:N17="",I17&"・"&J17&"・"&K17&"・"&L17,IF(N17="",I17&"・"&J17&"・"&K17&"・"&L17&"・"&M17,I17&"・"&J17&"・"&K17&"・"&L17&"・"&M17&"・"&N17)))))) -> 
B18: =データリスト!F$46 -> 本部大会 | C18: =IF(データリスト!$F56="","",データリスト!$F56) ->  | U18: =IF(I18:N18="","",IF(J18:N18="",I18,IF(K18:N18="",I18&"・"&J18,IF(L18:N18="",I18&"・"&J18&"・"&K18,IF(M18:N18="",I18&"・"&J18&"・"&K18&"・"&L18,IF(N18="",I18&"・"&J18&"・"&K18&"・"&L18&"・"&M18,I18&"・"&J18&"・"&K18&"・"&L18&"・"&M18&"・"&N18)))))) -> 
B19: =データリスト!F$46 -> 本部大会 | C19: =IF(データリスト!$F57="","",データリスト!$F57) ->  | U19: =IF(I19:N19="","",IF(J19:N19="",I19,IF(K19:N19="",I19&"・"&J19,IF(L19:N19="",I19&"・"&J19&"・"&K19,IF(M19:N19="",I19&"・"&J19&"・"&K19&"・"&L19,IF(N19="",I19&"・"&J19&"・"&K19&"・"&L19&"・"&M19,I19&"・"&J19&"・"&K19&"・"&L19&"・"&M19&"・"&N19)))))) -> 
B20: =データリスト!F$46 -> 本部大会 | C20: =IF(データリスト!$F58="","",データリスト!$F58) ->  | U20: =IF(I20:N20="","",IF(J20:N20="",I20,IF(K20:N20="",I20&"・"&J20,IF(L20:N20="",I20&"・"&J20&"・"&K20,IF(M20:N20="",I20&"・"&J20&"・"&K20&"・"&L20,IF(N20="",I20&"・"&J20&"・"&K20&"・"&L20&"・"&M20,I20&"・"&J20&"・"&K20&"・"&L20&"・"&M20&"・"&N20)))))) -> 
B21: =データリスト!F$46 -> 本部大会 | C21: =IF(データリスト!$F59="","",データリスト!$F59) ->  | U21: =IF(I21:N21="","",IF(J21:N21="",I21,IF(K21:N21="",I21&"・"&J21,IF(L21:N21="",I21&"・"&J21&"・"&K21,IF(M21:N21="",I21&"・"&J21&"・"&K21&"・"&L21,IF(N21="",I21&"・"&J21&"・"&K21&"・"&L21&"・"&M21,I21&"・"&J21&"・"&K21&"・"&L21&"・"&M21&"・"&N21)))))) -> 
B22: =データリスト!F$46 -> 本部大会 | C22: =IF(データリスト!$F60="","",データリスト!$F60) ->  | U22: =IF(I22:N22="","",IF(J22:N22="",I22,IF(K22:N22="",I22&"・"&J22,IF(L22:N22="",I22&"・"&J22&"・"&K22,IF(M22:N22="",I22&"・"&J22&"・"&K22&"・"&L22,IF(N22="",I22&"・"&J22&"・"&K22&"・"&L22&"・"&M22,I22&"・"&J22&"・"&K22&"・"&L22&"・"&M22&"・"&N22)))))) -> 
B23: =データリスト!F$46 -> 本部大会 | C23: =IF(データリスト!$F61="","",データリスト!$F61) ->  | U23: =IF(I23:N23="","",IF(J23:N23="",I23,IF(K23:N23="",I23&"・"&J23,IF(L23:N23="",I23&"・"&J23&"・"&K23,IF(M23:N23="",I23&"・"&J23&"・"&K23&"・"&L23,IF(N23="",I23&"・"&J23&"・"&K23&"・"&L23&"・"&M23,I23&"・"&J23&"・"&K23&"・"&L23&"・"&M23&"・"&N23)))))) -> 
B24: =データリスト!F$46 -> 本部大会 | C24: =IF(データリスト!$F62="","",データリスト!$F62) ->  | U24: =IF(I24:N24="","",IF(J24:N24="",I24,IF(K24:N24="",I24&"・"&J24,IF(L24:N24="",I24&"・"&J24&"・"&K24,IF(M24:N24="",I24&"・"&J24&"・"&K24&"・"&L24,IF(N24="",I24&"・"&J24&"・"&K24&"・"&L24&"・"&M24,I24&"・"&J24&"・"&K24&"・"&L24&"・"&M24&"・"&N24)))))) -> 
B25: =データリスト!F$46 -> 本部大会 | C25: =IF(データリスト!$F63="","",データリスト!$F63) ->  | U25: =IF(I25:N25="","",IF(J25:N25="",I25,IF(K25:N25="",I25&"・"&J25,IF(L25:N25="",I25&"・"&J25&"・"&K25,IF(M25:N25="",I25&"・"&J25&"・"&K25&"・"&L25,IF(N25="",I25&"・"&J25&"・"&K25&"・"&L25&"・"&M25,I25&"・"&J25&"・"&K25&"・"&L25&"・"&M25&"・"&N25)))))) -> 
B26: =データリスト!F$46 -> 本部大会 | C26: =IF(データリスト!$F64="","",データリスト!$F64) ->  | U26: =IF(I26:N26="","",IF(J26:N26="",I26,IF(K26:N26="",I26&"・"&J26,IF(L26:N26="",I26&"・"&J26&"・"&K26,IF(M26:N26="",I26&"・"&J26&"・"&K26&"・"&L26,IF(N26="",I26&"・"&J26&"・"&K26&"・"&L26&"・"&M26,I26&"・"&J26&"・"&K26&"・"&L26&"・"&M26&"・"&N26)))))) -> 
B27: =データリスト!F$46 -> 本部大会 | C27: =IF(データリスト!$F65="","",データリスト!$F65) ->  | U27: =IF(I27:N27="","",IF(J27:N27="",I27,IF(K27:N27="",I27&"・"&J27,IF(L27:N27="",I27&"・"&J27&"・"&K27,IF(M27:N27="",I27&"・"&J27&"・"&K27&"・"&L27,IF(N27="",I27&"・"&J27&"・"&K27&"・"&L27&"・"&M27,I27&"・"&J27&"・"&K27&"・"&L27&"・"&M27&"・"&N27)))))) -> 
B28: =データリスト!F$46 -> 本部大会 | C28: =IF(データリスト!$F66="","",データリスト!$F66) ->  | U28: =IF(I28:N28="","",IF(J28:N28="",I28,IF(K28:N28="",I28&"・"&J28,IF(L28:N28="",I28&"・"&J28&"・"&K28,IF(M28:N28="",I28&"・"&J28&"・"&K28&"・"&L28,IF(N28="",I28&"・"&J28&"・"&K28&"・"&L28&"・"&M28,I28&"・"&J28&"・"&K28&"・"&L28&"・"&M28&"・"&N28)))))) -> 
B29: =データリスト!G$46 -> 代表代議員会 | C29: =IF(データリスト!$G47="","",データリスト!$G47) -> 開催案内・議案周知 | U29: =IF(I29:N29="","",IF(J29:N29="",I29,IF(K29:N29="",I29&"・"&J29,IF(L29:N29="",I29&"・"&J29&"・"&K29,IF(M29:N29="",I29&"・"&J29&"・"&K29&"・"&L29,IF(N29="",I29&"・"&J29&"・"&K29&"・"&L29&"・"&M29,I29&"・"&J29&"・"&K29&"・"&L29&"・"&M29&"・"&N29)))))) -> 
B30: =データリスト!G$46 -> 代表代議員会 | C30: =IF(データリスト!$G48="","",データリスト!$G48) -> 分会執行委員会（事前確認） | U30: =IF(I30:N30="","",IF(J30:N30="",I30,IF(K30:N30="",I30&"・"&J30,IF(L30:N30="",I30&"・"&J30&"・"&K30,IF(M30:N30="",I30&"・"&J30&"・"&K30&"・"&L30,IF(N30="",I30&"・"&J30&"・"&K30&"・"&L30&"・"&M30,I30&"・"&J30&"・"&K30&"・"&L30&"・"&M30&"・"&N30)))))) -> 
B31: =データリスト!G$46 -> 代表代議員会 | C31: =IF(データリスト!$G49="","",データリスト!$G49) -> 分会集会・意見集約 | U31: =IF(I31:N31="","",IF(J31:N31="",I31,IF(K31:N31="",I31&"・"&J31,IF(L31:N31="",I31&"・"&J31&"・"&K31,IF(M31:N31="",I31&"・"&J31&"・"&K31&"・"&L31,IF(N31="",I31&"・"&J31&"・"&K31&"・"&L31&"・"&M31,I31&"・"&J31&"・"&K31&"・"&L31&"・"&M31&"・"&N31)))))) -> 
B32: =データリスト!G$46 -> 代表代議員会 | C32: =IF(データリスト!$G50="","",データリスト!$G50) -> 分会執行委員会（意見確認） | U32: =IF(I32:N32="","",IF(J32:N32="",I32,IF(K32:N32="",I32&"・"&J32,IF(L32:N32="",I32&"・"&J32&"・"&K32,IF(M32:N32="",I32&"・"&J32&"・"&K32&"・"&L32,IF(N32="",I32&"・"&J32&"・"&K32&"・"&L32&"・"&M32,I32&"・"&J32&"・"&K32&"・"&L32&"・"&M32&"・"&N32)))))) -> 
B33: =データリスト!G$46 -> 代表代議員会 | C33: =IF(データリスト!$G51="","",データリスト!$G51) -> 大会出席 | U33: =IF(I33:N33="","",IF(J33:N33="",I33,IF(K33:N33="",I33&"・"&J33,IF(L33:N33="",I33&"・"&J33&"・"&K33,IF(M33:N33="",I33&"・"&J33&"・"&K33&"・"&L33,IF(N33="",I33&"・"&J33&"・"&K33&"・"&L33&"・"&M33,I33&"・"&J33&"・"&K33&"・"&L33&"・"&M33&"・"&N33)))))) -> 
B34: =データリスト!G$46 -> 代表代議員会 | C34: =IF(データリスト!$G52="","",データリスト!$G52) -> 決定・確認事項 職場周知 | U34: =IF(I34:N34="","",IF(J34:N34="",I34,IF(K34:N34="",I34&"・"&J34,IF(L34:N34="",I34&"・"&J34&"・"&K34,IF(M34:N34="",I34&"・"&J34&"・"&K34&"・"&L34,IF(N34="",I34&"・"&J34&"・"&K34&"・"&L34&"・"&M34,I34&"・"&J34&"・"&K34&"・"&L34&"・"&M34&"・"&N34)))))) -> 
B35: =データリスト!G$46 -> 代表代議員会 | C35: =IF(データリスト!$G53="","",データリスト!$G53) ->  | U35: =IF(I35:N35="","",IF(J35:N35="",I35,IF(K35:N35="",I35&"・"&J35,IF(L35:N35="",I35&"・"&J35&"・"&K35,IF(M35:N35="",I35&"・"&J35&"・"&K35&"・"&L35,IF(N35="",I35&"・"&J35&"・"&K35&"・"&L35&"・"&M35,I35&"・"&J35&"・"&K35&"・"&L35&"・"&M35&"・"&N35)))))) -> 
B36: =データリスト!G$46 -> 代表代議員会 | C36: =IF(データリスト!$G54="","",データリスト!$G54) ->  | U36: =IF(I36:N36="","",IF(J36:N36="",I36,IF(K36:N36="",I36&"・"&J36,IF(L36:N36="",I36&"・"&J36&"・"&K36,IF(M36:N36="",I36&"・"&J36&"・"&K36&"・"&L36,IF(N36="",I36&"・"&J36&"・"&K36&"・"&L36&"・"&M36,I36&"・"&J36&"・"&K36&"・"&L36&"・"&M36&"・"&N36)))))) -> 
B37: =データリスト!G$46 -> 代表代議員会 | C37: =IF(データリスト!$G55="","",データリスト!$G55) ->  | U37: =IF(I37:N37="","",IF(J37:N37="",I37,IF(K37:N37="",I37&"・"&J37,IF(L37:N37="",I37&"・"&J37&"・"&K37,IF(M37:N37="",I37&"・"&J37&"・"&K37&"・"&L37,IF(N37="",I37&"・"&J37&"・"&K37&"・"&L37&"・"&M37,I37&"・"&J37&"・"&K37&"・"&L37&"・"&M37&"・"&N37)))))) -> 
B38: =データリスト!G$46 -> 代表代議員会 | C38: =IF(データリスト!$G56="","",データリスト!$G56) ->  | U38: =IF(I38:N38="","",IF(J38:N38="",I38,IF(K38:N38="",I38&"・"&J38,IF(L38:N38="",I38&"・"&J38&"・"&K38,IF(M38:N38="",I38&"・"&J38&"・"&K38&"・"&L38,IF(N38="",I38&"・"&J38&"・"&K38&"・"&L38&"・"&M38,I38&"・"&J38&"・"&K38&"・"&L38&"・"&M38&"・"&N38)))))) -> 
B39: =データリスト!G$46 -> 代表代議員会 | C39: =IF(データリスト!$G57="","",データリスト!$G57) ->  | U39: =IF(I39:N39="","",IF(J39:N39="",I39,IF(K39:N39="",I39&"・"&J39,IF(L39:N39="",I39&"・"&J39&"・"&K39,IF(M39:N39="",I39&"・"&J39&"・"&K39&"・"&L39,IF(N39="",I39&"・"&J39&"・"&K39&"・"&L39&"・"&M39,I39&"・"&J39&"・"&K39&"・"&L39&"・"&M39&"・"&N39)))))) -> 
B40: =データリスト!G$46 -> 代表代議員会 | C40: =IF(データリスト!$G58="","",データリスト!$G58) ->  | U40: =IF(I40:N40="","",IF(J40:N40="",I40,IF(K40:N40="",I40&"・"&J40,IF(L40:N40="",I40&"・"&J40&"・"&K40,IF(M40:N40="",I40&"・"&J40&"・"&K40&"・"&L40,IF(N40="",I40&"・"&J40&"・"&K40&"・"&L40&"・"&M40,I40&"・"&J40&"・"&K40&"・"&L40&"・"&M40&"・"&N40)))))) -> 
B41: =データリスト!G$46 -> 代表代議員会 | C41: =IF(データリスト!$G59="","",データリスト!$G59) ->  | U41: =IF(I41:N41="","",IF(J41:N41="",I41,IF(K41:N41="",I41&"・"&J41,IF(L41:N41="",I41&"・"&J41&"・"&K41,IF(M41:N41="",I41&"・"&J41&"・"&K41&"・"&L41,IF(N41="",I41&"・"&J41&"・"&K41&"・"&L41&"・"&M41,I41&"・"&J41&"・"&K41&"・"&L41&"・"&M41&"・"&N41)))))) -> 
B42: =データリスト!G$46 -> 代表代議員会 | C42: =IF(データリスト!$G60="","",データリスト!$G60) ->  | U42: =IF(I42:N42="","",IF(J42:N42="",I42,IF(K42:N42="",I42&"・"&J42,IF(L42:N42="",I42&"・"&J42&"・"&K42,IF(M42:N42="",I42&"・"&J42&"・"&K42&"・"&L42,IF(N42="",I42&"・"&J42&"・"&K42&"・"&L42&"・"&M42,I42&"・"&J42&"・"&K42&"・"&L42&"・"&M42&"・"&N42)))))) -> 
B43: =データリスト!G$46 -> 代表代議員会 | C43: =IF(データリスト!$G61="","",データリスト!$G61) ->  | U43: =IF(I43:N43="","",IF(J43:N43="",I43,IF(K43:N43="",I43&"・"&J43,IF(L43:N43="",I43&"・"&J43&"・"&K43,IF(M43:N43="",I43&"・"&J43&"・"&K43&"・"&L43,IF(N43="",I43&"・"&J43&"・"&K43&"・"&L43&"・"&M43,I43&"・"&J43&"・"&K43&"・"&L43&"・"&M43&"・"&N43)))))) -> 
B44: =データリスト!G$46 -> 代表代議員会 | C44: =IF(データリスト!$G62="","",データリスト!$G62) ->  | U44: =IF(I44:N44="","",IF(J44:N44="",I44,IF(K44:N44="",I44&"・"&J44,IF(L44:N44="",I44&"・"&J44&"・"&K44,IF(M44:N44="",I44&"・"&J44&"・"&K44&"・"&L44,IF(N44="",I44&"・"&J44&"・"&K44&"・"&L44&"・"&M44,I44&"・"&J44&"・"&K44&"・"&L44&"・"&M44&"・"&N44)))))) -> 
B45: =データリスト!G$46 -> 代表代議員会 | C45: =IF(データリスト!$G63="","",データリスト!$G63) ->  | U45: =IF(I45:N45="","",IF(J45:N45="",I45,IF(K45:N45="",I45&"・"&J45,IF(L45:N45="",I45&"・"&J45&"・"&K45,IF(M45:N45="",I45&"・"&J45&"・"&K45&"・"&L45,IF(N45="",I45&"・"&J45&"・"&K45&"・"&L45&"・"&M45,I45&"・"&J45&"・"&K45&"・"&L45&"・"&M45&"・"&N45)))))) -> 
B46: =データリスト!G$46 -> 代表代議員会 | C46: =IF(データリスト!$G64="","",データリスト!$G64) ->  | U46: =IF(I46:N46="","",IF(J46:N46="",I46,IF(K46:N46="",I46&"・"&J46,IF(L46:N46="",I46&"・"&J46&"・"&K46,IF(M46:N46="",I46&"・"&J46&"・"&K46&"・"&L46,IF(N46="",I46&"・"&J46&"・"&K46&"・"&L46&"・"&M46,I46&"・"&J46&"・"&K46&"・"&L46&"・"&M46&"・"&N46)))))) -> 
B47: =データリスト!G$46 -> 代表代議員会 | C47: =IF(データリスト!$G65="","",データリスト!$G65) ->  | U47: =IF(I47:N47="","",IF(J47:N47="",I47,IF(K47:N47="",I47&"・"&J47,IF(L47:N47="",I47&"・"&J47&"・"&K47,IF(M47:N47="",I47&"・"&J47&"・"&K47&"・"&L47,IF(N47="",I47&"・"&J47&"・"&K47&"・"&L47&"・"&M47,I47&"・"&J47&"・"&K47&"・"&L47&"・"&M47&"・"&N47)))))) -> 
B48: =データリスト!G$46 -> 代表代議員会 | C48: =IF(データリスト!$G66="","",データリスト!$G66) ->  | U48: =IF(I48:N48="","",IF(J48:N48="",I48,IF(K48:N48="",I48&"・"&J48,IF(L48:N48="",I48&"・"&J48&"・"&K48,IF(M48:N48="",I48&"・"&J48&"・"&K48&"・"&L48,IF(N48="",I48&"・"&J48&"・"&K48&"・"&L48&"・"&M48,I48&"・"&J48&"・"&K48&"・"&L48&"・"&M48&"・"&N48)))))) -> 
B49: =データリスト!H$46 -> 分会代表者会議 | C49: =IF(データリスト!$H47="","",データリスト!$H47) -> 出欠確認・報告 | U49: =IF(I49:N49="","",IF(J49:N49="",I49,IF(K49:N49="",I49&"・"&J49,IF(L49:N49="",I49&"・"&J49&"・"&K49,IF(M49:N49="",I49&"・"&J49&"・"&K49&"・"&L49,IF(N49="",I49&"・"&J49&"・"&K49&"・"&L49&"・"&M49,I49&"・"&J49&"・"&K49&"・"&L49&"・"&M49&"・"&N49)))))) -> 
B50: =データリスト!H$46 -> 分会代表者会議 | C50: =IF(データリスト!$H48="","",データリスト!$H48) -> 会議出席 | U50: =IF(I50:N50="","",IF(J50:N50="",I50,IF(K50:N50="",I50&"・"&J50,IF(L50:N50="",I50&"・"&J50&"・"&K50,IF(M50:N50="",I50&"・"&J50&"・"&K50&"・"&L50,IF(N50="",I50&"・"&J50&"・"&K50&"・"&L50&"・"&M50,I50&"・"&J50&"・"&K50&"・"&L50&"・"&M50&"・"&N50)))))) -> 
B51: =データリスト!H$46 -> 分会代表者会議 | C51: =IF(データリスト!$H49="","",データリスト!$H49) -> 確認事項 職場周知 | U51: =IF(I51:N51="","",IF(J51:N51="",I51,IF(K51:N51="",I51&"・"&J51,IF(L51:N51="",I51&"・"&J51&"・"&K51,IF(M51:N51="",I51&"・"&J51&"・"&K51&"・"&L51,IF(N51="",I51&"・"&J51&"・"&K51&"・"&L51&"・"&M51,I51&"・"&J51&"・"&K51&"・"&L51&"・"&M51&"・"&N51)))))) -> 
B52: =データリスト!H$46 -> 分会代表者会議 | C52: =IF(データリスト!$H50="","",データリスト!$H50) ->  | U52: =IF(I52:N52="","",IF(J52:N52="",I52,IF(K52:N52="",I52&"・"&J52,IF(L52:N52="",I52&"・"&J52&"・"&K52,IF(M52:N52="",I52&"・"&J52&"・"&K52&"・"&L52,IF(N52="",I52&"・"&J52&"・"&K52&"・"&L52&"・"&M52,I52&"・"&J52&"・"&K52&"・"&L52&"・"&M52&"・"&N52)))))) -> 
B53: =データリスト!H$46 -> 分会代表者会議 | C53: =IF(データリスト!$H51="","",データリスト!$H51) ->  | U53: =IF(I53:N53="","",IF(J53:N53="",I53,IF(K53:N53="",I53&"・"&J53,IF(L53:N53="",I53&"・"&J53&"・"&K53,IF(M53:N53="",I53&"・"&J53&"・"&K53&"・"&L53,IF(N53="",I53&"・"&J53&"・"&K53&"・"&L53&"・"&M53,I53&"・"&J53&"・"&K53&"・"&L53&"・"&M53&"・"&N53)))))) -> 
B54: =データリスト!H$46 -> 分会代表者会議 | C54: =IF(データリスト!$H52="","",データリスト!$H52) ->  | U54: =IF(I54:N54="","",IF(J54:N54="",I54,IF(K54:N54="",I54&"・"&J54,IF(L54:N54="",I54&"・"&J54&"・"&K54,IF(M54:N54="",I54&"・"&J54&"・"&K54&"・"&L54,IF(N54="",I54&"・"&J54&"・"&K54&"・"&L54&"・"&M54,I54&"・"&J54&"・"&K54&"・"&L54&"・"&M54&"・"&N54)))))) -> 
B55: =データリスト!H$46 -> 分会代表者会議 | C55: =IF(データリスト!$H53="","",データリスト!$H53) ->  | U55: =IF(I55:N55="","",IF(J55:N55="",I55,IF(K55:N55="",I55&"・"&J55,IF(L55:N55="",I55&"・"&J55&"・"&K55,IF(M55:N55="",I55&"・"&J55&"・"&K55&"・"&L55,IF(N55="",I55&"・"&J55&"・"&K55&"・"&L55&"・"&M55,I55&"・"&J55&"・"&K55&"・"&L55&"・"&M55&"・"&N55)))))) -> 
B56: =データリスト!H$46 -> 分会代表者会議 | C56: =IF(データリスト!$H54="","",データリスト!$H54) ->  | U56: =IF(I56:N56="","",IF(J56:N56="",I56,IF(K56:N56="",I56&"・"&J56,IF(L56:N56="",I56&"・"&J56&"・"&K56,IF(M56:N56="",I56&"・"&J56&"・"&K56&"・"&L56,IF(N56="",I56&"・"&J56&"・"&K56&"・"&L56&"・"&M56,I56&"・"&J56&"・"&K56&"・"&L56&"・"&M56&"・"&N56)))))) -> 
B57: =データリスト!H$46 -> 分会代表者会議 | C57: =IF(データリスト!$H55="","",データリスト!$H55) ->  | U57: =IF(I57:N57="","",IF(J57:N57="",I57,IF(K57:N57="",I57&"・"&J57,IF(L57:N57="",I57&"・"&J57&"・"&K57,IF(M57:N57="",I57&"・"&J57&"・"&K57&"・"&L57,IF(N57="",I57&"・"&J57&"・"&K57&"・"&L57&"・"&M57,I57&"・"&J57&"・"&K57&"・"&L57&"・"&M57&"・"&N57)))))) -> 
B58: =データリスト!H$46 -> 分会代表者会議 | C58: =IF(データリスト!$H56="","",データリスト!$H56) ->  | U58: =IF(I58:N58="","",IF(J58:N58="",I58,IF(K58:N58="",I58&"・"&J58,IF(L58:N58="",I58&"・"&J58&"・"&K58,IF(M58:N58="",I58&"・"&J58&"・"&K58&"・"&L58,IF(N58="",I58&"・"&J58&"・"&K58&"・"&L58&"・"&M58,I58&"・"&J58&"・"&K58&"・"&L58&"・"&M58&"・"&N58)))))) -> 
B59: =データリスト!H$46 -> 分会代表者会議 | C59: =IF(データリスト!$H57="","",データリスト!$H57) ->  | U59: =IF(I59:N59="","",IF(J59:N59="",I59,IF(K59:N59="",I59&"・"&J59,IF(L59:N59="",I59&"・"&J59&"・"&K59,IF(M59:N59="",I59&"・"&J59&"・"&K59&"・"&L59,IF(N59="",I59&"・"&J59&"・"&K59&"・"&L59&"・"&M59,I59&"・"&J59&"・"&K59&"・"&L59&"・"&M59&"・"&N59)))))) -> 
B60: =データリスト!H$46 -> 分会代表者会議 | C60: =IF(データリスト!$H58="","",データリスト!$H58) ->  | U60: =IF(I60:N60="","",IF(J60:N60="",I60,IF(K60:N60="",I60&"・"&J60,IF(L60:N60="",I60&"・"&J60&"・"&K60,IF(M60:N60="",I60&"・"&J60&"・"&K60&"・"&L60,IF(N60="",I60&"・"&J60&"・"&K60&"・"&L60&"・"&M60,I60&"・"&J60&"・"&K60&"・"&L60&"・"&M60&"・"&N60)))))) -> 
B61: =データリスト!H$46 -> 分会代表者会議 | C61: =IF(データリスト!$H59="","",データリスト!$H59) ->  | U61: =IF(I61:N61="","",IF(J61:N61="",I61,IF(K61:N61="",I61&"・"&J61,IF(L61:N61="",I61&"・"&J61&"・"&K61,IF(M61:N61="",I61&"・"&J61&"・"&K61&"・"&L61,IF(N61="",I61&"・"&J61&"・"&K61&"・"&L61&"・"&M61,I61&"・"&J61&"・"&K61&"・"&L61&"・"&M61&"・"&N61)))))) -> 
B62: =データリスト!H$46 -> 分会代表者会議 | C62: =IF(データリスト!$H60="","",データリスト!$H60) ->  | U62: =IF(I62:N62="","",IF(J62:N62="",I62,IF(K62:N62="",I62&"・"&J62,IF(L62:N62="",I62&"・"&J62&"・"&K62,IF(M62:N62="",I62&"・"&J62&"・"&K62&"・"&L62,IF(N62="",I62&"・"&J62&"・"&K62&"・"&L62&"・"&M62,I62&"・"&J62&"・"&K62&"・"&L62&"・"&M62&"・"&N62)))))) -> 
B63: =データリスト!H$46 -> 分会代表者会議 | C63: =IF(データリスト!$H61="","",データリスト!$H61) ->  | U63: =IF(I63:N63="","",IF(J63:N63="",I63,IF(K63:N63="",I63&"・"&J63,IF(L63:N63="",I63&"・"&J63&"・"&K63,IF(M63:N63="",I63&"・"&J63&"・"&K63&"・"&L63,IF(N63="",I63&"・"&J63&"・"&K63&"・"&L63&"・"&M63,I63&"・"&J63&"・"&K63&"・"&L63&"・"&M63&"・"&N63)))))) -> 
B64: =データリスト!H$46 -> 分会代表者会議 | C64: =IF(データリスト!$H62="","",データリスト!$H62) ->  | U64: =IF(I64:N64="","",IF(J64:N64="",I64,IF(K64:N64="",I64&"・"&J64,IF(L64:N64="",I64&"・"&J64&"・"&K64,IF(M64:N64="",I64&"・"&J64&"・"&K64&"・"&L64,IF(N64="",I64&"・"&J64&"・"&K64&"・"&L64&"・"&M64,I64&"・"&J64&"・"&K64&"・"&L64&"・"&M64&"・"&N64)))))) -> 
B65: =データリスト!H$46 -> 分会代表者会議 | C65: =IF(データリスト!$H63="","",データリスト!$H63) ->  | U65: =IF(I65:N65="","",IF(J65:N65="",I65,IF(K65:N65="",I65&"・"&J65,IF(L65:N65="",I65&"・"&J65&"・"&K65,IF(M65:N65="",I65&"・"&J65&"・"&K65&"・"&L65,IF(N65="",I65&"・"&J65&"・"&K65&"・"&L65&"・"&M65,I65&"・"&J65&"・"&K65&"・"&L65&"・"&M65&"・"&N65)))))) -> 
B66: =データリスト!H$46 -> 分会代表者会議 | C66: =IF(データリスト!$H64="","",データリスト!$H64) ->  | U66: =IF(I66:N66="","",IF(J66:N66="",I66,IF(K66:N66="",I66&"・"&J66,IF(L66:N66="",I66&"・"&J66&"・"&K66,IF(M66:N66="",I66&"・"&J66&"・"&K66&"・"&L66,IF(N66="",I66&"・"&J66&"・"&K66&"・"&L66&"・"&M66,I66&"・"&J66&"・"&K66&"・"&L66&"・"&M66&"・"&N66)))))) -> 
B67: =データリスト!H$46 -> 分会代表者会議 | C67: =IF(データリスト!$H65="","",データリスト!$H65) ->  | U67: =IF(I67:N67="","",IF(J67:N67="",I67,IF(K67:N67="",I67&"・"&J67,IF(L67:N67="",I67&"・"&J67&"・"&K67,IF(M67:N67="",I67&"・"&J67&"・"&K67&"・"&L67,IF(N67="",I67&"・"&J67&"・"&K67&"・"&L67&"・"&M67,I67&"・"&J67&"・"&K67&"・"&L67&"・"&M67&"・"&N67)))))) -> 
B68: =データリスト!H$46 -> 分会代表者会議 | C68: =IF(データリスト!$H66="","",データリスト!$H66) ->  | U68: =IF(I68:N68="","",IF(J68:N68="",I68,IF(K68:N68="",I68&"・"&J68,IF(L68:N68="",I68&"・"&J68&"・"&K68,IF(M68:N68="",I68&"・"&J68&"・"&K68&"・"&L68,IF(N68="",I68&"・"&J68&"・"&K68&"・"&L68&"・"&M68,I68&"・"&J68&"・"&K68&"・"&L68&"・"&M68&"・"&N68)))))) -> 
B69: =データリスト!I$46 -> 分会三役会議 | C69: =IF(データリスト!$I47="","",データリスト!$I47) -> 出欠確認・報告 | U69: =IF(I69:N69="","",IF(J69:N69="",I69,IF(K69:N69="",I69&"・"&J69,IF(L69:N69="",I69&"・"&J69&"・"&K69,IF(M69:N69="",I69&"・"&J69&"・"&K69&"・"&L69,IF(N69="",I69&"・"&J69&"・"&K69&"・"&L69&"・"&M69,I69&"・"&J69&"・"&K69&"・"&L69&"・"&M69&"・"&N69)))))) -> 
B70: =データリスト!I$46 -> 分会三役会議 | C70: =IF(データリスト!$I48="","",データリスト!$I48) -> 会議出席 | U70: =IF(I70:N70="","",IF(J70:N70="",I70,IF(K70:N70="",I70&"・"&J70,IF(L70:N70="",I70&"・"&J70&"・"&K70,IF(M70:N70="",I70&"・"&J70&"・"&K70&"・"&L70,IF(N70="",I70&"・"&J70&"・"&K70&"・"&L70&"・"&M70,I70&"・"&J70&"・"&K70&"・"&L70&"・"&M70&"・"&N70)))))) -> 
B71: =データリスト!I$46 -> 分会三役会議 | C71: =IF(データリスト!$I49="","",データリスト!$I49) -> 確認事項 職場周知 | U71: =IF(I71:N71="","",IF(J71:N71="",I71,IF(K71:N71="",I71&"・"&J71,IF(L71:N71="",I71&"・"&J71&"・"&K71,IF(M71:N71="",I71&"・"&J71&"・"&K71&"・"&L71,IF(N71="",I71&"・"&J71&"・"&K71&"・"&L71&"・"&M71,I71&"・"&J71&"・"&K71&"・"&L71&"・"&M71&"・"&N71)))))) -> 
B72: =データリスト!I$46 -> 分会三役会議 | C72: =IF(データリスト!$I50="","",データリスト!$I50) ->  | U72: =IF(I72:N72="","",IF(J72:N72="",I72,IF(K72:N72="",I72&"・"&J72,IF(L72:N72="",I72&"・"&J72&"・"&K72,IF(M72:N72="",I72&"・"&J72&"・"&K72&"・"&L72,IF(N72="",I72&"・"&J72&"・"&K72&"・"&L72&"・"&M72,I72&"・"&J72&"・"&K72&"・"&L72&"・"&M72&"・"&N72)))))) -> 
B73: =データリスト!I$46 -> 分会三役会議 | C73: =IF(データリスト!$I51="","",データリスト!$I51) ->  | U73: =IF(I73:N73="","",IF(J73:N73="",I73,IF(K73:N73="",I73&"・"&J73,IF(L73:N73="",I73&"・"&J73&"・"&K73,IF(M73:N73="",I73&"・"&J73&"・"&K73&"・"&L73,IF(N73="",I73&"・"&J73&"・"&K73&"・"&L73&"・"&M73,I73&"・"&J73&"・"&K73&"・"&L73&"・"&M73&"・"&N73)))))) -> 
B74: =データリスト!I$46 -> 分会三役会議 | C74: =IF(データリスト!$I52="","",データリスト!$I52) ->  | U74: =IF(I74:N74="","",IF(J74:N74="",I74,IF(K74:N74="",I74&"・"&J74,IF(L74:N74="",I74&"・"&J74&"・"&K74,IF(M74:N74="",I74&"・"&J74&"・"&K74&"・"&L74,IF(N74="",I74&"・"&J74&"・"&K74&"・"&L74&"・"&M74,I74&"・"&J74&"・"&K74&"・"&L74&"・"&M74&"・"&N74)))))) -> 
B75: =データリスト!I$46 -> 分会三役会議 | C75: =IF(データリスト!$I53="","",データリスト!$I53) ->  | U75: =IF(I75:N75="","",IF(J75:N75="",I75,IF(K75:N75="",I75&"・"&J75,IF(L75:N75="",I75&"・"&J75&"・"&K75,IF(M75:N75="",I75&"・"&J75&"・"&K75&"・"&L75,IF(N75="",I75&"・"&J75&"・"&K75&"・"&L75&"・"&M75,I75&"・"&J75&"・"&K75&"・"&L75&"・"&M75&"・"&N75)))))) -> 
B76: =データリスト!I$46 -> 分会三役会議 | C76: =IF(データリスト!$I54="","",データリスト!$I54) ->  | U76: =IF(I76:N76="","",IF(J76:N76="",I76,IF(K76:N76="",I76&"・"&J76,IF(L76:N76="",I76&"・"&J76&"・"&K76,IF(M76:N76="",I76&"・"&J76&"・"&K76&"・"&L76,IF(N76="",I76&"・"&J76&"・"&K76&"・"&L76&"・"&M76,I76&"・"&J76&"・"&K76&"・"&L76&"・"&M76&"・"&N76)))))) -> 
B77: =データリスト!I$46 -> 分会三役会議 | C77: =IF(データリスト!$I55="","",データリスト!$I55) ->  | U77: =IF(I77:N77="","",IF(J77:N77="",I77,IF(K77:N77="",I77&"・"&J77,IF(L77:N77="",I77&"・"&J77&"・"&K77,IF(M77:N77="",I77&"・"&J77&"・"&K77&"・"&L77,IF(N77="",I77&"・"&J77&"・"&K77&"・"&L77&"・"&M77,I77&"・"&J77&"・"&K77&"・"&L77&"・"&M77&"・"&N77)))))) -> 
B78: =データリスト!I$46 -> 分会三役会議 | C78: =IF(データリスト!$I56="","",データリスト!$I56) ->  | U78: =IF(I78:N78="","",IF(J78:N78="",I78,IF(K78:N78="",I78&"・"&J78,IF(L78:N78="",I78&"・"&J78&"・"&K78,IF(M78:N78="",I78&"・"&J78&"・"&K78&"・"&L78,IF(N78="",I78&"・"&J78&"・"&K78&"・"&L78&"・"&M78,I78&"・"&J78&"・"&K78&"・"&L78&"・"&M78&"・"&N78)))))) -> 
B79: =データリスト!I$46 -> 分会三役会議 | C79: =IF(データリスト!$I57="","",データリスト!$I57) ->  | U79: =IF(I79:N79="","",IF(J79:N79="",I79,IF(K79:N79="",I79&"・"&J79,IF(L79:N79="",I79&"・"&J79&"・"&K79,IF(M79:N79="",I79&"・"&J79&"・"&K79&"・"&L79,IF(N79="",I79&"・"&J79&"・"&K79&"・"&L79&"・"&M79,I79&"・"&J79&"・"&K79&"・"&L79&"・"&M79&"・"&N79)))))) -> 
B80: =データリスト!I$46 -> 分会三役会議 | C80: =IF(データリスト!$I58="","",データリスト!$I58) ->  | U80: =IF(I80:N80="","",IF(J80:N80="",I80,IF(K80:N80="",I80&"・"&J80,IF(L80:N80="",I80&"・"&J80&"・"&K80,IF(M80:N80="",I80&"・"&J80&"・"&K80&"・"&L80,IF(N80="",I80&"・"&J80&"・"&K80&"・"&L80&"・"&M80,I80&"・"&J80&"・"&K80&"・"&L80&"・"&M80&"・"&N80)))))) -> 
B81: =データリスト!I$46 -> 分会三役会議 | C81: =IF(データリスト!$I59="","",データリスト!$I59) ->  | U81: =IF(I81:N81="","",IF(J81:N81="",I81,IF(K81:N81="",I81&"・"&J81,IF(L81:N81="",I81&"・"&J81&"・"&K81,IF(M81:N81="",I81&"・"&J81&"・"&K81&"・"&L81,IF(N81="",I81&"・"&J81&"・"&K81&"・"&L81&"・"&M81,I81&"・"&J81&"・"&K81&"・"&L81&"・"&M81&"・"&N81)))))) -> 
B82: =データリスト!I$46 -> 分会三役会議 | C82: =IF(データリスト!$I60="","",データリスト!$I60) ->  | U82: =IF(I82:N82="","",IF(J82:N82="",I82,IF(K82:N82="",I82&"・"&J82,IF(L82:N82="",I82&"・"&J82&"・"&K82,IF(M82:N82="",I82&"・"&J82&"・"&K82&"・"&L82,IF(N82="",I82&"・"&J82&"・"&K82&"・"&L82&"・"&M82,I82&"・"&J82&"・"&K82&"・"&L82&"・"&M82&"・"&N82)))))) -> 
B83: =データリスト!I$46 -> 分会三役会議 | C83: =IF(データリスト!$I61="","",データリスト!$I61) ->  | U83: =IF(I83:N83="","",IF(J83:N83="",I83,IF(K83:N83="",I83&"・"&J83,IF(L83:N83="",I83&"・"&J83&"・"&K83,IF(M83:N83="",I83&"・"&J83&"・"&K83&"・"&L83,IF(N83="",I83&"・"&J83&"・"&K83&"・"&L83&"・"&M83,I83&"・"&J83&"・"&K83&"・"&L83&"・"&M83&"・"&N83)))))) -> 
B84: =データリスト!I$46 -> 分会三役会議 | C84: =IF(データリスト!$I62="","",データリスト!$I62) ->  | U84: =IF(I84:N84="","",IF(J84:N84="",I84,IF(K84:N84="",I84&"・"&J84,IF(L84:N84="",I84&"・"&J84&"・"&K84,IF(M84:N84="",I84&"・"&J84&"・"&K84&"・"&L84,IF(N84="",I84&"・"&J84&"・"&K84&"・"&L84&"・"&M84,I84&"・"&J84&"・"&K84&"・"&L84&"・"&M84&"・"&N84)))))) -> 
B85: =データリスト!I$46 -> 分会三役会議 | C85: =IF(データリスト!$I63="","",データリスト!$I63) ->  | U85: =IF(I85:N85="","",IF(J85:N85="",I85,IF(K85:N85="",I85&"・"&J85,IF(L85:N85="",I85&"・"&J85&"・"&K85,IF(M85:N85="",I85&"・"&J85&"・"&K85&"・"&L85,IF(N85="",I85&"・"&J85&"・"&K85&"・"&L85&"・"&M85,I85&"・"&J85&"・"&K85&"・"&L85&"・"&M85&"・"&N85)))))) -> 
B86: =データリスト!I$46 -> 分会三役会議 | C86: =IF(データリスト!$I64="","",データリスト!$I64) ->  | U86: =IF(I86:N86="","",IF(J86:N86="",I86,IF(K86:N86="",I86&"・"&J86,IF(L86:N86="",I86&"・"&J86&"・"&K86,IF(M86:N86="",I86&"・"&J86&"・"&K86&"・"&L86,IF(N86="",I86&"・"&J86&"・"&K86&"・"&L86&"・"&M86,I86&"・"&J86&"・"&K86&"・"&L86&"・"&M86&"・"&N86)))))) -> 
B87: =データリスト!I$46 -> 分会三役会議 | C87: =IF(データリスト!$I65="","",データリスト!$I65) ->  | U87: =IF(I87:N87="","",IF(J87:N87="",I87,IF(K87:N87="",I87&"・"&J87,IF(L87:N87="",I87&"・"&J87&"・"&K87,IF(M87:N87="",I87&"・"&J87&"・"&K87&"・"&L87,IF(N87="",I87&"・"&J87&"・"&K87&"・"&L87&"・"&M87,I87&"・"&J87&"・"&K87&"・"&L87&"・"&M87&"・"&N87)))))) -> 
B88: =データリスト!I$46 -> 分会三役会議 | C88: =IF(データリスト!$I66="","",データリスト!$I66) ->  | U88: =IF(I88:N88="","",IF(J88:N88="",I88,IF(K88:N88="",I88&"・"&J88,IF(L88:N88="",I88&"・"&J88&"・"&K88,IF(M88:N88="",I88&"・"&J88&"・"&K88&"・"&L88,IF(N88="",I88&"・"&J88&"・"&K88&"・"&L88&"・"&M88,I88&"・"&J88&"・"&K88&"・"&L88&"・"&M88&"・"&N88)))))) -> 
B89: =データリスト!J$46 -> 職場オルグ | C89: =IF(データリスト!$J47="","",データリスト!$J47) -> 日程調整 | U89: =IF(I89:N89="","",IF(J89:N89="",I89,IF(K89:N89="",I89&"・"&J89,IF(L89:N89="",I89&"・"&J89&"・"&K89,IF(M89:N89="",I89&"・"&J89&"・"&K89&"・"&L89,IF(N89="",I89&"・"&J89&"・"&K89&"・"&L89&"・"&M89,I89&"・"&J89&"・"&K89&"・"&L89&"・"&M89&"・"&N89)))))) -> 
B90: =データリスト!J$46 -> 職場オルグ | C90: =IF(データリスト!$J48="","",データリスト!$J48) -> 開催周知(会社・職場) | U90: =IF(I90:N90="","",IF(J90:N90="",I90,IF(K90:N90="",I90&"・"&J90,IF(L90:N90="",I90&"・"&J90&"・"&K90,IF(M90:N90="",I90&"・"&J90&"・"&K90&"・"&L90,IF(N90="",I90&"・"&J90&"・"&K90&"・"&L90&"・"&M90,I90&"・"&J90&"・"&K90&"・"&L90&"・"&M90&"・"&N90)))))) -> 
B91: =データリスト!J$46 -> 職場オルグ | C91: =IF(データリスト!$J49="","",データリスト!$J49) -> 会場設営 | U91: =IF(I91:N91="","",IF(J91:N91="",I91,IF(K91:N91="",I91&"・"&J91,IF(L91:N91="",I91&"・"&J91&"・"&K91,IF(M91:N91="",I91&"・"&J91&"・"&K91&"・"&L91,IF(N91="",I91&"・"&J91&"・"&K91&"・"&L91&"・"&M91,I91&"・"&J91&"・"&K91&"・"&L91&"・"&M91&"・"&N91)))))) -> 
B92: =データリスト!J$46 -> 職場オルグ | C92: =IF(データリスト!$J50="","",データリスト!$J50) -> オルグの開催 | U92: =IF(I92:N92="","",IF(J92:N92="",I92,IF(K92:N92="",I92&"・"&J92,IF(L92:N92="",I92&"・"&J92&"・"&K92,IF(M92:N92="",I92&"・"&J92&"・"&K92&"・"&L92,IF(N92="",I92&"・"&J92&"・"&K92&"・"&L92&"・"&M92,I92&"・"&J92&"・"&K92&"・"&L92&"・"&M92&"・"&N92)))))) -> 
B93: =データリスト!J$46 -> 職場オルグ | C93: =IF(データリスト!$J51="","",データリスト!$J51) -> 会場片付け | U93: =IF(I93:N93="","",IF(J93:N93="",I93,IF(K93:N93="",I93&"・"&J93,IF(L93:N93="",I93&"・"&J93&"・"&K93,IF(M93:N93="",I93&"・"&J93&"・"&K93&"・"&L93,IF(N93="",I93&"・"&J93&"・"&K93&"・"&L93&"・"&M93,I93&"・"&J93&"・"&K93&"・"&L93&"・"&M93&"・"&N93)))))) -> 
B94: =データリスト!J$46 -> 職場オルグ | C94: =IF(データリスト!$J52="","",データリスト!$J52) ->  | U94: =IF(I94:N94="","",IF(J94:N94="",I94,IF(K94:N94="",I94&"・"&J94,IF(L94:N94="",I94&"・"&J94&"・"&K94,IF(M94:N94="",I94&"・"&J94&"・"&K94&"・"&L94,IF(N94="",I94&"・"&J94&"・"&K94&"・"&L94&"・"&M94,I94&"・"&J94&"・"&K94&"・"&L94&"・"&M94&"・"&N94)))))) -> 
B95: =データリスト!J$46 -> 職場オルグ | C95: =IF(データリスト!$J53="","",データリスト!$J53) ->  | U95: =IF(I95:N95="","",IF(J95:N95="",I95,IF(K95:N95="",I95&"・"&J95,IF(L95:N95="",I95&"・"&J95&"・"&K95,IF(M95:N95="",I95&"・"&J95&"・"&K95&"・"&L95,IF(N95="",I95&"・"&J95&"・"&K95&"・"&L95&"・"&M95,I95&"・"&J95&"・"&K95&"・"&L95&"・"&M95&"・"&N95)))))) -> 
B96: =データリスト!J$46 -> 職場オルグ | C96: =IF(データリスト!$J54="","",データリスト!$J54) ->  | U96: =IF(I96:N96="","",IF(J96:N96="",I96,IF(K96:N96="",I96&"・"&J96,IF(L96:N96="",I96&"・"&J96&"・"&K96,IF(M96:N96="",I96&"・"&J96&"・"&K96&"・"&L96,IF(N96="",I96&"・"&J96&"・"&K96&"・"&L96&"・"&M96,I96&"・"&J96&"・"&K96&"・"&L96&"・"&M96&"・"&N96)))))) -> 
B97: =データリスト!J$46 -> 職場オルグ | C97: =IF(データリスト!$J55="","",データリスト!$J55) ->  | U97: =IF(I97:N97="","",IF(J97:N97="",I97,IF(K97:N97="",I97&"・"&J97,IF(L97:N97="",I97&"・"&J97&"・"&K97,IF(M97:N97="",I97&"・"&J97&"・"&K97&"・"&L97,IF(N97="",I97&"・"&J97&"・"&K97&"・"&L97&"・"&M97,I97&"・"&J97&"・"&K97&"・"&L97&"・"&M97&"・"&N97)))))) -> 
B98: =データリスト!J$46 -> 職場オルグ | C98: =IF(データリスト!$J56="","",データリスト!$J56) ->  | U98: =IF(I98:N98="","",IF(J98:N98="",I98,IF(K98:N98="",I98&"・"&J98,IF(L98:N98="",I98&"・"&J98&"・"&K98,IF(M98:N98="",I98&"・"&J98&"・"&K98&"・"&L98,IF(N98="",I98&"・"&J98&"・"&K98&"・"&L98&"・"&M98,I98&"・"&J98&"・"&K98&"・"&L98&"・"&M98&"・"&N98)))))) -> 
B99: =データリスト!J$46 -> 職場オルグ | C99: =IF(データリスト!$J57="","",データリスト!$J57) ->  | U99: =IF(I99:N99="","",IF(J99:N99="",I99,IF(K99:N99="",I99&"・"&J99,IF(L99:N99="",I99&"・"&J99&"・"&K99,IF(M99:N99="",I99&"・"&J99&"・"&K99&"・"&L99,IF(N99="",I99&"・"&J99&"・"&K99&"・"&L99&"・"&M99,I99&"・"&J99&"・"&K99&"・"&L99&"・"&M99&"・"&N99)))))) -> 
B100: =データリスト!J$46 -> 職場オルグ | C100: =IF(データリスト!$J58="","",データリスト!$J58) ->  | U100: =IF(I100:N100="","",IF(J100:N100="",I100,IF(K100:N100="",I100&"・"&J100,IF(L100:N100="",I100&"・"&J100&"・"&K100,IF(M100:N100="",I100&"・"&J100&"・"&K100&"・"&L100,IF(N100="",I100&"・"&J100&"・"&K100&"・"&L100&"・"&M100,I100&"・"&J100&"・"&K100&"・"&L100&"・"&M100&"・"&N100)))))) -> 
B101: =データリスト!J$46 -> 職場オルグ | C101: =IF(データリスト!$J59="","",データリスト!$J59) ->  | U101: =IF(I101:N101="","",IF(J101:N101="",I101,IF(K101:N101="",I101&"・"&J101,IF(L101:N101="",I101&"・"&J101&"・"&K101,IF(M101:N101="",I101&"・"&J101&"・"&K101&"・"&L101,IF(N101="",I101&"・"&J101&"・"&K101&"・"&L101&"・"&M101,I101&"・"&J101&"・"&K101&"・"&L101&"・"&M101&"・"&N101)))))) -> 
B102: =データリスト!J$46 -> 職場オルグ | C102: =IF(データリスト!$J60="","",データリスト!$J60) ->  | U102: =IF(I102:N102="","",IF(J102:N102="",I102,IF(K102:N102="",I102&"・"&J102,IF(L102:N102="",I102&"・"&J102&"・"&K102,IF(M102:N102="",I102&"・"&J102&"・"&K102&"・"&L102,IF(N102="",I102&"・"&J102&"・"&K102&"・"&L102&"・"&M102,I102&"・"&J102&"・"&K102&"・"&L102&"・"&M102&"・"&N102)))))) -> 
B103: =データリスト!J$46 -> 職場オルグ | C103: =IF(データリスト!$J61="","",データリスト!$J61) ->  | U103: =IF(I103:N103="","",IF(J103:N103="",I103,IF(K103:N103="",I103&"・"&J103,IF(L103:N103="",I103&"・"&J103&"・"&K103,IF(M103:N103="",I103&"・"&J103&"・"&K103&"・"&L103,IF(N103="",I103&"・"&J103&"・"&K103&"・"&L103&"・"&M103,I103&"・"&J103&"・"&K103&"・"&L103&"・"&M103&"・"&N103)))))) -> 
B104: =データリスト!J$46 -> 職場オルグ | C104: =IF(データリスト!$J62="","",データリスト!$J62) ->  | U104: =IF(I104:N104="","",IF(J104:N104="",I104,IF(K104:N104="",I104&"・"&J104,IF(L104:N104="",I104&"・"&J104&"・"&K104,IF(M104:N104="",I104&"・"&J104&"・"&K104&"・"&L104,IF(N104="",I104&"・"&J104&"・"&K104&"・"&L104&"・"&M104,I104&"・"&J104&"・"&K104&"・"&L104&"・"&M104&"・"&N104)))))) -> 
B105: =データリスト!J$46 -> 職場オルグ | C105: =IF(データリスト!$J63="","",データリスト!$J63) ->  | U105: =IF(I105:N105="","",IF(J105:N105="",I105,IF(K105:N105="",I105&"・"&J105,IF(L105:N105="",I105&"・"&J105&"・"&K105,IF(M105:N105="",I105&"・"&J105&"・"&K105&"・"&L105,IF(N105="",I105&"・"&J105&"・"&K105&"・"&L105&"・"&M105,I105&"・"&J105&"・"&K105&"・"&L105&"・"&M105&"・"&N105)))))) -> 
B106: =データリスト!J$46 -> 職場オルグ | C106: =IF(データリスト!$J64="","",データリスト!$J64) ->  | U106: =IF(I106:N106="","",IF(J106:N106="",I106,IF(K106:N106="",I106&"・"&J106,IF(L106:N106="",I106&"・"&J106&"・"&K106,IF(M106:N106="",I106&"・"&J106&"・"&K106&"・"&L106,IF(N106="",I106&"・"&J106&"・"&K106&"・"&L106&"・"&M106,I106&"・"&J106&"・"&K106&"・"&L106&"・"&M106&"・"&N106)))))) -> 
B107: =データリスト!J$46 -> 職場オルグ | C107: =IF(データリスト!$J65="","",データリスト!$J65) ->  | U107: =IF(I107:N107="","",IF(J107:N107="",I107,IF(K107:N107="",I107&"・"&J107,IF(L107:N107="",I107&"・"&J107&"・"&K107,IF(M107:N107="",I107&"・"&J107&"・"&K107&"・"&L107,IF(N107="",I107&"・"&J107&"・"&K107&"・"&L107&"・"&M107,I107&"・"&J107&"・"&K107&"・"&L107&"・"&M107&"・"&N107)))))) -> 
B108: =データリスト!J$46 -> 職場オルグ | C108: =IF(データリスト!$J66="","",データリスト!$J66) ->  | U108: =IF(I108:N108="","",IF(J108:N108="",I108,IF(K108:N108="",I108&"・"&J108,IF(L108:N108="",I108&"・"&J108&"・"&K108,IF(M108:N108="",I108&"・"&J108&"・"&K108&"・"&L108,IF(N108="",I108&"・"&J108&"・"&K108&"・"&L108&"・"&M108,I108&"・"&J108&"・"&K108&"・"&L108&"・"&M108&"・"&N108)))))) -> 
B109: =データリスト!K$46 -> 分会委員長連絡会議 | C109: =IF(データリスト!$K47="","",データリスト!$K47) -> 出欠確認・報告 | U109: =IF(I109:N109="","",IF(J109:N109="",I109,IF(K109:N109="",I109&"・"&J109,IF(L109:N109="",I109&"・"&J109&"・"&K109,IF(M109:N109="",I109&"・"&J109&"・"&K109&"・"&L109,IF(N109="",I109&"・"&J109&"・"&K109&"・"&L109&"・"&M109,I109&"・"&J109&"・"&K109&"・"&L109&"・"&M109&"・"&N109)))))) -> 
B110: =データリスト!K$46 -> 分会委員長連絡会議 | C110: =IF(データリスト!$K48="","",データリスト!$K48) -> 会議出席 | U110: =IF(I110:N110="","",IF(J110:N110="",I110,IF(K110:N110="",I110&"・"&J110,IF(L110:N110="",I110&"・"&J110&"・"&K110,IF(M110:N110="",I110&"・"&J110&"・"&K110&"・"&L110,IF(N110="",I110&"・"&J110&"・"&K110&"・"&L110&"・"&M110,I110&"・"&J110&"・"&K110&"・"&L110&"・"&M110&"・"&N110)))))) -> 
B111: =データリスト!K$46 -> 分会委員長連絡会議 | C111: =IF(データリスト!$K49="","",データリスト!$K49) -> 分会執行委員会(内容周知) | U111: =IF(I111:N111="","",IF(J111:N111="",I111,IF(K111:N111="",I111&"・"&J111,IF(L111:N111="",I111&"・"&J111&"・"&K111,IF(M111:N111="",I111&"・"&J111&"・"&K111&"・"&L111,IF(N111="",I111&"・"&J111&"・"&K111&"・"&L111&"・"&M111,I111&"・"&J111&"・"&K111&"・"&L111&"・"&M111&"・"&N111)))))) -> 
B112: =データリスト!K$46 -> 分会委員長連絡会議 | C112: =IF(データリスト!$K50="","",データリスト!$K50) -> 職場集会（報告・内容周知） | U112: =IF(I112:N112="","",IF(J112:N112="",I112,IF(K112:N112="",I112&"・"&J112,IF(L112:N112="",I112&"・"&J112&"・"&K112,IF(M112:N112="",I112&"・"&J112&"・"&K112&"・"&L112,IF(N112="",I112&"・"&J112&"・"&K112&"・"&L112&"・"&M112,I112&"・"&J112&"・"&K112&"・"&L112&"・"&M112&"・"&N112)))))) -> 
B113: =データリスト!K$46 -> 分会委員長連絡会議 | C113: =IF(データリスト!$K51="","",データリスト!$K51) ->  | U113: =IF(I113:N113="","",IF(J113:N113="",I113,IF(K113:N113="",I113&"・"&J113,IF(L113:N113="",I113&"・"&J113&"・"&K113,IF(M113:N113="",I113&"・"&J113&"・"&K113&"・"&L113,IF(N113="",I113&"・"&J113&"・"&K113&"・"&L113&"・"&M113,I113&"・"&J113&"・"&K113&"・"&L113&"・"&M113&"・"&N113)))))) -> 
B114: =データリスト!K$46 -> 分会委員長連絡会議 | C114: =IF(データリスト!$K52="","",データリスト!$K52) ->  | U114: =IF(I114:N114="","",IF(J114:N114="",I114,IF(K114:N114="",I114&"・"&J114,IF(L114:N114="",I114&"・"&J114&"・"&K114,IF(M114:N114="",I114&"・"&J114&"・"&K114&"・"&L114,IF(N114="",I114&"・"&J114&"・"&K114&"・"&L114&"・"&M114,I114&"・"&J114&"・"&K114&"・"&L114&"・"&M114&"・"&N114)))))) -> 
B115: =データリスト!K$46 -> 分会委員長連絡会議 | C115: =IF(データリスト!$K53="","",データリスト!$K53) ->  | U115: =IF(I115:N115="","",IF(J115:N115="",I115,IF(K115:N115="",I115&"・"&J115,IF(L115:N115="",I115&"・"&J115&"・"&K115,IF(M115:N115="",I115&"・"&J115&"・"&K115&"・"&L115,IF(N115="",I115&"・"&J115&"・"&K115&"・"&L115&"・"&M115,I115&"・"&J115&"・"&K115&"・"&L115&"・"&M115&"・"&N115)))))) -> 
B116: =データリスト!K$46 -> 分会委員長連絡会議 | C116: =IF(データリスト!$K54="","",データリスト!$K54) ->  | U116: =IF(I116:N116="","",IF(J116:N116="",I116,IF(K116:N116="",I116&"・"&J116,IF(L116:N116="",I116&"・"&J116&"・"&K116,IF(M116:N116="",I116&"・"&J116&"・"&K116&"・"&L116,IF(N116="",I116&"・"&J116&"・"&K116&"・"&L116&"・"&M116,I116&"・"&J116&"・"&K116&"・"&L116&"・"&M116&"・"&N116)))))) -> 
B117: =データリスト!K$46 -> 分会委員長連絡会議 | C117: =IF(データリスト!$K55="","",データリスト!$K55) ->  | U117: =IF(I117:N117="","",IF(J117:N117="",I117,IF(K117:N117="",I117&"・"&J117,IF(L117:N117="",I117&"・"&J117&"・"&K117,IF(M117:N117="",I117&"・"&J117&"・"&K117&"・"&L117,IF(N117="",I117&"・"&J117&"・"&K117&"・"&L117&"・"&M117,I117&"・"&J117&"・"&K117&"・"&L117&"・"&M117&"・"&N117)))))) -> 
B118: =データリスト!K$46 -> 分会委員長連絡会議 | C118: =IF(データリスト!$K56="","",データリスト!$K56) ->  | U118: =IF(I118:N118="","",IF(J118:N118="",I118,IF(K118:N118="",I118&"・"&J118,IF(L118:N118="",I118&"・"&J118&"・"&K118,IF(M118:N118="",I118&"・"&J118&"・"&K118&"・"&L118,IF(N118="",I118&"・"&J118&"・"&K118&"・"&L118&"・"&M118,I118&"・"&J118&"・"&K118&"・"&L118&"・"&M118&"・"&N118)))))) -> 
B119: =データリスト!K$46 -> 分会委員長連絡会議 | C119: =IF(データリスト!$K57="","",データリスト!$K57) ->  | U119: =IF(I119:N119="","",IF(J119:N119="",I119,IF(K119:N119="",I119&"・"&J119,IF(L119:N119="",I119&"・"&J119&"・"&K119,IF(M119:N119="",I119&"・"&J119&"・"&K119&"・"&L119,IF(N119="",I119&"・"&J119&"・"&K119&"・"&L119&"・"&M119,I119&"・"&J119&"・"&K119&"・"&L119&"・"&M119&"・"&N119)))))) -> 
B120: =データリスト!K$46 -> 分会委員長連絡会議 | C120: =IF(データリスト!$K58="","",データリスト!$K58) ->  | U120: =IF(I120:N120="","",IF(J120:N120="",I120,IF(K120:N120="",I120&"・"&J120,IF(L120:N120="",I120&"・"&J120&"・"&K120,IF(M120:N120="",I120&"・"&J120&"・"&K120&"・"&L120,IF(N120="",I120&"・"&J120&"・"&K120&"・"&L120&"・"&M120,I120&"・"&J120&"・"&K120&"・"&L120&"・"&M120&"・"&N120)))))) -> 
B121: =データリスト!K$46 -> 分会委員長連絡会議 | C121: =IF(データリスト!$K59="","",データリスト!$K59) ->  | U121: =IF(I121:N121="","",IF(J121:N121="",I121,IF(K121:N121="",I121&"・"&J121,IF(L121:N121="",I121&"・"&J121&"・"&K121,IF(M121:N121="",I121&"・"&J121&"・"&K121&"・"&L121,IF(N121="",I121&"・"&J121&"・"&K121&"・"&L121&"・"&M121,I121&"・"&J121&"・"&K121&"・"&L121&"・"&M121&"・"&N121)))))) -> 
B122: =データリスト!K$46 -> 分会委員長連絡会議 | C122: =IF(データリスト!$K60="","",データリスト!$K60) ->  | U122: =IF(I122:N122="","",IF(J122:N122="",I122,IF(K122:N122="",I122&"・"&J122,IF(L122:N122="",I122&"・"&J122&"・"&K122,IF(M122:N122="",I122&"・"&J122&"・"&K122&"・"&L122,IF(N122="",I122&"・"&J122&"・"&K122&"・"&L122&"・"&M122,I122&"・"&J122&"・"&K122&"・"&L122&"・"&M122&"・"&N122)))))) -> 
B123: =データリスト!K$46 -> 分会委員長連絡会議 | C123: =IF(データリスト!$K61="","",データリスト!$K61) ->  | U123: =IF(I123:N123="","",IF(J123:N123="",I123,IF(K123:N123="",I123&"・"&J123,IF(L123:N123="",I123&"・"&J123&"・"&K123,IF(M123:N123="",I123&"・"&J123&"・"&K123&"・"&L123,IF(N123="",I123&"・"&J123&"・"&K123&"・"&L123&"・"&M123,I123&"・"&J123&"・"&K123&"・"&L123&"・"&M123&"・"&N123)))))) -> 
B124: =データリスト!K$46 -> 分会委員長連絡会議 | C124: =IF(データリスト!$K62="","",データリスト!$K62) ->  | U124: =IF(I124:N124="","",IF(J124:N124="",I124,IF(K124:N124="",I124&"・"&J124,IF(L124:N124="",I124&"・"&J124&"・"&K124,IF(M124:N124="",I124&"・"&J124&"・"&K124&"・"&L124,IF(N124="",I124&"・"&J124&"・"&K124&"・"&L124&"・"&M124,I124&"・"&J124&"・"&K124&"・"&L124&"・"&M124&"・"&N124)))))) -> 
B125: =データリスト!K$46 -> 分会委員長連絡会議 | C125: =IF(データリスト!$K63="","",データリスト!$K63) ->  | U125: =IF(I125:N125="","",IF(J125:N125="",I125,IF(K125:N125="",I125&"・"&J125,IF(L125:N125="",I125&"・"&J125&"・"&K125,IF(M125:N125="",I125&"・"&J125&"・"&K125&"・"&L125,IF(N125="",I125&"・"&J125&"・"&K125&"・"&L125&"・"&M125,I125&"・"&J125&"・"&K125&"・"&L125&"・"&M125&"・"&N125)))))) -> 
B126: =データリスト!K$46 -> 分会委員長連絡会議 | C126: =IF(データリスト!$K64="","",データリスト!$K64) ->  | U126: =IF(I126:N126="","",IF(J126:N126="",I126,IF(K126:N126="",I126&"・"&J126,IF(L126:N126="",I126&"・"&J126&"・"&K126,IF(M126:N126="",I126&"・"&J126&"・"&K126&"・"&L126,IF(N126="",I126&"・"&J126&"・"&K126&"・"&L126&"・"&M126,I126&"・"&J126&"・"&K126&"・"&L126&"・"&M126&"・"&N126)))))) -> 
B127: =データリスト!K$46 -> 分会委員長連絡会議 | C127: =IF(データリスト!$K65="","",データリスト!$K65) ->  | U127: =IF(I127:N127="","",IF(J127:N127="",I127,IF(K127:N127="",I127&"・"&J127,IF(L127:N127="",I127&"・"&J127&"・"&K127,IF(M127:N127="",I127&"・"&J127&"・"&K127&"・"&L127,IF(N127="",I127&"・"&J127&"・"&K127&"・"&L127&"・"&M127,I127&"・"&J127&"・"&K127&"・"&L127&"・"&M127&"・"&N127)))))) -> 
B128: =データリスト!K$46 -> 分会委員長連絡会議 | C128: =IF(データリスト!$K66="","",データリスト!$K66) ->  | U128: =IF(I128:N128="","",IF(J128:N128="",I128,IF(K128:N128="",I128&"・"&J128,IF(L128:N128="",I128&"・"&J128&"・"&K128,IF(M128:N128="",I128&"・"&J128&"・"&K128&"・"&L128,IF(N128="",I128&"・"&J128&"・"&K128&"・"&L128&"・"&M128,I128&"・"&J128&"・"&K128&"・"&L128&"・"&M128&"・"&N128)))))) -> 
B129: =データリスト!L$46 -> 総合生活改善交渉 | C129: =IF(データリスト!$L47="","",データリスト!$L47) -> 開催周知 | U129: =IF(I129:N129="","",IF(J129:N129="",I129,IF(K129:N129="",I129&"・"&J129,IF(L129:N129="",I129&"・"&J129&"・"&K129,IF(M129:N129="",I129&"・"&J129&"・"&K129&"・"&L129,IF(N129="",I129&"・"&J129&"・"&K129&"・"&L129&"・"&M129,I129&"・"&J129&"・"&K129&"・"&L129&"・"&M129&"・"&N129)))))) -> 
B130: =データリスト!L$46 -> 総合生活改善交渉 | C130: =IF(データリスト!$L48="","",データリスト!$L48) -> 職場オルグ準備 | U130: =IF(I130:N130="","",IF(J130:N130="",I130,IF(K130:N130="",I130&"・"&J130,IF(L130:N130="",I130&"・"&J130&"・"&K130,IF(M130:N130="",I130&"・"&J130&"・"&K130&"・"&L130,IF(N130="",I130&"・"&J130&"・"&K130&"・"&L130&"・"&M130,I130&"・"&J130&"・"&K130&"・"&L130&"・"&M130&"・"&N130)))))) -> 
B131: =データリスト!L$46 -> 総合生活改善交渉 | C131: =IF(データリスト!$L49="","",データリスト!$L49) -> オルグの開催 | U131: =IF(I131:N131="","",IF(J131:N131="",I131,IF(K131:N131="",I131&"・"&J131,IF(L131:N131="",I131&"・"&J131&"・"&K131,IF(M131:N131="",I131&"・"&J131&"・"&K131&"・"&L131,IF(N131="",I131&"・"&J131&"・"&K131&"・"&L131&"・"&M131,I131&"・"&J131&"・"&K131&"・"&L131&"・"&M131&"・"&N131)))))) -> 
B132: =データリスト!L$46 -> 総合生活改善交渉 | C132: =IF(データリスト!$L50="","",データリスト!$L50) -> 意見集約 | U132: =IF(I132:N132="","",IF(J132:N132="",I132,IF(K132:N132="",I132&"・"&J132,IF(L132:N132="",I132&"・"&J132&"・"&K132,IF(M132:N132="",I132&"・"&J132&"・"&K132&"・"&L132,IF(N132="",I132&"・"&J132&"・"&K132&"・"&L132&"・"&M132,I132&"・"&J132&"・"&K132&"・"&L132&"・"&M132&"・"&N132)))))) -> 
B133: =データリスト!L$46 -> 総合生活改善交渉 | C133: =IF(データリスト!$L51="","",データリスト!$L51) -> スト権批准投票 | U133: =IF(I133:N133="","",IF(J133:N133="",I133,IF(K133:N133="",I133&"・"&J133,IF(L133:N133="",I133&"・"&J133&"・"&K133,IF(M133:N133="",I133&"・"&J133&"・"&K133&"・"&L133,IF(N133="",I133&"・"&J133&"・"&K133&"・"&L133&"・"&M133,I133&"・"&J133&"・"&K133&"・"&L133&"・"&M133&"・"&N133)))))) -> 
B134: =データリスト!L$46 -> 総合生活改善交渉 | C134: =IF(データリスト!$L52="","",データリスト!$L52) -> スト権報告 | U134: =IF(I134:N134="","",IF(J134:N134="",I134,IF(K134:N134="",I134&"・"&J134,IF(L134:N134="",I134&"・"&J134&"・"&K134,IF(M134:N134="",I134&"・"&J134&"・"&K134&"・"&L134,IF(N134="",I134&"・"&J134&"・"&K134&"・"&L134&"・"&M134,I134&"・"&J134&"・"&K134&"・"&L134&"・"&M134&"・"&N134)))))) -> 
B135: =データリスト!L$46 -> 総合生活改善交渉 | C135: =IF(データリスト!$L53="","",データリスト!$L53) -> 地区交渉推進会議 | U135: =IF(I135:N135="","",IF(J135:N135="",I135,IF(K135:N135="",I135&"・"&J135,IF(L135:N135="",I135&"・"&J135&"・"&K135,IF(M135:N135="",I135&"・"&J135&"・"&K135&"・"&L135,IF(N135="",I135&"・"&J135&"・"&K135&"・"&L135&"・"&M135,I135&"・"&J135&"・"&K135&"・"&L135&"・"&M135&"・"&N135)))))) -> 
B136: =データリスト!L$46 -> 総合生活改善交渉 | C136: =IF(データリスト!$L54="","",データリスト!$L54) -> 分会執行委員会(内容周知) | U136: =IF(I136:N136="","",IF(J136:N136="",I136,IF(K136:N136="",I136&"・"&J136,IF(L136:N136="",I136&"・"&J136&"・"&K136,IF(M136:N136="",I136&"・"&J136&"・"&K136&"・"&L136,IF(N136="",I136&"・"&J136&"・"&K136&"・"&L136&"・"&M136,I136&"・"&J136&"・"&K136&"・"&L136&"・"&M136&"・"&N136)))))) -> 
B137: =データリスト!L$46 -> 総合生活改善交渉 | C137: =IF(データリスト!$L55="","",データリスト!$L55) -> 職場集会(内容周知) | U137: =IF(I137:N137="","",IF(J137:N137="",I137,IF(K137:N137="",I137&"・"&J137,IF(L137:N137="",I137&"・"&J137&"・"&K137,IF(M137:N137="",I137&"・"&J137&"・"&K137&"・"&L137,IF(N137="",I137&"・"&J137&"・"&K137&"・"&L137&"・"&M137,I137&"・"&J137&"・"&K137&"・"&L137&"・"&M137&"・"&N137)))))) -> 
B138: =データリスト!L$46 -> 総合生活改善交渉 | C138: =IF(データリスト!$L56="","",データリスト!$L56) ->  | U138: =IF(I138:N138="","",IF(J138:N138="",I138,IF(K138:N138="",I138&"・"&J138,IF(L138:N138="",I138&"・"&J138&"・"&K138,IF(M138:N138="",I138&"・"&J138&"・"&K138&"・"&L138,IF(N138="",I138&"・"&J138&"・"&K138&"・"&L138&"・"&M138,I138&"・"&J138&"・"&K138&"・"&L138&"・"&M138&"・"&N138)))))) -> 
B139: =データリスト!L$46 -> 総合生活改善交渉 | C139: =IF(データリスト!$L57="","",データリスト!$L57) ->  | U139: =IF(I139:N139="","",IF(J139:N139="",I139,IF(K139:N139="",I139&"・"&J139,IF(L139:N139="",I139&"・"&J139&"・"&K139,IF(M139:N139="",I139&"・"&J139&"・"&K139&"・"&L139,IF(N139="",I139&"・"&J139&"・"&K139&"・"&L139&"・"&M139,I139&"・"&J139&"・"&K139&"・"&L139&"・"&M139&"・"&N139)))))) -> 
B140: =データリスト!L$46 -> 総合生活改善交渉 | C140: =IF(データリスト!$L58="","",データリスト!$L58) ->  | U140: =IF(I140:N140="","",IF(J140:N140="",I140,IF(K140:N140="",I140&"・"&J140,IF(L140:N140="",I140&"・"&J140&"・"&K140,IF(M140:N140="",I140&"・"&J140&"・"&K140&"・"&L140,IF(N140="",I140&"・"&J140&"・"&K140&"・"&L140&"・"&M140,I140&"・"&J140&"・"&K140&"・"&L140&"・"&M140&"・"&N140)))))) -> 
B141: =データリスト!L$46 -> 総合生活改善交渉 | C141: =IF(データリスト!$L59="","",データリスト!$L59) ->  | U141: =IF(I141:N141="","",IF(J141:N141="",I141,IF(K141:N141="",I141&"・"&J141,IF(L141:N141="",I141&"・"&J141&"・"&K141,IF(M141:N141="",I141&"・"&J141&"・"&K141&"・"&L141,IF(N141="",I141&"・"&J141&"・"&K141&"・"&L141&"・"&M141,I141&"・"&J141&"・"&K141&"・"&L141&"・"&M141&"・"&N141)))))) -> 
B142: =データリスト!L$46 -> 総合生活改善交渉 | C142: =IF(データリスト!$L60="","",データリスト!$L60) ->  | U142: =IF(I142:N142="","",IF(J142:N142="",I142,IF(K142:N142="",I142&"・"&J142,IF(L142:N142="",I142&"・"&J142&"・"&K142,IF(M142:N142="",I142&"・"&J142&"・"&K142&"・"&L142,IF(N142="",I142&"・"&J142&"・"&K142&"・"&L142&"・"&M142,I142&"・"&J142&"・"&K142&"・"&L142&"・"&M142&"・"&N142)))))) -> 
B143: =データリスト!L$46 -> 総合生活改善交渉 | C143: =IF(データリスト!$L61="","",データリスト!$L61) ->  | U143: =IF(I143:N143="","",IF(J143:N143="",I143,IF(K143:N143="",I143&"・"&J143,IF(L143:N143="",I143&"・"&J143&"・"&K143,IF(M143:N143="",I143&"・"&J143&"・"&K143&"・"&L143,IF(N143="",I143&"・"&J143&"・"&K143&"・"&L143&"・"&M143,I143&"・"&J143&"・"&K143&"・"&L143&"・"&M143&"・"&N143)))))) -> 
B144: =データリスト!L$46 -> 総合生活改善交渉 | C144: =IF(データリスト!$L62="","",データリスト!$L62) ->  | U144: =IF(I144:N144="","",IF(J144:N144="",I144,IF(K144:N144="",I144&"・"&J144,IF(L144:N144="",I144&"・"&J144&"・"&K144,IF(M144:N144="",I144&"・"&J144&"・"&K144&"・"&L144,IF(N144="",I144&"・"&J144&"・"&K144&"・"&L144&"・"&M144,I144&"・"&J144&"・"&K144&"・"&L144&"・"&M144&"・"&N144)))))) -> 
B145: =データリスト!L$46 -> 総合生活改善交渉 | C145: =IF(データリスト!$L63="","",データリスト!$L63) ->  | U145: =IF(I145:N145="","",IF(J145:N145="",I145,IF(K145:N145="",I145&"・"&J145,IF(L145:N145="",I145&"・"&J145&"・"&K145,IF(M145:N145="",I145&"・"&J145&"・"&K145&"・"&L145,IF(N145="",I145&"・"&J145&"・"&K145&"・"&L145&"・"&M145,I145&"・"&J145&"・"&K145&"・"&L145&"・"&M145&"・"&N145)))))) -> 
B146: =データリスト!L$46 -> 総合生活改善交渉 | C146: =IF(データリスト!$L64="","",データリスト!$L64) ->  | U146: =IF(I146:N146="","",IF(J146:N146="",I146,IF(K146:N146="",I146&"・"&J146,IF(L146:N146="",I146&"・"&J146&"・"&K146,IF(M146:N146="",I146&"・"&J146&"・"&K146&"・"&L146,IF(N146="",I146&"・"&J146&"・"&K146&"・"&L146&"・"&M146,I146&"・"&J146&"・"&K146&"・"&L146&"・"&M146&"・"&N146)))))) -> 
B147: =データリスト!L$46 -> 総合生活改善交渉 | C147: =IF(データリスト!$L65="","",データリスト!$L65) ->  | U147: =IF(I147:N147="","",IF(J147:N147="",I147,IF(K147:N147="",I147&"・"&J147,IF(L147:N147="",I147&"・"&J147&"・"&K147,IF(M147:N147="",I147&"・"&J147&"・"&K147&"・"&L147,IF(N147="",I147&"・"&J147&"・"&K147&"・"&L147&"・"&M147,I147&"・"&J147&"・"&K147&"・"&L147&"・"&M147&"・"&N147)))))) -> 
B148: =データリスト!L$46 -> 総合生活改善交渉 | C148: =IF(データリスト!$L66="","",データリスト!$L66) ->  | U148: =IF(I148:N148="","",IF(J148:N148="",I148,IF(K148:N148="",I148&"・"&J148,IF(L148:N148="",I148&"・"&J148&"・"&K148,IF(M148:N148="",I148&"・"&J148&"・"&K148&"・"&L148,IF(N148="",I148&"・"&J148&"・"&K148&"・"&L148&"・"&M148,I148&"・"&J148&"・"&K148&"・"&L148&"・"&M148&"・"&N148)))))) -> 
B149: =データリスト!M$46 -> 支部青年委員会総会 | C149: =IF(データリスト!$M47="","",データリスト!$M47) -> 計画・日程調整 | U149: =IF(I149:N149="","",IF(J149:N149="",I149,IF(K149:N149="",I149&"・"&J149,IF(L149:N149="",I149&"・"&J149&"・"&K149,IF(M149:N149="",I149&"・"&J149&"・"&K149&"・"&L149,IF(N149="",I149&"・"&J149&"・"&K149&"・"&L149&"・"&M149,I149&"・"&J149&"・"&K149&"・"&L149&"・"&M149&"・"&N149)))))) -> 
B150: =データリスト!M$46 -> 支部青年委員会総会 | C150: =IF(データリスト!$M48="","",データリスト!$M48) -> 開催周知 | U150: =IF(I150:N150="","",IF(J150:N150="",I150,IF(K150:N150="",I150&"・"&J150,IF(L150:N150="",I150&"・"&J150&"・"&K150,IF(M150:N150="",I150&"・"&J150&"・"&K150&"・"&L150,IF(N150="",I150&"・"&J150&"・"&K150&"・"&L150&"・"&M150,I150&"・"&J150&"・"&K150&"・"&L150&"・"&M150&"・"&N150)))))) -> 
B151: =データリスト!M$46 -> 支部青年委員会総会 | C151: =IF(データリスト!$M49="","",データリスト!$M49) -> 事前準備(資料作成) | U151: =IF(I151:N151="","",IF(J151:N151="",I151,IF(K151:N151="",I151&"・"&J151,IF(L151:N151="",I151&"・"&J151&"・"&K151,IF(M151:N151="",I151&"・"&J151&"・"&K151&"・"&L151,IF(N151="",I151&"・"&J151&"・"&K151&"・"&L151&"・"&M151,I151&"・"&J151&"・"&K151&"・"&L151&"・"&M151&"・"&N151)))))) -> 
B152: =データリスト!M$46 -> 支部青年委員会総会 | C152: =IF(データリスト!$M50="","",データリスト!$M50) -> 議長・進行 | U152: =IF(I152:N152="","",IF(J152:N152="",I152,IF(K152:N152="",I152&"・"&J152,IF(L152:N152="",I152&"・"&J152&"・"&K152,IF(M152:N152="",I152&"・"&J152&"・"&K152&"・"&L152,IF(N152="",I152&"・"&J152&"・"&K152&"・"&L152&"・"&M152,I152&"・"&J152&"・"&K152&"・"&L152&"・"&M152&"・"&N152)))))) -> 
B153: =データリスト!M$46 -> 支部青年委員会総会 | C153: =IF(データリスト!$M51="","",データリスト!$M51) -> 確認事項周知 | U153: =IF(I153:N153="","",IF(J153:N153="",I153,IF(K153:N153="",I153&"・"&J153,IF(L153:N153="",I153&"・"&J153&"・"&K153,IF(M153:N153="",I153&"・"&J153&"・"&K153&"・"&L153,IF(N153="",I153&"・"&J153&"・"&K153&"・"&L153&"・"&M153,I153&"・"&J153&"・"&K153&"・"&L153&"・"&M153&"・"&N153)))))) -> 
B154: =データリスト!M$46 -> 支部青年委員会総会 | C154: =IF(データリスト!$M52="","",データリスト!$M52) -> 報告（支部・本部へ報告） | U154: =IF(I154:N154="","",IF(J154:N154="",I154,IF(K154:N154="",I154&"・"&J154,IF(L154:N154="",I154&"・"&J154&"・"&K154,IF(M154:N154="",I154&"・"&J154&"・"&K154&"・"&L154,IF(N154="",I154&"・"&J154&"・"&K154&"・"&L154&"・"&M154,I154&"・"&J154&"・"&K154&"・"&L154&"・"&M154&"・"&N154)))))) -> 
B155: =データリスト!M$46 -> 支部青年委員会総会 | C155: =IF(データリスト!$M53="","",データリスト!$M53) ->  | U155: =IF(I155:N155="","",IF(J155:N155="",I155,IF(K155:N155="",I155&"・"&J155,IF(L155:N155="",I155&"・"&J155&"・"&K155,IF(M155:N155="",I155&"・"&J155&"・"&K155&"・"&L155,IF(N155="",I155&"・"&J155&"・"&K155&"・"&L155&"・"&M155,I155&"・"&J155&"・"&K155&"・"&L155&"・"&M155&"・"&N155)))))) -> 
B156: =データリスト!M$46 -> 支部青年委員会総会 | C156: =IF(データリスト!$M54="","",データリスト!$M54) ->  | U156: =IF(I156:N156="","",IF(J156:N156="",I156,IF(K156:N156="",I156&"・"&J156,IF(L156:N156="",I156&"・"&J156&"・"&K156,IF(M156:N156="",I156&"・"&J156&"・"&K156&"・"&L156,IF(N156="",I156&"・"&J156&"・"&K156&"・"&L156&"・"&M156,I156&"・"&J156&"・"&K156&"・"&L156&"・"&M156&"・"&N156)))))) -> 
B157: =データリスト!M$46 -> 支部青年委員会総会 | C157: =IF(データリスト!$M55="","",データリスト!$M55) ->  | U157: =IF(I157:N157="","",IF(J157:N157="",I157,IF(K157:N157="",I157&"・"&J157,IF(L157:N157="",I157&"・"&J157&"・"&K157,IF(M157:N157="",I157&"・"&J157&"・"&K157&"・"&L157,IF(N157="",I157&"・"&J157&"・"&K157&"・"&L157&"・"&M157,I157&"・"&J157&"・"&K157&"・"&L157&"・"&M157&"・"&N157)))))) -> 
B158: =データリスト!M$46 -> 支部青年委員会総会 | C158: =IF(データリスト!$M56="","",データリスト!$M56) ->  | U158: =IF(I158:N158="","",IF(J158:N158="",I158,IF(K158:N158="",I158&"・"&J158,IF(L158:N158="",I158&"・"&J158&"・"&K158,IF(M158:N158="",I158&"・"&J158&"・"&K158&"・"&L158,IF(N158="",I158&"・"&J158&"・"&K158&"・"&L158&"・"&M158,I158&"・"&J158&"・"&K158&"・"&L158&"・"&M158&"・"&N158)))))) -> 
B159: =データリスト!M$46 -> 支部青年委員会総会 | C159: =IF(データリスト!$M57="","",データリスト!$M57) ->  | U159: =IF(I159:N159="","",IF(J159:N159="",I159,IF(K159:N159="",I159&"・"&J159,IF(L159:N159="",I159&"・"&J159&"・"&K159,IF(M159:N159="",I159&"・"&J159&"・"&K159&"・"&L159,IF(N159="",I159&"・"&J159&"・"&K159&"・"&L159&"・"&M159,I159&"・"&J159&"・"&K159&"・"&L159&"・"&M159&"・"&N159)))))) -> 
B160: =データリスト!M$46 -> 支部青年委員会総会 | C160: =IF(データリスト!$M58="","",データリスト!$M58) ->  | U160: =IF(I160:N160="","",IF(J160:N160="",I160,IF(K160:N160="",I160&"・"&J160,IF(L160:N160="",I160&"・"&J160&"・"&K160,IF(M160:N160="",I160&"・"&J160&"・"&K160&"・"&L160,IF(N160="",I160&"・"&J160&"・"&K160&"・"&L160&"・"&M160,I160&"・"&J160&"・"&K160&"・"&L160&"・"&M160&"・"&N160)))))) -> 
B161: =データリスト!M$46 -> 支部青年委員会総会 | C161: =IF(データリスト!$M59="","",データリスト!$M59) ->  | U161: =IF(I161:N161="","",IF(J161:N161="",I161,IF(K161:N161="",I161&"・"&J161,IF(L161:N161="",I161&"・"&J161&"・"&K161,IF(M161:N161="",I161&"・"&J161&"・"&K161&"・"&L161,IF(N161="",I161&"・"&J161&"・"&K161&"・"&L161&"・"&M161,I161&"・"&J161&"・"&K161&"・"&L161&"・"&M161&"・"&N161)))))) -> 
B162: =データリスト!M$46 -> 支部青年委員会総会 | C162: =IF(データリスト!$M60="","",データリスト!$M60) ->  | U162: =IF(I162:N162="","",IF(J162:N162="",I162,IF(K162:N162="",I162&"・"&J162,IF(L162:N162="",I162&"・"&J162&"・"&K162,IF(M162:N162="",I162&"・"&J162&"・"&K162&"・"&L162,IF(N162="",I162&"・"&J162&"・"&K162&"・"&L162&"・"&M162,I162&"・"&J162&"・"&K162&"・"&L162&"・"&M162&"・"&N162)))))) -> 
B163: =データリスト!M$46 -> 支部青年委員会総会 | C163: =IF(データリスト!$M61="","",データリスト!$M61) ->  | U163: =IF(I163:N163="","",IF(J163:N163="",I163,IF(K163:N163="",I163&"・"&J163,IF(L163:N163="",I163&"・"&J163&"・"&K163,IF(M163:N163="",I163&"・"&J163&"・"&K163&"・"&L163,IF(N163="",I163&"・"&J163&"・"&K163&"・"&L163&"・"&M163,I163&"・"&J163&"・"&K163&"・"&L163&"・"&M163&"・"&N163)))))) -> 
B164: =データリスト!M$46 -> 支部青年委員会総会 | C164: =IF(データリスト!$M62="","",データリスト!$M62) ->  | U164: =IF(I164:N164="","",IF(J164:N164="",I164,IF(K164:N164="",I164&"・"&J164,IF(L164:N164="",I164&"・"&J164&"・"&K164,IF(M164:N164="",I164&"・"&J164&"・"&K164&"・"&L164,IF(N164="",I164&"・"&J164&"・"&K164&"・"&L164&"・"&M164,I164&"・"&J164&"・"&K164&"・"&L164&"・"&M164&"・"&N164)))))) -> 
B165: =データリスト!M$46 -> 支部青年委員会総会 | C165: =IF(データリスト!$M63="","",データリスト!$M63) ->  | U165: =IF(I165:N165="","",IF(J165:N165="",I165,IF(K165:N165="",I165&"・"&J165,IF(L165:N165="",I165&"・"&J165&"・"&K165,IF(M165:N165="",I165&"・"&J165&"・"&K165&"・"&L165,IF(N165="",I165&"・"&J165&"・"&K165&"・"&L165&"・"&M165,I165&"・"&J165&"・"&K165&"・"&L165&"・"&M165&"・"&N165)))))) -> 
B166: =データリスト!M$46 -> 支部青年委員会総会 | C166: =IF(データリスト!$M64="","",データリスト!$M64) ->  | U166: =IF(I166:N166="","",IF(J166:N166="",I166,IF(K166:N166="",I166&"・"&J166,IF(L166:N166="",I166&"・"&J166&"・"&K166,IF(M166:N166="",I166&"・"&J166&"・"&K166&"・"&L166,IF(N166="",I166&"・"&J166&"・"&K166&"・"&L166&"・"&M166,I166&"・"&J166&"・"&K166&"・"&L166&"・"&M166&"・"&N166)))))) -> 
B167: =データリスト!M$46 -> 支部青年委員会総会 | C167: =IF(データリスト!$M65="","",データリスト!$M65) ->  | U167: =IF(I167:N167="","",IF(J167:N167="",I167,IF(K167:N167="",I167&"・"&J167,IF(L167:N167="",I167&"・"&J167&"・"&K167,IF(M167:N167="",I167&"・"&J167&"・"&K167&"・"&L167,IF(N167="",I167&"・"&J167&"・"&K167&"・"&L167&"・"&M167,I167&"・"&J167&"・"&K167&"・"&L167&"・"&M167&"・"&N167)))))) -> 
B168: =データリスト!M$46 -> 支部青年委員会総会 | C168: =IF(データリスト!$M66="","",データリスト!$M66) ->  | U168: =IF(I168:N168="","",IF(J168:N168="",I168,IF(K168:N168="",I168&"・"&J168,IF(L168:N168="",I168&"・"&J168&"・"&K168,IF(M168:N168="",I168&"・"&J168&"・"&K168&"・"&L168,IF(N168="",I168&"・"&J168&"・"&K168&"・"&L168&"・"&M168,I168&"・"&J168&"・"&K168&"・"&L168&"・"&M168&"・"&N168)))))) -> 
B169: =データリスト!N$46 -> 支部・各種委員会・協議会 | C169: =IF(データリスト!$N47="","",データリスト!$N47) -> 支社・支部労使協議会 | U169: =IF(I169:N169="","",IF(J169:N169="",I169,IF(K169:N169="",I169&"・"&J169,IF(L169:N169="",I169&"・"&J169&"・"&K169,IF(M169:N169="",I169&"・"&J169&"・"&K169&"・"&L169,IF(N169="",I169&"・"&J169&"・"&K169&"・"&L169&"・"&M169,I169&"・"&J169&"・"&K169&"・"&L169&"・"&M169&"・"&N169)))))) -> 
B170: =データリスト!N$46 -> 支部・各種委員会・協議会 | C170: =IF(データリスト!$N48="","",データリスト!$N48) -> 支社・支部安全衛生委員会協議会 | U170: =IF(I170:N170="","",IF(J170:N170="",I170,IF(K170:N170="",I170&"・"&J170,IF(L170:N170="",I170&"・"&J170&"・"&K170,IF(M170:N170="",I170&"・"&J170&"・"&K170&"・"&L170,IF(N170="",I170&"・"&J170&"・"&K170&"・"&L170&"・"&M170,I170&"・"&J170&"・"&K170&"・"&L170&"・"&M170&"・"&N170)))))) -> 
B171: =データリスト!N$46 -> 支部・各種委員会・協議会 | C171: =IF(データリスト!$N49="","",データリスト!$N49) -> WLB支社委員会 | U171: =IF(I171:N171="","",IF(J171:N171="",I171,IF(K171:N171="",I171&"・"&J171,IF(L171:N171="",I171&"・"&J171&"・"&K171,IF(M171:N171="",I171&"・"&J171&"・"&K171&"・"&L171,IF(N171="",I171&"・"&J171&"・"&K171&"・"&L171&"・"&M171,I171&"・"&J171&"・"&K171&"・"&L171&"・"&M171&"・"&N171)))))) -> 
B172: =データリスト!N$46 -> 支部・各種委員会・協議会 | C172: =IF(データリスト!$N50="","",データリスト!$N50) ->  | U172: =IF(I172:N172="","",IF(J172:N172="",I172,IF(K172:N172="",I172&"・"&J172,IF(L172:N172="",I172&"・"&J172&"・"&K172,IF(M172:N172="",I172&"・"&J172&"・"&K172&"・"&L172,IF(N172="",I172&"・"&J172&"・"&K172&"・"&L172&"・"&M172,I172&"・"&J172&"・"&K172&"・"&L172&"・"&M172&"・"&N172)))))) -> 
B173: =データリスト!N$46 -> 支部・各種委員会・協議会 | C173: =IF(データリスト!$N51="","",データリスト!$N51) ->  | U173: =IF(I173:N173="","",IF(J173:N173="",I173,IF(K173:N173="",I173&"・"&J173,IF(L173:N173="",I173&"・"&J173&"・"&K173,IF(M173:N173="",I173&"・"&J173&"・"&K173&"・"&L173,IF(N173="",I173&"・"&J173&"・"&K173&"・"&L173&"・"&M173,I173&"・"&J173&"・"&K173&"・"&L173&"・"&M173&"・"&N173)))))) -> 
B174: =データリスト!N$46 -> 支部・各種委員会・協議会 | C174: =IF(データリスト!$N52="","",データリスト!$N52) ->  | U174: =IF(I174:N174="","",IF(J174:N174="",I174,IF(K174:N174="",I174&"・"&J174,IF(L174:N174="",I174&"・"&J174&"・"&K174,IF(M174:N174="",I174&"・"&J174&"・"&K174&"・"&L174,IF(N174="",I174&"・"&J174&"・"&K174&"・"&L174&"・"&M174,I174&"・"&J174&"・"&K174&"・"&L174&"・"&M174&"・"&N174)))))) -> 
B175: =データリスト!N$46 -> 支部・各種委員会・協議会 | C175: =IF(データリスト!$N53="","",データリスト!$N53) ->  | U175: =IF(I175:N175="","",IF(J175:N175="",I175,IF(K175:N175="",I175&"・"&J175,IF(L175:N175="",I175&"・"&J175&"・"&K175,IF(M175:N175="",I175&"・"&J175&"・"&K175&"・"&L175,IF(N175="",I175&"・"&J175&"・"&K175&"・"&L175&"・"&M175,I175&"・"&J175&"・"&K175&"・"&L175&"・"&M175&"・"&N175)))))) -> 
B176: =データリスト!N$46 -> 支部・各種委員会・協議会 | C176: =IF(データリスト!$N54="","",データリスト!$N54) ->  | U176: =IF(I176:N176="","",IF(J176:N176="",I176,IF(K176:N176="",I176&"・"&J176,IF(L176:N176="",I176&"・"&J176&"・"&K176,IF(M176:N176="",I176&"・"&J176&"・"&K176&"・"&L176,IF(N176="",I176&"・"&J176&"・"&K176&"・"&L176&"・"&M176,I176&"・"&J176&"・"&K176&"・"&L176&"・"&M176&"・"&N176)))))) -> 
B177: =データリスト!N$46 -> 支部・各種委員会・協議会 | C177: =IF(データリスト!$N55="","",データリスト!$N55) ->  | U177: =IF(I177:N177="","",IF(J177:N177="",I177,IF(K177:N177="",I177&"・"&J177,IF(L177:N177="",I177&"・"&J177&"・"&K177,IF(M177:N177="",I177&"・"&J177&"・"&K177&"・"&L177,IF(N177="",I177&"・"&J177&"・"&K177&"・"&L177&"・"&M177,I177&"・"&J177&"・"&K177&"・"&L177&"・"&M177&"・"&N177)))))) -> 
B178: =データリスト!N$46 -> 支部・各種委員会・協議会 | C178: =IF(データリスト!$N56="","",データリスト!$N56) ->  | U178: =IF(I178:N178="","",IF(J178:N178="",I178,IF(K178:N178="",I178&"・"&J178,IF(L178:N178="",I178&"・"&J178&"・"&K178,IF(M178:N178="",I178&"・"&J178&"・"&K178&"・"&L178,IF(N178="",I178&"・"&J178&"・"&K178&"・"&L178&"・"&M178,I178&"・"&J178&"・"&K178&"・"&L178&"・"&M178&"・"&N178)))))) -> 
B179: =データリスト!N$46 -> 支部・各種委員会・協議会 | C179: =IF(データリスト!$N57="","",データリスト!$N57) ->  | U179: =IF(I179:N179="","",IF(J179:N179="",I179,IF(K179:N179="",I179&"・"&J179,IF(L179:N179="",I179&"・"&J179&"・"&K179,IF(M179:N179="",I179&"・"&J179&"・"&K179&"・"&L179,IF(N179="",I179&"・"&J179&"・"&K179&"・"&L179&"・"&M179,I179&"・"&J179&"・"&K179&"・"&L179&"・"&M179&"・"&N179)))))) -> 
B180: =データリスト!N$46 -> 支部・各種委員会・協議会 | C180: =IF(データリスト!$N58="","",データリスト!$N58) ->  | U180: =IF(I180:N180="","",IF(J180:N180="",I180,IF(K180:N180="",I180&"・"&J180,IF(L180:N180="",I180&"・"&J180&"・"&K180,IF(M180:N180="",I180&"・"&J180&"・"&K180&"・"&L180,IF(N180="",I180&"・"&J180&"・"&K180&"・"&L180&"・"&M180,I180&"・"&J180&"・"&K180&"・"&L180&"・"&M180&"・"&N180)))))) -> 
B181: =データリスト!N$46 -> 支部・各種委員会・協議会 | C181: =IF(データリスト!$N59="","",データリスト!$N59) ->  | U181: =IF(I181:N181="","",IF(J181:N181="",I181,IF(K181:N181="",I181&"・"&J181,IF(L181:N181="",I181&"・"&J181&"・"&K181,IF(M181:N181="",I181&"・"&J181&"・"&K181&"・"&L181,IF(N181="",I181&"・"&J181&"・"&K181&"・"&L181&"・"&M181,I181&"・"&J181&"・"&K181&"・"&L181&"・"&M181&"・"&N181)))))) -> 
B182: =データリスト!N$46 -> 支部・各種委員会・協議会 | C182: =IF(データリスト!$N60="","",データリスト!$N60) ->  | U182: =IF(I182:N182="","",IF(J182:N182="",I182,IF(K182:N182="",I182&"・"&J182,IF(L182:N182="",I182&"・"&J182&"・"&K182,IF(M182:N182="",I182&"・"&J182&"・"&K182&"・"&L182,IF(N182="",I182&"・"&J182&"・"&K182&"・"&L182&"・"&M182,I182&"・"&J182&"・"&K182&"・"&L182&"・"&M182&"・"&N182)))))) -> 
B183: =データリスト!N$46 -> 支部・各種委員会・協議会 | C183: =IF(データリスト!$N61="","",データリスト!$N61) ->  | U183: =IF(I183:N183="","",IF(J183:N183="",I183,IF(K183:N183="",I183&"・"&J183,IF(L183:N183="",I183&"・"&J183&"・"&K183,IF(M183:N183="",I183&"・"&J183&"・"&K183&"・"&L183,IF(N183="",I183&"・"&J183&"・"&K183&"・"&L183&"・"&M183,I183&"・"&J183&"・"&K183&"・"&L183&"・"&M183&"・"&N183)))))) -> 
B184: =データリスト!N$46 -> 支部・各種委員会・協議会 | C184: =IF(データリスト!$N62="","",データリスト!$N62) ->  | U184: =IF(I184:N184="","",IF(J184:N184="",I184,IF(K184:N184="",I184&"・"&J184,IF(L184:N184="",I184&"・"&J184&"・"&K184,IF(M184:N184="",I184&"・"&J184&"・"&K184&"・"&L184,IF(N184="",I184&"・"&J184&"・"&K184&"・"&L184&"・"&M184,I184&"・"&J184&"・"&K184&"・"&L184&"・"&M184&"・"&N184)))))) -> 
B185: =データリスト!N$46 -> 支部・各種委員会・協議会 | C185: =IF(データリスト!$N63="","",データリスト!$N63) ->  | U185: =IF(I185:N185="","",IF(J185:N185="",I185,IF(K185:N185="",I185&"・"&J185,IF(L185:N185="",I185&"・"&J185&"・"&K185,IF(M185:N185="",I185&"・"&J185&"・"&K185&"・"&L185,IF(N185="",I185&"・"&J185&"・"&K185&"・"&L185&"・"&M185,I185&"・"&J185&"・"&K185&"・"&L185&"・"&M185&"・"&N185)))))) -> 
B186: =データリスト!N$46 -> 支部・各種委員会・協議会 | C186: =IF(データリスト!$N64="","",データリスト!$N64) ->  | U186: =IF(I186:N186="","",IF(J186:N186="",I186,IF(K186:N186="",I186&"・"&J186,IF(L186:N186="",I186&"・"&J186&"・"&K186,IF(M186:N186="",I186&"・"&J186&"・"&K186&"・"&L186,IF(N186="",I186&"・"&J186&"・"&K186&"・"&L186&"・"&M186,I186&"・"&J186&"・"&K186&"・"&L186&"・"&M186&"・"&N186)))))) -> 
B187: =データリスト!N$46 -> 支部・各種委員会・協議会 | C187: =IF(データリスト!$N65="","",データリスト!$N65) ->  | U187: =IF(I187:N187="","",IF(J187:N187="",I187,IF(K187:N187="",I187&"・"&J187,IF(L187:N187="",I187&"・"&J187&"・"&K187,IF(M187:N187="",I187&"・"&J187&"・"&K187&"・"&L187,IF(N187="",I187&"・"&J187&"・"&K187&"・"&L187&"・"&M187,I187&"・"&J187&"・"&K187&"・"&L187&"・"&M187&"・"&N187)))))) -> 
B188: =データリスト!N$46 -> 支部・各種委員会・協議会 | C188: =IF(データリスト!$N66="","",データリスト!$N66) ->  | U188: =IF(I188:N188="","",IF(J188:N188="",I188,IF(K188:N188="",I188&"・"&J188,IF(L188:N188="",I188&"・"&J188&"・"&K188,IF(M188:N188="",I188&"・"&J188&"・"&K188&"・"&L188,IF(N188="",I188&"・"&J188&"・"&K188&"・"&L188&"・"&M188,I188&"・"&J188&"・"&K188&"・"&L188&"・"&M188&"・"&N188)))))) -> 
B189: =データリスト!O$46 -> 会社提案・協議申入れ | C189: =IF(データリスト!$O47="","",データリスト!$O47) -> 申入れ内容の周知 | U189: =IF(I189:N189="","",IF(J189:N189="",I189,IF(K189:N189="",I189&"・"&J189,IF(L189:N189="",I189&"・"&J189&"・"&K189,IF(M189:N189="",I189&"・"&J189&"・"&K189&"・"&L189,IF(N189="",I189&"・"&J189&"・"&K189&"・"&L189&"・"&M189,I189&"・"&J189&"・"&K189&"・"&L189&"・"&M189&"・"&N189)))))) -> 
B190: =データリスト!O$46 -> 会社提案・協議申入れ | C190: =IF(データリスト!$O48="","",データリスト!$O48) -> 分会集会の開催 | U190: =IF(I190:N190="","",IF(J190:N190="",I190,IF(K190:N190="",I190&"・"&J190,IF(L190:N190="",I190&"・"&J190&"・"&K190,IF(M190:N190="",I190&"・"&J190&"・"&K190&"・"&L190,IF(N190="",I190&"・"&J190&"・"&K190&"・"&L190&"・"&M190,I190&"・"&J190&"・"&K190&"・"&L190&"・"&M190&"・"&N190)))))) -> 
B191: =データリスト!O$46 -> 会社提案・協議申入れ | C191: =IF(データリスト!$O49="","",データリスト!$O49) -> 意見集約 | U191: =IF(I191:N191="","",IF(J191:N191="",I191,IF(K191:N191="",I191&"・"&J191,IF(L191:N191="",I191&"・"&J191&"・"&K191,IF(M191:N191="",I191&"・"&J191&"・"&K191&"・"&L191,IF(N191="",I191&"・"&J191&"・"&K191&"・"&L191&"・"&M191,I191&"・"&J191&"・"&K191&"・"&L191&"・"&M191&"・"&N191)))))) -> 
B192: =データリスト!O$46 -> 会社提案・協議申入れ | C192: =IF(データリスト!$O50="","",データリスト!$O50) -> 報告 | U192: =IF(I192:N192="","",IF(J192:N192="",I192,IF(K192:N192="",I192&"・"&J192,IF(L192:N192="",I192&"・"&J192&"・"&K192,IF(M192:N192="",I192&"・"&J192&"・"&K192&"・"&L192,IF(N192="",I192&"・"&J192&"・"&K192&"・"&L192&"・"&M192,I192&"・"&J192&"・"&K192&"・"&L192&"・"&M192&"・"&N192)))))) -> 
B193: =データリスト!O$46 -> 会社提案・協議申入れ | C193: =IF(データリスト!$O51="","",データリスト!$O51) ->  | U193: =IF(I193:N193="","",IF(J193:N193="",I193,IF(K193:N193="",I193&"・"&J193,IF(L193:N193="",I193&"・"&J193&"・"&K193,IF(M193:N193="",I193&"・"&J193&"・"&K193&"・"&L193,IF(N193="",I193&"・"&J193&"・"&K193&"・"&L193&"・"&M193,I193&"・"&J193&"・"&K193&"・"&L193&"・"&M193&"・"&N193)))))) -> 
B194: =データリスト!O$46 -> 会社提案・協議申入れ | C194: =IF(データリスト!$O52="","",データリスト!$O52) ->  | U194: =IF(I194:N194="","",IF(J194:N194="",I194,IF(K194:N194="",I194&"・"&J194,IF(L194:N194="",I194&"・"&J194&"・"&K194,IF(M194:N194="",I194&"・"&J194&"・"&K194&"・"&L194,IF(N194="",I194&"・"&J194&"・"&K194&"・"&L194&"・"&M194,I194&"・"&J194&"・"&K194&"・"&L194&"・"&M194&"・"&N194)))))) -> 
B195: =データリスト!O$46 -> 会社提案・協議申入れ | C195: =IF(データリスト!$O53="","",データリスト!$O53) ->  | U195: =IF(I195:N195="","",IF(J195:N195="",I195,IF(K195:N195="",I195&"・"&J195,IF(L195:N195="",I195&"・"&J195&"・"&K195,IF(M195:N195="",I195&"・"&J195&"・"&K195&"・"&L195,IF(N195="",I195&"・"&J195&"・"&K195&"・"&L195&"・"&M195,I195&"・"&J195&"・"&K195&"・"&L195&"・"&M195&"・"&N195)))))) -> 
B196: =データリスト!O$46 -> 会社提案・協議申入れ | C196: =IF(データリスト!$O54="","",データリスト!$O54) ->  | U196: =IF(I196:N196="","",IF(J196:N196="",I196,IF(K196:N196="",I196&"・"&J196,IF(L196:N196="",I196&"・"&J196&"・"&K196,IF(M196:N196="",I196&"・"&J196&"・"&K196&"・"&L196,IF(N196="",I196&"・"&J196&"・"&K196&"・"&L196&"・"&M196,I196&"・"&J196&"・"&K196&"・"&L196&"・"&M196&"・"&N196)))))) -> 
B197: =データリスト!O$46 -> 会社提案・協議申入れ | C197: =IF(データリスト!$O55="","",データリスト!$O55) ->  | U197: =IF(I197:N197="","",IF(J197:N197="",I197,IF(K197:N197="",I197&"・"&J197,IF(L197:N197="",I197&"・"&J197&"・"&K197,IF(M197:N197="",I197&"・"&J197&"・"&K197&"・"&L197,IF(N197="",I197&"・"&J197&"・"&K197&"・"&L197&"・"&M197,I197&"・"&J197&"・"&K197&"・"&L197&"・"&M197&"・"&N197)))))) -> 
B198: =データリスト!O$46 -> 会社提案・協議申入れ | C198: =IF(データリスト!$O56="","",データリスト!$O56) ->  | U198: =IF(I198:N198="","",IF(J198:N198="",I198,IF(K198:N198="",I198&"・"&J198,IF(L198:N198="",I198&"・"&J198&"・"&K198,IF(M198:N198="",I198&"・"&J198&"・"&K198&"・"&L198,IF(N198="",I198&"・"&J198&"・"&K198&"・"&L198&"・"&M198,I198&"・"&J198&"・"&K198&"・"&L198&"・"&M198&"・"&N198)))))) -> 
B199: =データリスト!O$46 -> 会社提案・協議申入れ | C199: =IF(データリスト!$O57="","",データリスト!$O57) ->  | U199: =IF(I199:N199="","",IF(J199:N199="",I199,IF(K199:N199="",I199&"・"&J199,IF(L199:N199="",I199&"・"&J199&"・"&K199,IF(M199:N199="",I199&"・"&J199&"・"&K199&"・"&L199,IF(N199="",I199&"・"&J199&"・"&K199&"・"&L199&"・"&M199,I199&"・"&J199&"・"&K199&"・"&L199&"・"&M199&"・"&N199)))))) -> 
B200: =データリスト!O$46 -> 会社提案・協議申入れ | C200: =IF(データリスト!$O58="","",データリスト!$O58) ->  | U200: =IF(I200:N200="","",IF(J200:N200="",I200,IF(K200:N200="",I200&"・"&J200,IF(L200:N200="",I200&"・"&J200&"・"&K200,IF(M200:N200="",I200&"・"&J200&"・"&K200&"・"&L200,IF(N200="",I200&"・"&J200&"・"&K200&"・"&L200&"・"&M200,I200&"・"&J200&"・"&K200&"・"&L200&"・"&M200&"・"&N200)))))) -> 
B201: =データリスト!O$46 -> 会社提案・協議申入れ | C201: =IF(データリスト!$O59="","",データリスト!$O59) ->  | U201: =IF(I201:N201="","",IF(J201:N201="",I201,IF(K201:N201="",I201&"・"&J201,IF(L201:N201="",I201&"・"&J201&"・"&K201,IF(M201:N201="",I201&"・"&J201&"・"&K201&"・"&L201,IF(N201="",I201&"・"&J201&"・"&K201&"・"&L201&"・"&M201,I201&"・"&J201&"・"&K201&"・"&L201&"・"&M201&"・"&N201)))))) -> 
B202: =データリスト!O$46 -> 会社提案・協議申入れ | C202: =IF(データリスト!$O60="","",データリスト!$O60) ->  | U202: =IF(I202:N202="","",IF(J202:N202="",I202,IF(K202:N202="",I202&"・"&J202,IF(L202:N202="",I202&"・"&J202&"・"&K202,IF(M202:N202="",I202&"・"&J202&"・"&K202&"・"&L202,IF(N202="",I202&"・"&J202&"・"&K202&"・"&L202&"・"&M202,I202&"・"&J202&"・"&K202&"・"&L202&"・"&M202&"・"&N202)))))) -> 
B203: =データリスト!O$46 -> 会社提案・協議申入れ | C203: =IF(データリスト!$O61="","",データリスト!$O61) ->  | U203: =IF(I203:N203="","",IF(J203:N203="",I203,IF(K203:N203="",I203&"・"&J203,IF(L203:N203="",I203&"・"&J203&"・"&K203,IF(M203:N203="",I203&"・"&J203&"・"&K203&"・"&L203,IF(N203="",I203&"・"&J203&"・"&K203&"・"&L203&"・"&M203,I203&"・"&J203&"・"&K203&"・"&L203&"・"&M203&"・"&N203)))))) -> 
... 531 more rows

Sheet 年度の予定・記録
AX1: 科目 | AY1: 総務費 | AZ1: 活動調査費 | BA1: 組織活動費 | BB1: 大会費 | BC1: 予備費 | BD1: 合計
AX2: 予算 | AY2: =データリスト!F33 -> ¥37,400 | AZ2: =データリスト!G33 -> ¥135,000 | BA2: =データリスト!H33 -> ¥198,100 | BB2: =データリスト!I33 -> ¥16,100 | BC2: =データリスト!J33 -> ¥13,618 | BD2: =SUM(AY2:BC2) -> ¥400,218
AX3: 支出額 | AY3: =SUMIF(W9:Y64,AY1,AP9:AP64) -> 0 | AZ3: =SUMIF(W9:Y64,AZ1,AP9:AP64) -> ¥120,000 | BA3: =SUMIF(W9:Y64,BA1,AP9:AP64) -> ¥146,766 | BB3: =SUMIF(W9:Y64,BB1,AP9:AP64) -> ¥12,340 | BC3: =SUMIF(W9:Y64,BC1,AP9:AP64) -> 0 | BD3: =SUM(AY3:BC3) -> ¥279,106
AX4: 報告支出額 | AY4: =IF(AY3>AY2,AY2,AY3) -> 0 | AZ4: =IF(AZ3>AZ2,AZ2,AZ3) -> ¥120,000 | BA4: ¥146,766 | BB4: ¥12,340 | BC4: =BC3+BD6 -> 0 | BD4: ¥279,106
AX5: 収入額 | AY5: =SUMIF(W9:Y64,AY1,AP9:AP64) -> 0 | AZ5: =SUMIF(W9:Y64,AZ1,AP9:AP64) -> ¥120,000 | BA5: =SUMIF(W9:Y64,BA1,AP9:AP64) -> ¥146,766 | BB5: =SUMIF(W9:Y64,BB1,AP9:AP64) -> ¥12,340 | BC5: =SUMIF(W9:Y64,BC1,AP9:AP64) -> 0 | BD5: =SUM(AY5:BC5) -> ¥279,106
AX6: 予算超過分 | AY6: =IF(AY3-AY2<0,0,AY3-AY2) -> 0 | AZ6: =IF(AZ3-AZ2<0,0,AZ3-AZ2) -> 0 | BA6: =IF(BA3-BA2<0,0,BA3-BA2) -> 0 | BB6: =IF(BB3-BB2<0,0,BB3-BB2) -> 0 | BC6: =IF(BC3-BC2<0,0,BC3-BC2) -> 0 | BD6: =SUM(AY6:BC6) -> 0
AX7: 使用率 | AY7: =AY3/AY2 -> 0.0% | AZ7: =AZ3/AZ2 -> 88.9% | BA7: 74.1% | BB7: =BB3/BB2 -> 76.6% | BC7: =BC3/BC2 -> 0.0% | BD7: 69.7%
D8: =MAX(F9:F64) -> 8 | H8: 活動日 | K8: 活動内容 | M8: 対応者 | W8: 出費・収入項目 | X8: 金額 | Z8: 備考(支出理由等）
K9: 議案書へ表記するものには✔を入れる | X9: 収入額 | Y9: 支出額 | AA9: =IF(N9="",M9,M9&" ・ "&N9) -> 0 | AB9: =IF(O9="",AA9,AA9&" ・"&O9) -> 0 | AC9: =IF(P9="",AB9,AB9&" ・"&P9) -> 0 | AD9: =IF(Q9="",AC9,AC9&" ・"&Q9) -> 0 | AE9: =IF(R9="",AD9,AD9&" ・"&R9) -> 0 | AF9: =IF(S9="",AE9,AE9&" ・"&S9) -> 0 | AG9: =IF(T9="",AF9,AF9&" ・"&T9) -> 0 | AH9: =IF(U9="",AG9,AG9&" ・"&U9) -> 0 | AI9: =IF(V9="",AH9,AH9&" ・"&V9) -> 0 | AJ9: =IF(N9="",M9,IF(O9="",AA9,IF(P9="",AB9,IF(Q9="",AC9,IF(R9="",AD9,IF(S9="",AE9,IF(T9="",AF9,IF(U9="",AG9,IF(V9="",AH9,"全員"))))))))) -> 0 | AK9: =K9&" "&" "&Z9 -> 議案書へ表記するものには✔を入れる | AL9: =IF(H9=H10,AK9&" "&AK10,AK9) -> 議案書へ表記するものには✔を入れる | AM9: =IF(H9=H11,AL9&" "&AK11,AL9) -> 議案書へ表記するものには✔を入れる | AN9: =IF(H9=H12,AM9&" "&AK12,AM9) -> 議案書へ表記するものには✔を入れる | AO9: =IF(Y9<0,-Y9,0) -> 0 | AP9: =IF(Y9>0,Y9,0) -> 支出額
B10: =COUNTIF($C$9:C10,TRUE) -> 0 | C10: FALSE | D10: =IF(E10<F10,F10,E10) -> 1 | E10: =IF(F10<$D$8,0,COUNTIF(F$9:$G10,'2ヶ月カレンダー (2)'!$D$21)+$D$8) -> 0 | F10: =COUNTIF($G$9:G10,'2ヶ月カレンダー (2)'!$D$20) -> 1 | G10: =IF(H10="","",TEXT(H10,"yyyymm")) -> 202109 | H10: 2021-09-10 | I10: =IF(H10="","","～") -> ～ | J10: 2021-09-10 | K10: 分会交付金 振込日 | M10: C | W10: 分会交付金 | X10: ¥188,500 | Y10: 0 | Z10: 本部より交付金入金 | AA10: =IF(N10="",M10,M10&" ・ "&N10) -> C | AB10: =IF(O10="",AA10,AA10&" ・"&O10) -> C | AC10: =IF(P10="",AB10,AB10&" ・"&P10) -> C | AD10: =IF(Q10="",AC10,AC10&" ・"&Q10) -> C | AE10: =IF(R10="",AD10,AD10&" ・"&R10) -> C | AF10: =IF(S10="",AE10,AE10&" ・"&S10) -> C | AG10: =IF(T10="",AF10,AF10&" ・"&T10) -> C | AH10: =IF(U10="",AG10,AG10&" ・"&U10) -> C | AI10: =IF(V10="",AH10,AH10&" ・"&V10) -> C | AJ10: =IF(N10="",M10,IF(O10="",AA10,IF(P10="",AB10,IF(Q10="",AC10,IF(R10="",AD10,IF(S10="",AE10,IF(T10="",AF10,IF(U10="",AG10,IF(V10="",AH10,"全員"))))))))) -> C | AK10: =K10&" "&" "&Z10 -> 分会交付金 振込日 本部より交付金入金 | AL10: =IF(H10=H11,AK10&" "&AK11,AK10) -> 分会交付金 振込日 本部より交付金入金 | AM10: =IF(H10=H12,AL10&" "&AK12,AL10) -> 分会交付金 振込日 本部より交付金入金 | AN10: =IF(H10=H13,AM10&" "&AK13,AM10) -> 分会交付金 振込日 本部より交付金入金 | AO10: 0 | AP10: =IF(Y10>0,Y10,0) -> 0
B11: =COUNTIF($C$9:C11,TRUE) -> 1 | C11: TRUE | D11: 2 | E11: =IF(F11<$D$8,0,COUNTIF(F$9:$G11,'2ヶ月カレンダー (2)'!$D$21)+$D$8) -> 0 | F11: =COUNTIF($G$9:G11,'2ヶ月カレンダー (2)'!$D$20) -> 2 | G11: 202109 | H11: 2021-09-12 | I11: ～ | J11: 2021-09-12 | K11: 第1回分会執行委員会 | M11: A | N11: B | O11: C | P11: D | Q11: E | W11: 組織活動費 | Y11: ¥6,000 | Z11: 食事代（5名分) | AA11: A ・ B | AB11: A ・ B ・C | AC11: A ・ B ・C ・D | AD11: A ・ B ・C ・D ・E | AE11: A ・ B ・C ・D ・E | AF11: A ・ B ・C ・D ・E | AG11: A ・ B ・C ・D ・E | AH11: A ・ B ・C ・D ・E | AI11: A ・ B ・C ・D ・E | AJ11: A ・ B ・C ・D ・E | AK11: 第1回分会執行委員会 食事代（5名分) | AL11: 第1回分会執行委員会 食事代（5名分) | AM11: 第1回分会執行委員会 食事代（5名分) | AN11: =IF(H11=H15,AM11&" "&AK15,AM11) -> 第1回分会執行委員会 食事代（5名分) | AO11: 0 | AP11: 6000
B12: =COUNTIF($C$9:C12,TRUE) -> 2 | C12: TRUE | D12: 3 | E12: =IF(F12<$D$8,0,COUNTIF(F$9:$G12,'2ヶ月カレンダー (2)'!$D$21)+$D$8) -> 0 | F12: =COUNTIF($G$9:G12,'2ヶ月カレンダー (2)'!$D$20) -> 3 | G12: 202109 | H12: 2021-09-14 | I12: ～ | J12: 2021-09-14 | K12: 分会大会 | M12: 全員 | W12: 大会費 | Y12: ¥12,340 | Z12: 会場借用費、コピー用紙代 | AA12: 全員 | AB12: 全員 | AC12: 全員 | AD12: 全員 | AE12: 全員 | AF12: 全員 | AG12: 全員 | AH12: 全員 | AI12: 全員 | AJ12: 全員 | AK12: 分会大会 会場借用費、コピー用紙代 | AL12: 分会大会 会場借用費、コピー用紙代 分会大会後 懇親会 懇親会飲食代 | AM12: =IF(H12=H15,AL12&" "&AK15,AL12) -> 分会大会 会場借用費、コピー用紙代 分会大会後 懇親会 懇親会飲食代 | AN12: =IF(H12=H16,AM12&" "&AK16,AM12) -> 分会大会 会場借用費、コピー用紙代 分会大会後 懇親会 懇親会飲食代 | AO12: 0 | AP12: 12340
B13: =COUNTIF($C$9:C13,TRUE) -> 2 | C13: FALSE | D13: =IF(E13<F13,F13,E13) -> 4 | E13: =IF(F13<$D$8,0,COUNTIF(F$9:$G13,'2ヶ月カレンダー (2)'!$D$21)+$D$8) -> 0 | F13: =COUNTIF($G$9:G13,'2ヶ月カレンダー (2)'!$D$20) -> 4 | G13: 202109 | H13: 2021-09-14 | I13: ～ | J13: 2021-09-14 | K13: 分会大会後 懇親会 | M13: 全員 | W13: 組織活動費 | Y13: ¥26,970 | Z13: 懇親会飲食代 | AA13: 全員 | AB13: 全員 | AC13: 全員 | AD13: 全員 | AE13: 全員 | AF13: 全員 | AG13: 全員 | AH13: 全員 | AI13: 全員 | AJ13: 全員 | AK13: 分会大会後 懇親会 懇親会飲食代 | AL13: =IF(H13=H15,AK13&" "&AK15,AK13) -> 分会大会後 懇親会 懇親会飲食代 | AM13: =IF(H13=H16,AL13&" "&AK16,AL13) -> 分会大会後 懇親会 懇親会飲食代 | AN13: =IF(H13=H17,AM13&" "&AK17,AM13) -> 分会大会後 懇親会 懇親会飲食代 | AO13: 0 | AP13: 26970
B14: =COUNTIF($C$9:C14,TRUE) -> 2 | C14: FALSE | D14: 5 | E14: =IF(F14<$D$8,0,COUNTIF(F$9:$G14,'2ヶ月カレンダー (2)'!$D$21)+$D$8) -> 0 | F14: =COUNTIF($G$9:G14,'2ヶ月カレンダー (2)'!$D$20) -> 5 | G14: =IF(H14="","",TEXT(H14,"yyyymm")) -> 202109 | H14: 2021-09-22 | I14: =IF(H14="","","～") -> ～ | J14: 2021-09-22 | K14: 活動調査費支給 | M14: 執行委員 | W14: 活動調査費 | Y14: ¥60,000 | Z14: 6か月分（5名分） | AA14: =IF(N14="",M14,M14&" ・ "&N14) -> 執行委員 | AB14: =IF(O14="",AA14,AA14&" ・"&O14) -> 執行委員 | AC14: 執行委員 | AD14: 執行委員 | AE14: 執行委員 | AF14: 執行委員 | AG14: 執行委員 | AH14: 執行委員 | AI14: 執行委員 | AJ14: =IF(N14="",M14,IF(O14="",AA14,IF(P14="",AB14,IF(Q14="",AC14,IF(R14="",AD14,IF(S14="",AE14,IF(T14="",AF14,IF(U14="",AG14,IF(V14="",AH14,"全員"))))))))) -> 執行委員 | AK14: =K14&" "&" "&Z14 -> 活動調査費支給 6か月分（5名分） | AL14: =IF(H14=H29,AK14&" "&AK29,AK14) -> 活動調査費支給 6か月分（5名分） | AM14: =IF(H14=H30,AL14&" "&AK30,AL14) -> 活動調査費支給 6か月分（5名分） | AN14: =IF(H14=H31,AM14&" "&AK31,AM14) -> 活動調査費支給 6か月分（5名分） | AO14: =IF(Y14<0,-Y14,0) -> 0 | AP14: =IF(Y14>0,Y14,0) -> 60000
B15: =COUNTIF($C$9:C15,TRUE) -> 3 | C15: TRUE | D15: 6 | E15: =IF(F15<$D$8,0,COUNTIF(F$9:$G15,'2ヶ月カレンダー (2)'!$D$21)+$D$8) -> 0 | F15: =COUNTIF($G$9:G15,'2ヶ月カレンダー (2)'!$D$20) -> 6 | G15: 202109 | H15: 2021-09-23 | I15: ～ | J15: 2021-09-23 | K15: 現場パトロール | M15: A | N15: B | O15: D | W15: 組織活動費 | Y15: ¥1,746 | Z15: 差入れ飲み物代 | AA15: A ・ B | AB15: A ・ B ・D | AC15: A ・ B ・D | AD15: A ・ B ・D | AE15: A ・ B ・D | AF15: A ・ B ・D | AG15: A ・ B ・D | AH15: A ・ B ・D | AI15: A ・ B ・D | AJ15: A ・ B ・D | AK15: 現場パトロール 差入れ飲み物代 | AL15: 現場パトロール 差入れ飲み物代 現場パトロール 昼食代（3名分) | AM15: 現場パトロール 差入れ飲み物代 現場パトロール 昼食代（3名分) 安全衛生委員会 | AN15: 現場パトロール 差入れ飲み物代 現場パトロール 昼食代（3名分) 安全衛生委員会 | AO15: 0 | AP15: 1746
B16: =COUNTIF($C$9:C16,TRUE) -> 4 | C16: TRUE | D16: 7 | E16: =IF(F16<$D$8,0,COUNTIF(F$9:$G16,'2ヶ月カレンダー (2)'!$D$21)+$D$8) -> 0 | F16: =COUNTIF($G$9:G16,'2ヶ月カレンダー (2)'!$D$20) -> 7 | G16: 202109 | H16: 2021-09-23 | I16: ～ | J16: 2021-09-23 | K16: 現場パトロール | M16: A | N16: B | O16: D | W16: 組織活動費 | Y16: ¥2,560 | Z16: 昼食代（3名分) | AA16: A ・ B | AB16: A ・ B ・D | AC16: A ・ B ・D | AD16: A ・ B ・D | AE16: A ・ B ・D | AF16: A ・ B ・D | AG16: A ・ B ・D | AH16: A ・ B ・D | AI16: A ・ B ・D | AJ16: A ・ B ・D | AK16: 現場パトロール 昼食代（3名分) | AL16: 現場パトロール 昼食代（3名分) 安全衛生委員会 | AM16: 現場パトロール 昼食代（3名分) 安全衛生委員会 | AN16: 現場パトロール 昼食代（3名分) 安全衛生委員会 | AO16: 0 | AP16: 2560
B17: =COUNTIF($C$9:C17,TRUE) -> 5 | C17: TRUE | D17: 8 | E17: =IF(F17<$D$8,0,COUNTIF(F$9:$G17,'2ヶ月カレンダー (2)'!$D$21)+$D$8) -> 8 | F17: =COUNTIF($G$9:G17,'2ヶ月カレンダー (2)'!$D$20) -> 8 | G17: 202109 | H17: 2021-09-23 | I17: ～ | J17: 2021-09-23 | K17: 安全衛生委員会 | M17: 執行委員 | Y17: 0 | AA17: 執行委員 | AB17: 執行委員 | AC17: 執行委員 | AD17: 執行委員 | AE17: 執行委員 | AF17: 執行委員 | AG17: 執行委員 | AH17: 執行委員 | AI17: 執行委員 | AJ17: 執行委員 | AK17: 安全衛生委員会 | AL17: 安全衛生委員会 | AM17: 安全衛生委員会 | AN17: 安全衛生委員会 | AO17: 0 | AP17: 0
B18: =COUNTIF($C$9:C18,TRUE) -> 6 | C18: TRUE | D18: 9 | E18: =IF(F18<$D$8,0,COUNTIF(F$9:$G18,'2ヶ月カレンダー (2)'!$D$21)+$D$8) -> 9 | F18: =COUNTIF($G$9:G18,'2ヶ月カレンダー (2)'!$D$20) -> 8 | G18: 202110 | H18: 2021-10-12 | I18: =IF(H18="","","～") -> ～ | J18: 2021-10-12 | K18: 第2回分会執行委員会 | M18: A | N18: B | O18: C | P18: D | W18: 組織活動費 | Y18: ¥650 | Z18: 飲み物代（E：業務都合で欠席） | AA18: A ・ B | AB18: A ・ B ・C | AC18: A ・ B ・C ・D | AD18: A ・ B ・C ・D | AE18: A ・ B ・C ・D | AF18: A ・ B ・C ・D | AG18: A ・ B ・C ・D | AH18: A ・ B ・C ・D | AI18: A ・ B ・C ・D | AJ18: A ・ B ・C ・D | AK18: 第2回分会執行委員会 飲み物代（E：業務都合で欠席） | AL18: 第2回分会執行委員会 飲み物代（E：業務都合で欠席） | AM18: 第2回分会執行委員会 飲み物代（E：業務都合で欠席） | AN18: 第2回分会執行委員会 飲み物代（E：業務都合で欠席） | AO18: 0 | AP18: 650
B19: =COUNTIF($C$9:C19,TRUE) -> 6 | C19: FALSE | D19: 10 | E19: =IF(F19<$D$8,0,COUNTIF(F$9:$G19,'2ヶ月カレンダー (2)'!$D$21)+$D$8) -> 10 | F19: =COUNTIF($G$9:G19,'2ヶ月カレンダー (2)'!$D$20) -> 8 | G19: 202110 | H19: 2021-10-15 | I19: ～ | J19: 2021-10-15 | K19: 組織活動費 申請 | M19: C | W19: 申請金額 | X19: ¥80,000 | Y19: 0 | Z19: 分会集会・執行委員会時 飲食費用として | AA19: C | AB19: C | AC19: C | AD19: C | AE19: C | AF19: C | AG19: C | AH19: C | AI19: C | AJ19: C | AK19: 組織活動費 申請 分会集会・執行委員会時 飲食費用として | AL19: 組織活動費 申請 分会集会・執行委員会時 飲食費用として | AM19: 組織活動費 申請 分会集会・執行委員会時 飲食費用として | AN19: 組織活動費 申請 分会集会・執行委員会時 飲食費用として | AO19: 0 | AP19: 0
B20: =COUNTIF($C$9:C20,TRUE) -> 7 | C20: TRUE | D20: 11 | E20: =IF(F20<$D$8,0,COUNTIF(F$9:$G20,'2ヶ月カレンダー (2)'!$D$21)+$D$8) -> 11 | F20: =COUNTIF($G$9:G20,'2ヶ月カレンダー (2)'!$D$20) -> 8 | G20: 202110 | H20: 2021-10-20 | I20: =IF(H20="","","～") -> ～ | J20: 2021-10-20 | K20: 第1回分会集会 | M20: 全員 | W20: 組織活動費 | Y20: ¥4,440 | Z20: 飲み物代 | AA20: 全員 | AB20: 全員 | AC20: 全員 | AD20: 全員 | AE20: 全員 | AF20: 全員 | AG20: 全員 | AH20: 全員 | AI20: 全員 | AJ20: 全員 | AK20: 第1回分会集会 飲み物代 | AL20: 第1回分会集会 飲み物代 第1回分会集会 懇親会 懇親会飲食代補助（会費不足分として） | AM20: 第1回分会集会 飲み物代 第1回分会集会 懇親会 懇親会飲食代補助（会費不足分として） | AN20: 第1回分会集会 飲み物代 第1回分会集会 懇親会 懇親会飲食代補助（会費不足分として） | AO20: 0 | AP20: 4440
B21: =COUNTIF($C$9:C21,TRUE) -> 7 | C21: FALSE | D21: 12 | E21: =IF(F21<$D$8,0,COUNTIF(F$9:$G21,'2ヶ月カレンダー (2)'!$D$21)+$D$8) -> 12 | F21: =COUNTIF($G$9:G21,'2ヶ月カレンダー (2)'!$D$20) -> 8 | G21: 202110 | H21: 2021-10-20 | I21: ～ | J21: 2021-10-20 | K21: 第1回分会集会 懇親会 | M21: 執行委員 | W21: 組織活動費 | Y21: ¥27,000 | Z21: 懇親会飲食代補助（会費不足分として） | AA21: 執行委員 | AB21: 執行委員 | AC21: 執行委員 | AD21: 執行委員 | AE21: 執行委員 | AF21: 執行委員 | AG21: 執行委員 | AH21: 執行委員 | AI21: 執行委員 | AJ21: 執行委員 | AK21: 第1回分会集会 懇親会 懇親会飲食代補助（会費不足分として） | AL21: 第1回分会集会 懇親会 懇親会飲食代補助（会費不足分として） | AM21: 第1回分会集会 懇親会 懇親会飲食代補助（会費不足分として） | AN21: 第1回分会集会 懇親会 懇親会飲食代補助（会費不足分として） | AO21: 0 | AP21: 27000
B22: =COUNTIF($C$9:C22,TRUE) -> 8 | C22: TRUE | D22: 12 | E22: =IF(F22<$D$8,0,COUNTIF(F$9:$G22,'2ヶ月カレンダー (2)'!$D$21)+$D$8) -> 12 | F22: =COUNTIF($G$9:G22,'2ヶ月カレンダー (2)'!$D$20) -> 8 | G22: 202111 | H22: 2021-11-15 | I22: ～ | J22: 2021-11-15 | K22: 第3回分会執行委員会 | M22: 執行委員 | W22: 組織活動費 | Y22: ¥800 | Z22: 飲み物代 | AA22: 執行委員 | AB22: 執行委員 | AC22: 執行委員 | AD22: 執行委員 | AE22: 執行委員 | AF22: 執行委員 | AG22: 執行委員 | AH22: 執行委員 | AI22: 執行委員 | AJ22: 執行委員 | AK22: 第3回分会執行委員会 飲み物代 | AL22: 第3回分会執行委員会 飲み物代 | AM22: 第3回分会執行委員会 飲み物代 | AN22: 第3回分会執行委員会 飲み物代 | AO22: 0 | AP22: 800
B23: =COUNTIF($C$9:C23,TRUE) -> 9 | C23: TRUE | D23: 12 | E23: =IF(F23<$D$8,0,COUNTIF(F$9:$G23,'2ヶ月カレンダー (2)'!$D$21)+$D$8) -> 12 | F23: =COUNTIF($G$9:G23,'2ヶ月カレンダー (2)'!$D$20) -> 8 | G23: 202111 | H23: 2021-11-20 | I23: ～ | J23: 2021-11-20 | K23: 電力地協 代表者会議 | M23: A | W23: 組織活動費 | Y23: ¥900 | Z23: 駐車場代 | AA23: A | AB23: A | AC23: A | AD23: A | AE23: A | AF23: A | AG23: A | AH23: A | AI23: A | AJ23: A | AK23: 電力地協 代表者会議 駐車場代 | AL23: 電力地協 代表者会議 駐車場代 | AM23: 電力地協 代表者会議 駐車場代 | AN23: 電力地協 代表者会議 駐車場代 | AO23: 0 | AP23: 900
B24: =COUNTIF($C$9:C24,TRUE) -> 10 | C24: TRUE | D24: 12 | E24: =IF(F24<$D$8,0,COUNTIF(F$9:$G24,'2ヶ月カレンダー (2)'!$D$21)+$D$8) -> 12 | F24: =COUNTIF($G$9:G24,'2ヶ月カレンダー (2)'!$D$20) -> 8 | G24: 202111 | H24: 2021-11-24 | I24: ～ | J24: 2021-11-24 | K24: 安全衛生委員会 | M24: 執行委員 | Y24: 0 | AA24: 執行委員 | AB24: 執行委員 | AC24: 執行委員 | AD24: 執行委員 | AE24: 執行委員 | AF24: 執行委員 | AG24: 執行委員 | AH24: 執行委員 | AI24: 執行委員 | AJ24: 執行委員 | AK24: 安全衛生委員会 | AL24: 安全衛生委員会 労使協議会 | AM24: 安全衛生委員会 労使協議会 | AN24: 安全衛生委員会 労使協議会 | AO24: 0 | AP24: 0
B25: =COUNTIF($C$9:C25,TRUE) -> 11 | C25: TRUE | D25: 12 | E25: =IF(F25<$D$8,0,COUNTIF(F$9:$G25,'2ヶ月カレンダー (2)'!$D$21)+$D$8) -> 12 | F25: =COUNTIF($G$9:G25,'2ヶ月カレンダー (2)'!$D$20) -> 8 | G25: 202111 | H25: 2021-11-24 | I25: ～ | J25: 2021-11-24 | K25: 労使協議会 | M25: 執行委員 | Y25: 0 | AA25: 執行委員 | AB25: 執行委員 | AC25: 執行委員 | AD25: 執行委員 | AE25: 執行委員 | AF25: 執行委員 | AG25: 執行委員 | AH25: 執行委員 | AI25: 執行委員 | AJ25: 執行委員 | AK25: 労使協議会 | AL25: 労使協議会 | AM25: 労使協議会 | AN25: 労使協議会 | AO25: 0 | AP25: 0
B26: =COUNTIF($C$9:C26,TRUE) -> 12 | C26: TRUE | D26: 12 | E26: =IF(F26<$D$8,0,COUNTIF(F$9:$G26,'2ヶ月カレンダー (2)'!$D$21)+$D$8) -> 12 | F26: =COUNTIF($G$9:G26,'2ヶ月カレンダー (2)'!$D$20) -> 8 | G26: 202112 | H26: 2021-12-15 | I26: ～ | J26: 2021-12-15 | K26: 分会クリスマス会第1回実行委員会 | M26: G | N26: B | O26: C | P26: D | Q26: E | W26: 組織活動費 | Y26: ¥650 | Z26: 飲み物代 | AA26: G ・ B | AB26: G ・ B ・C | AC26: G ・ B ・C ・D | AD26: G ・ B ・C ・D ・E | AE26: G ・ B ・C ・D ・E | AF26: G ・ B ・C ・D ・E | AG26: G ・ B ・C ・D ・E | AH26: G ・ B ・C ・D ・E | AI26: G ・ B ・C ・D ・E | AJ26: G ・ B ・C ・D ・E | AK26: 分会クリスマス会第1回実行委員会 飲み物代 | AL26: 分会クリスマス会第1回実行委員会 飲み物代 | AM26: 分会クリスマス会第1回実行委員会 飲み物代 | AN26: =IF(H26=H14,AM26&" "&AK14,AM26) -> 分会クリスマス会第1回実行委員会 飲み物代 | AO26: 0 | AP26: 650
B27: =COUNTIF($C$9:C27,TRUE) -> 12 | C27: FALSE | D27: 12 | E27: =IF(F27<$D$8,0,COUNTIF(F$9:$G27,'2ヶ月カレンダー (2)'!$D$21)+$D$8) -> 12 | F27: =COUNTIF($G$9:G27,'2ヶ月カレンダー (2)'!$D$20) -> 8 | G27: 202112 | H27: 2021-12-16 | I27: =IF(H27="","","～") -> ～ | J27: 2021-12-16 | K27: 組織活動費 申請 | M27: C | W27: 申請金額 | X27: ¥50,000 | Y27: 0 | Z27: クリスマス会 グッズ購入・飲食費用として | AA27: C | AB27: C | AC27: C | AD27: C | AE27: C | AF27: C | AG27: C | AH27: C | AI27: C | AJ27: C | AK27: 組織活動費 申請 クリスマス会 グッズ購入・飲食費用として | AL27: 組織活動費 申請 クリスマス会 グッズ購入・飲食費用として | AM27: =IF(H27=H14,AL27&" "&AK14,AL27) -> 組織活動費 申請 クリスマス会 グッズ購入・飲食費用として | AN27: =IF(H27=H29,AM27&" "&AK29,AM27) -> 組織活動費 申請 クリスマス会 グッズ購入・飲食費用として | AO27: 0 | AP27: 0
B28: =COUNTIF($C$9:C28,TRUE) -> 13 | C28: TRUE | D28: 12 | E28: =IF(F28<$D$8,0,COUNTIF(F$9:$G28,'2ヶ月カレンダー (2)'!$D$21)+$D$8) -> 12 | F28: =COUNTIF($G$9:G28,'2ヶ月カレンダー (2)'!$D$20) -> 8 | G28: 202112 | H28: 2021-12-22 | I28: ～ | J28: 2021-12-22 | K28: 分会クリスマス会第2回実行委員会 | M28: G | N28: B | O28: C | P28: D | Q28: E | W28: 組織活動費 | Y28: ¥39,200 | Z28: パーティーグッズ・飲み物・お菓子購入 | AA28: G ・ B | AB28: G ・ B ・C | AC28: G ・ B ・C ・D | AD28: G ・ B ・C ・D ・E | AE28: G ・ B ・C ・D ・E | AF28: G ・ B ・C ・D ・E | AG28: G ・ B ・C ・D ・E | AH28: G ・ B ・C ・D ・E | AI28: G ・ B ・C ・D ・E | AJ28: G ・ B ・C ・D ・E | AK28: 分会クリスマス会第2回実行委員会 パーティーグッズ・飲み物・お菓子購入 | AL28: =IF(H28=H14,AK28&" "&AK14,AK28) -> 分会クリスマス会第2回実行委員会 パーティーグッズ・飲み物・お菓子購入 | AM28: =IF(H28=H29,AL28&" "&AK29,AL28) -> 分会クリスマス会第2回実行委員会 パーティーグッズ・飲み物・お菓子購入 | AN28: =IF(H28=H30,AM28&" "&AK30,AM28) -> 分会クリスマス会第2回実行委員会 パーティーグッズ・飲み物・お菓子購入 | AO28: 0 | AP28: 39200
B29: =COUNTIF($C$9:C29,TRUE) -> 14 | C29: TRUE | D29: 12 | E29: =IF(F29<$D$8,0,COUNTIF(F$9:$G29,'2ヶ月カレンダー (2)'!$D$21)+$D$8) -> 12 | F29: =COUNTIF($G$9:G29,'2ヶ月カレンダー (2)'!$D$20) -> 8 | G29: 202112 | H29: 2021-12-24 | I29: ～ | J29: 2021-12-24 | K29: 分会クリスマス会 | M29: 全員 | Y29: 0 | AA29: 全員 | AB29: 全員 | AC29: 全員 | AD29: 全員 | AE29: 全員 | AF29: 全員 | AG29: 全員 | AH29: 全員 | AI29: 全員 | AJ29: 全員 | AK29: 分会クリスマス会 | AL29: 分会クリスマス会 | AM29: 分会クリスマス会 | AN29: 分会クリスマス会 | AO29: 0 | AP29: 0
B30: =COUNTIF($C$9:C30,TRUE) -> 15 | C30: TRUE | D30: 12 | E30: =IF(F30<$D$8,0,COUNTIF(F$9:$G30,'2ヶ月カレンダー (2)'!$D$21)+$D$8) -> 12 | F30: =COUNTIF($G$9:G30,'2ヶ月カレンダー (2)'!$D$20) -> 8 | G30: 202201 | H30: 2022-01-13 | I30: ～ | J30: 2022-01-13 | K30: 労使パトロール | M30: A | Y30: 0 | AA30: A | AB30: A | AC30: A | AD30: A | AE30: A | AF30: A | AG30: A | AH30: A | AI30: A | AJ30: A | AK30: 労使パトロール | AL30: 労使パトロール 安全衛生委員会 | AM30: 労使パトロール 安全衛生委員会 | AN30: 労使パトロール 安全衛生委員会 | AO30: 0 | AP30: 0
B31: =COUNTIF($C$9:C31,TRUE) -> 16 | C31: TRUE | D31: 12 | E31: =IF(F31<$D$8,0,COUNTIF(F$9:$G31,'2ヶ月カレンダー (2)'!$D$21)+$D$8) -> 12 | F31: =COUNTIF($G$9:G31,'2ヶ月カレンダー (2)'!$D$20) -> 8 | G31: 202201 | H31: 2022-01-13 | I31: ～ | J31: 2022-01-13 | K31: 安全衛生委員会 | M31: 執行委員 | Y31: 0 | AA31: 執行委員 | AB31: 執行委員 | AC31: 執行委員 | AD31: 執行委員 | AE31: 執行委員 | AF31: 執行委員 | AG31: 執行委員 | AH31: 執行委員 | AI31: 執行委員 | AJ31: 執行委員 | AK31: 安全衛生委員会 | AL31: 安全衛生委員会 | AM31: 安全衛生委員会 | AN31: 安全衛生委員会 | AO31: 0 | AP31: 0
B32: =COUNTIF($C$9:C32,TRUE) -> 17 | C32: TRUE | D32: 12 | E32: =IF(F32<$D$8,0,COUNTIF(F$9:$G32,'2ヶ月カレンダー (2)'!$D$21)+$D$8) -> 12 | F32: =COUNTIF($G$9:G32,'2ヶ月カレンダー (2)'!$D$20) -> 8 | G32: 202201 | H32: 2022-01-14 | I32: ～ | J32: 2022-01-14 | K32: 第4回分会執行委員会 | M32: 執行委員 | W32: 組織活動費 | Y32: ¥600 | Z32: 飲み物代 | AA32: 執行委員 | AB32: 執行委員 | AC32: 執行委員 | AD32: 執行委員 | AE32: 執行委員 | AF32: 執行委員 | AG32: 執行委員 | AH32: 執行委員 | AI32: 執行委員 | AJ32: 執行委員 | AK32: 第4回分会執行委員会 飲み物代 | AL32: 第4回分会執行委員会 飲み物代 | AM32: 第4回分会執行委員会 飲み物代 | AN32: 第4回分会執行委員会 飲み物代 | AO32: 0 | AP32: 600
B33: =COUNTIF($C$9:C33,TRUE) -> 18 | C33: TRUE | D33: 12 | E33: =IF(F33<$D$8,0,COUNTIF(F$9:$G33,'2ヶ月カレンダー (2)'!$D$21)+$D$8) -> 12 | F33: =COUNTIF($G$9:G33,'2ヶ月カレンダー (2)'!$D$20) -> 8 | G33: 202201 | H33: 2022-01-16 | I33: ～ | J33: 2022-01-16 | K33: 分会委員長連絡会議 | M33: A | Y33: 0 | AA33: A | AB33: A | AC33: A | AD33: A | AE33: A | AF33: A | AG33: A | AH33: A | AI33: A | AJ33: A | AK33: 分会委員長連絡会議 | AL33: 分会委員長連絡会議 | AM33: 分会委員長連絡会議 | AN33: 分会委員長連絡会議 | AO33: 0 | AP33: 0
B34: =COUNTIF($C$9:C34,TRUE) -> 18 | C34: FALSE | D34: 12 | E34: =IF(F34<$D$8,0,COUNTIF(F$9:$G34,'2ヶ月カレンダー (2)'!$D$21)+$D$8) -> 12 | F34: =COUNTIF($G$9:G34,'2ヶ月カレンダー (2)'!$D$20) -> 8 | G34: 202202 | H34: 2022-02-12 | I34: ～ | J34: 2022-02-12 | K34: 活動調査費 6か月分（役員5名分） | M34: 執行委員 | W34: 活動調査費 | Y34: ¥60,000 | AA34: 執行委員 | AB34: 執行委員 | AC34: 執行委員 | AD34: 執行委員 | AE34: 執行委員 | AF34: 執行委員 | AG34: 執行委員 | AH34: 執行委員 | AI34: 執行委員 | AJ34: 執行委員 | AK34: 活動調査費 6か月分（役員5名分） | AL34: 活動調査費 6か月分（役員5名分） | AM34: 活動調査費 6か月分（役員5名分） | AN34: 活動調査費 6か月分（役員5名分） | AO34: 0 | AP34: 60000
B35: =COUNTIF($C$9:C35,TRUE) -> 19 | C35: TRUE | D35: 12 | E35: =IF(F35<$D$8,0,COUNTIF(F$9:$G35,'2ヶ月カレンダー (2)'!$D$21)+$D$8) -> 12 | F35: =COUNTIF($G$9:G35,'2ヶ月カレンダー (2)'!$D$20) -> 8 | G35: 202202 | H35: 2022-02-17 | I35: ～ | J35: 2022-02-17 | K35: 分会ボウリング大会第1回実行委員会 | M35: G | N35: B | O35: C | P35: D | Q35: E | W35: 組織活動費 | Y35: ¥650 | Z35: 飲み物代 | AA35: G ・ B | AB35: G ・ B ・C | AC35: G ・ B ・C ・D | AD35: G ・ B ・C ・D ・E | AE35: G ・ B ・C ・D ・E | AF35: G ・ B ・C ・D ・E | AG35: G ・ B ・C ・D ・E | AH35: G ・ B ・C ・D ・E | AI35: G ・ B ・C ・D ・E | AJ35: G ・ B ・C ・D ・E | AK35: 分会ボウリング大会第1回実行委員会 飲み物代 | AL35: 分会ボウリング大会第1回実行委員会 飲み物代 | AM35: 分会ボウリング大会第1回実行委員会 飲み物代 | AN35: 分会ボウリング大会第1回実行委員会 飲み物代 | AO35: 0 | AP35: 650
B36: =COUNTIF($C$9:C36,TRUE) -> 19 | C36: FALSE | D36: 12 | E36: =IF(F36<$D$8,0,COUNTIF(F$9:$G36,'2ヶ月カレンダー (2)'!$D$21)+$D$8) -> 12 | F36: =COUNTIF($G$9:G36,'2ヶ月カレンダー (2)'!$D$20) -> 8 | G36: 202202 | H36: 2022-02-18 | I36: ～ | J36: 2022-02-18 | K36: 組織活動費 申請 | W36: 申請金額 | X36: ¥40,000 | Z36: 分会ボウリング大会 会場費・景品代として | AA36: 0 | AB36: 0 | AC36: 0 | AD36: 0 | AE36: 0 | AF36: 0 | AG36: 0 | AH36: 0 | AI36: 0 | AJ36: 0 | AK36: 組織活動費 申請 分会ボウリング大会 会場費・景品代として | AL36: 組織活動費 申請 分会ボウリング大会 会場費・景品代として | AM36: 組織活動費 申請 分会ボウリング大会 会場費・景品代として | AN36: 組織活動費 申請 分会ボウリング大会 会場費・景品代として | AO36: 0 | AP36: 0
B37: =COUNTIF($C$9:C37,TRUE) -> 20 | C37: TRUE | D37: 12 | E37: =IF(F37<$D$8,0,COUNTIF(F$9:$G37,'2ヶ月カレンダー (2)'!$D$21)+$D$8) -> 12 | F37: =COUNTIF($G$9:G37,'2ヶ月カレンダー (2)'!$D$20) -> 8 | G37: 202202 | H37: 2022-02-27 | I37: ～ | J37: 2022-02-27 | K37: 分会ボウリング大会第2回実行委員会 | M37: G | N37: B | O37: C | P37: D | Q37: E | R37: A | W37: 組織活動費 | Y37: ¥9,800 | Z37: 景品購入代 | AA37: G ・ B | AB37: G ・ B ・C | AC37: G ・ B ・C ・D | AD37: G ・ B ・C ・D ・E | AE37: G ・ B ・C ・D ・E ・A | AF37: G ・ B ・C ・D ・E ・A | AG37: G ・ B ・C ・D ・E ・A | AH37: G ・ B ・C ・D ・E ・A | AI37: G ・ B ・C ・D ・E ・A | AJ37: G ・ B ・C ・D ・E ・A | AK37: 分会ボウリング大会第2回実行委員会 景品購入代 | AL37: 分会ボウリング大会第2回実行委員会 景品購入代 分会ボウリング大会 会場利用料、飲み物代 | AM37: 分会ボウリング大会第2回実行委員会 景品購入代 分会ボウリング大会 会場利用料、飲み物代 | AN37: 分会ボウリング大会第2回実行委員会 景品購入代 分会ボウリング大会 会場利用料、飲み物代 | AO37: 0 | AP37: 9800
B38: =COUNTIF($C$9:C38,TRUE) -> 21 | C38: TRUE | D38: 12 | E38: =IF(F38<$D$8,0,COUNTIF(F$9:$G38,'2ヶ月カレンダー (2)'!$D$21)+$D$8) -> 12 | F38: =COUNTIF($G$9:G38,'2ヶ月カレンダー (2)'!$D$20) -> 8 | G38: 202202 | H38: 2022-02-27 | I38: ～ | J38: 2022-02-27 | K38: 分会ボウリング大会 | M38: 全員 | W38: 組織活動費 | Y38: ¥24,800 | Z38: 会場利用料、飲み物代 | AA38: 全員 | AB38: 全員 | AC38: 全員 | AD38: 全員 | AE38: 全員 | AF38: 全員 | AG38: 全員 | AH38: 全員 | AI38: 全員 | AJ38: 全員 | AK38: 分会ボウリング大会 会場利用料、飲み物代 | AL38: 分会ボウリング大会 会場利用料、飲み物代 | AM38: 分会ボウリング大会 会場利用料、飲み物代 | AN38: 分会ボウリング大会 会場利用料、飲み物代 | AO38: 0 | AP38: 24800
B39: =COUNTIF($C$9:C39,TRUE) -> 21 | C39: FALSE | D39: 12 | E39: =IF(F39<$D$8,0,COUNTIF(F$9:$G39,'2ヶ月カレンダー (2)'!$D$21)+$D$8) -> 12 | F39: =COUNTIF($G$9:G39,'2ヶ月カレンダー (2)'!$D$20) -> 8 | AA39: 0 | AB39: 0 | AC39: 0 | AD39: 0 | AE39: 0 | AF39: 0 | AG39: 0 | AH39: 0 | AI39: 0 | AJ39: 0 | AO39: 0 | AP39: 0
B40: =COUNTIF($C$9:C40,TRUE) -> 21 | C40: FALSE | D40: 12 | E40: =IF(F40<$D$8,0,COUNTIF(F$9:$G40,'2ヶ月カレンダー (2)'!$D$21)+$D$8) -> 12 | F40: =COUNTIF($G$9:G40,'2ヶ月カレンダー (2)'!$D$20) -> 8 | AA40: 0 | AB40: 0 | AC40: 0 | AD40: 0 | AE40: 0 | AF40: 0 | AG40: 0 | AH40: 0 | AI40: 0 | AJ40: 0 | AO40: 0 | AP40: 0
B41: =COUNTIF($C$9:C41,TRUE) -> 21 | C41: FALSE | D41: 12 | E41: =IF(F41<$D$8,0,COUNTIF(F$9:$G41,'2ヶ月カレンダー (2)'!$D$21)+$D$8) -> 12 | F41: =COUNTIF($G$9:G41,'2ヶ月カレンダー (2)'!$D$20) -> 8 | AA41: 0 | AB41: 0 | AC41: 0 | AD41: 0 | AE41: 0 | AF41: 0 | AG41: 0 | AH41: 0 | AI41: 0 | AJ41: 0 | AO41: =IF(Y41<0,-Y41,0) -> 0 | AP41: 0
B42: =COUNTIF($C$9:C42,TRUE) -> 21 | C42: FALSE | D42: =IF(E42<F42,F42,E42) -> 12 | E42: =IF(F42<$D$8,0,COUNTIF(F$9:$G42,'2ヶ月カレンダー (2)'!$D$21)+$D$8) -> 12 | F42: =COUNTIF($G$9:G42,'2ヶ月カレンダー (2)'!$D$20) -> 8 | G42: =IF(H42="","",TEXT(H42,"yyyymm")) ->  | I42: =IF(H42="","","～") ->  | AA42: =IF(N42="",M42,M42&" ・ "&N42) -> 0 | AB42: =IF(O42="",AA42,AA42&" ・"&O42) -> 0 | AC42: =IF(P42="",AB42,AB42&" ・"&P42) -> 0 | AD42: =IF(Q42="",AC42,AC42&" ・"&Q42) -> 0 | AE42: =IF(R42="",AD42,AD42&" ・"&R42) -> 0 | AF42: =IF(S42="",AE42,AE42&" ・"&S42) -> 0 | AG42: =IF(T42="",AF42,AF42&" ・"&T42) -> 0 | AH42: =IF(U42="",AG42,AG42&" ・"&U42) -> 0 | AI42: =IF(V42="",AH42,AH42&" ・"&V42) -> 0 | AJ42: =IF(N42="",M42,IF(O42="",AA42,IF(P42="",AB42,IF(Q42="",AC42,IF(R42="",AD42,IF(S42="",AE42,IF(T42="",AF42,IF(U42="",AG42,IF(V42="",AH42,"全員"))))))))) -> 0 | AK42: =K42&" "&" "&Z42 ->  | AL42: =IF(H42=H43,AK42&" "&AK43,AK42) ->  | AM42: =IF(H42=H44,AL42&" "&AK44,AL42) ->  | AN42: =IF(H42=H45,AM42&" "&AK45,AM42) ->  | AO42: 0 | AP42: =IF(Y42>0,Y42,0) -> 0
B43: =COUNTIF($C$9:C43,TRUE) -> 21 | C43: FALSE | D43: 12 | E43: =IF(F43<$D$8,0,COUNTIF(F$9:$G43,'2ヶ月カレンダー (2)'!$D$21)+$D$8) -> 12 | F43: =COUNTIF($G$9:G43,'2ヶ月カレンダー (2)'!$D$20) -> 8 | AA43: 0 | AB43: 0 | AC43: 0 | AD43: 0 | AE43: 0 | AF43: 0 | AG43: 0 | AH43: 0 | AI43: 0 | AJ43: 0 | AO43: 0 | AP43: 0
B44: =COUNTIF($C$9:C44,TRUE) -> 21 | C44: FALSE | D44: 12 | E44: =IF(F44<$D$8,0,COUNTIF(F$9:$G44,'2ヶ月カレンダー (2)'!$D$21)+$D$8) -> 12 | F44: =COUNTIF($G$9:G44,'2ヶ月カレンダー (2)'!$D$20) -> 8 | AA44: 0 | AB44: 0 | AC44: 0 | AD44: 0 | AE44: 0 | AF44: 0 | AG44: 0 | AH44: 0 | AI44: 0 | AJ44: 0 | AO44: 0 | AP44: 0
B45: =COUNTIF($C$9:C45,TRUE) -> 21 | C45: FALSE | D45: 12 | E45: =IF(F45<$D$8,0,COUNTIF(F$9:$G45,'2ヶ月カレンダー (2)'!$D$21)+$D$8) -> 12 | F45: =COUNTIF($G$9:G45,'2ヶ月カレンダー (2)'!$D$20) -> 8 | AA45: 0 | AB45: 0 | AC45: 0 | AD45: 0 | AE45: 0 | AF45: 0 | AG45: 0 | AH45: 0 | AI45: 0 | AJ45: 0 | AO45: 0 | AP45: 0
B46: =COUNTIF($C$9:C46,TRUE) -> 21 | C46: FALSE | D46: 12 | E46: =IF(F46<$D$8,0,COUNTIF(F$9:$G46,'2ヶ月カレンダー (2)'!$D$21)+$D$8) -> 12 | F46: =COUNTIF($G$9:G46,'2ヶ月カレンダー (2)'!$D$20) -> 8 | AA46: 0 | AB46: 0 | AC46: 0 | AD46: 0 | AE46: 0 | AF46: 0 | AG46: 0 | AH46: 0 | AI46: 0 | AJ46: 0 | AO46: 0 | AP46: 0
B47: =COUNTIF($C$9:C47,TRUE) -> 21 | C47: FALSE | D47: 12 | E47: =IF(F47<$D$8,0,COUNTIF(F$9:$G47,'2ヶ月カレンダー (2)'!$D$21)+$D$8) -> 12 | F47: =COUNTIF($G$9:G47,'2ヶ月カレンダー (2)'!$D$20) -> 8 | AA47: 0 | AB47: 0 | AC47: 0 | AD47: 0 | AE47: 0 | AF47: 0 | AG47: 0 | AH47: 0 | AI47: 0 | AJ47: 0 | AO47: 0 | AP47: 0
B48: =COUNTIF($C$9:C48,TRUE) -> 21 | C48: FALSE | D48: 12 | E48: =IF(F48<$D$8,0,COUNTIF(F$9:$G48,'2ヶ月カレンダー (2)'!$D$21)+$D$8) -> 12 | F48: =COUNTIF($G$9:G48,'2ヶ月カレンダー (2)'!$D$20) -> 8 | AA48: 0 | AB48: 0 | AC48: 0 | AD48: 0 | AE48: 0 | AF48: 0 | AG48: 0 | AH48: 0 | AI48: 0 | AJ48: 0 | AO48: 0 | AP48: 0
B49: =COUNTIF($C$9:C49,TRUE) -> 21 | C49: FALSE | D49: 12 | E49: =IF(F49<$D$8,0,COUNTIF(F$9:$G49,'2ヶ月カレンダー (2)'!$D$21)+$D$8) -> 12 | F49: =COUNTIF($G$9:G49,'2ヶ月カレンダー (2)'!$D$20) -> 8 | AA49: 0 | AB49: 0 | AC49: 0 | AD49: 0 | AE49: 0 | AF49: 0 | AG49: 0 | AH49: 0 | AI49: 0 | AJ49: 0 | AO49: 0 | AP49: 0
B50: =COUNTIF($C$9:C50,TRUE) -> 21 | C50: FALSE | D50: 12 | E50: =IF(F50<$D$8,0,COUNTIF(F$9:$G50,'2ヶ月カレンダー (2)'!$D$21)+$D$8) -> 12 | F50: =COUNTIF($G$9:G50,'2ヶ月カレンダー (2)'!$D$20) -> 8 | AA50: 0 | AB50: 0 | AC50: 0 | AD50: 0 | AE50: 0 | AF50: 0 | AG50: 0 | AH50: 0 | AI50: 0 | AJ50: 0 | AO50: 0 | AP50: 0
B51: =COUNTIF($C$9:C51,TRUE) -> 21 | C51: FALSE | D51: 12 | E51: =IF(F51<$D$8,0,COUNTIF(F$9:$G51,'2ヶ月カレンダー (2)'!$D$21)+$D$8) -> 12 | F51: =COUNTIF($G$9:G51,'2ヶ月カレンダー (2)'!$D$20) -> 8 | AA51: 0 | AB51: 0 | AC51: 0 | AD51: 0 | AE51: 0 | AF51: 0 | AG51: 0 | AH51: 0 | AI51: 0 | AJ51: 0 | AO51: 0 | AP51: 0
B52: =COUNTIF($C$9:C52,TRUE) -> 21 | C52: FALSE | D52: 12 | E52: =IF(F52<$D$8,0,COUNTIF(F$9:$G52,'2ヶ月カレンダー (2)'!$D$21)+$D$8) -> 12 | F52: =COUNTIF($G$9:G52,'2ヶ月カレンダー (2)'!$D$20) -> 8 | AA52: 0 | AB52: 0 | AC52: 0 | AD52: 0 | AE52: 0 | AF52: 0 | AG52: 0 | AH52: 0 | AI52: 0 | AJ52: 0 | AO52: 0 | AP52: 0
B53: =COUNTIF($C$9:C53,TRUE) -> 21 | C53: FALSE | D53: 12 | E53: =IF(F53<$D$8,0,COUNTIF(F$9:$G53,'2ヶ月カレンダー (2)'!$D$21)+$D$8) -> 12 | F53: =COUNTIF($G$9:G53,'2ヶ月カレンダー (2)'!$D$20) -> 8 | AA53: 0 | AB53: 0 | AC53: 0 | AD53: 0 | AE53: 0 | AF53: 0 | AG53: 0 | AH53: 0 | AI53: 0 | AJ53: 0 | AO53: 0 | AP53: 0
B54: =COUNTIF($C$9:C54,TRUE) -> 21 | C54: FALSE | D54: 12 | E54: =IF(F54<$D$8,0,COUNTIF(F$9:$G54,'2ヶ月カレンダー (2)'!$D$21)+$D$8) -> 12 | F54: =COUNTIF($G$9:G54,'2ヶ月カレンダー (2)'!$D$20) -> 8 | AA54: 0 | AB54: 0 | AC54: 0 | AD54: 0 | AE54: 0 | AF54: 0 | AG54: 0 | AH54: 0 | AI54: 0 | AJ54: 0 | AO54: 0 | AP54: 0
B55: =COUNTIF($C$9:C55,TRUE) -> 21 | C55: FALSE | D55: 12 | E55: =IF(F55<$D$8,0,COUNTIF(F$9:$G55,'2ヶ月カレンダー (2)'!$D$21)+$D$8) -> 12 | F55: =COUNTIF($G$9:G55,'2ヶ月カレンダー (2)'!$D$20) -> 8 | AA55: 0 | AB55: 0 | AC55: 0 | AD55: 0 | AE55: 0 | AF55: 0 | AG55: 0 | AH55: 0 | AI55: 0 | AJ55: 0 | AO55: 0 | AP55: 0
B56: =COUNTIF($C$9:C56,TRUE) -> 21 | C56: FALSE | D56: 12 | E56: =IF(F56<$D$8,0,COUNTIF(F$9:$G56,'2ヶ月カレンダー (2)'!$D$21)+$D$8) -> 12 | F56: =COUNTIF($G$9:G56,'2ヶ月カレンダー (2)'!$D$20) -> 8 | AA56: 0 | AB56: 0 | AC56: 0 | AD56: 0 | AE56: 0 | AF56: 0 | AG56: 0 | AH56: 0 | AI56: 0 | AJ56: 0 | AO56: 0 | AP56: 0
B57: =COUNTIF($C$9:C57,TRUE) -> 21 | C57: FALSE | D57: 12 | E57: =IF(F57<$D$8,0,COUNTIF(F$9:$G57,'2ヶ月カレンダー (2)'!$D$21)+$D$8) -> 12 | F57: =COUNTIF($G$9:G57,'2ヶ月カレンダー (2)'!$D$20) -> 8 | AA57: 0 | AB57: 0 | AC57: 0 | AD57: 0 | AE57: 0 | AF57: 0 | AG57: 0 | AH57: 0 | AI57: 0 | AJ57: 0 | AO57: 0 | AP57: 0
B58: =COUNTIF($C$9:C58,TRUE) -> 21 | C58: FALSE | D58: 12 | E58: =IF(F58<$D$8,0,COUNTIF(F$9:$G58,'2ヶ月カレンダー (2)'!$D$21)+$D$8) -> 12 | F58: =COUNTIF($G$9:G58,'2ヶ月カレンダー (2)'!$D$20) -> 8 | AA58: 0 | AB58: 0 | AC58: 0 | AD58: 0 | AE58: 0 | AF58: 0 | AG58: 0 | AH58: 0 | AI58: 0 | AJ58: 0 | AO58: 0 | AP58: 0
B59: =COUNTIF($C$9:C59,TRUE) -> 21 | C59: FALSE | D59: 12 | E59: =IF(F59<$D$8,0,COUNTIF(F$9:$G59,'2ヶ月カレンダー (2)'!$D$21)+$D$8) -> 12 | F59: =COUNTIF($G$9:G59,'2ヶ月カレンダー (2)'!$D$20) -> 8 | AA59: 0 | AB59: 0 | AC59: 0 | AD59: 0 | AE59: 0 | AF59: 0 | AG59: 0 | AH59: 0 | AI59: 0 | AJ59: 0 | AO59: 0 | AP59: 0
B60: =COUNTIF($C$9:C60,TRUE) -> 21 | C60: FALSE | D60: 12 | E60: =IF(F60<$D$8,0,COUNTIF(F$9:$G60,'2ヶ月カレンダー (2)'!$D$21)+$D$8) -> 12 | F60: =COUNTIF($G$9:G60,'2ヶ月カレンダー (2)'!$D$20) -> 8 | AA60: 0 | AB60: 0 | AC60: 0 | AD60: 0 | AE60: 0 | AF60: 0 | AG60: 0 | AH60: 0 | AI60: 0 | AJ60: 0 | AO60: 0 | AP60: 0
B61: =COUNTIF($C$9:C61,TRUE) -> 21 | C61: FALSE | D61: 12 | E61: =IF(F61<$D$8,0,COUNTIF(F$9:$G61,'2ヶ月カレンダー (2)'!$D$21)+$D$8) -> 12 | F61: =COUNTIF($G$9:G61,'2ヶ月カレンダー (2)'!$D$20) -> 8 | AA61: 0 | AB61: 0 | AC61: 0 | AD61: 0 | AE61: 0 | AF61: 0 | AG61: 0 | AH61: 0 | AI61: 0 | AJ61: 0 | AO61: 0 | AP61: 0
B62: =COUNTIF($C$9:C62,TRUE) -> 21 | C62: FALSE | D62: 12 | E62: =IF(F62<$D$8,0,COUNTIF(F$9:$G62,'2ヶ月カレンダー (2)'!$D$21)+$D$8) -> 12 | F62: =COUNTIF($G$9:G62,'2ヶ月カレンダー (2)'!$D$20) -> 8 | AA62: 0 | AB62: 0 | AC62: 0 | AD62: 0 | AE62: 0 | AF62: 0 | AG62: 0 | AH62: 0 | AI62: 0 | AJ62: 0 | AN62: =IF(H62=#REF!,AM62&" "&#REF!,AM62) ->  | AO62: 0 | AP62: 0
B63: =COUNTIF($C$9:C63,TRUE) -> 21 | C63: FALSE | D63: 12 | E63: =IF(F63<$D$8,0,COUNTIF(F$9:$G63,'2ヶ月カレンダー (2)'!$D$21)+$D$8) -> 12 | F63: =COUNTIF($G$9:G63,'2ヶ月カレンダー (2)'!$D$20) -> 8 | AA63: 0 | AB63: 0 | AC63: 0 | AD63: 0 | AE63: 0 | AF63: 0 | AG63: 0 | AH63: 0 | AI63: 0 | AJ63: 0 | AM63: =IF(H63=#REF!,AL63&" "&#REF!,AL63) ->  | AN63: =IF(H63=#REF!,AM63&" "&#REF!,AM63) ->  | AO63: 0 | AP63: 0
B64: =COUNTIF($C$9:C64,TRUE) -> 21 | C64: FALSE | D64: 12 | E64: =IF(F64<$D$8,0,COUNTIF(F$9:$G64,'2ヶ月カレンダー (2)'!$D$21)+$D$8) -> 12 | F64: =COUNTIF($G$9:G64,'2ヶ月カレンダー (2)'!$D$20) -> 8 | AA64: 0 | AB64: 0 | AC64: 0 | AD64: 0 | AE64: 0 | AF64: 0 | AG64: 0 | AH64: 0 | AI64: 0 | AJ64: 0 | AL64: =IF(H64=#REF!,AK64&" "&#REF!,AK64) ->  | AM64: =IF(H64=#REF!,AL64&" "&#REF!,AL64) ->  | AN64: =IF(H64=#REF!,AM64&" "&#REF!,AM64) ->  | AO64: 0 | AP64: 0

Sheet 2ヶ月カレンダー (2)
H1: =H3 -> 9 | I1: =J3 -> 10
H2: 2021 | J2: 2021 | L2: ←表示したい年月を入力
H3: 9 | J3: 10
H5: =H2 -> 2021 | J5: =H3 -> 9 | L5: =DATE(H5,J5,1) -> 2021-09-01 | S5: =WEEKDAY(L5,1) -> 4 | AL5: =J2 -> 2021 | AR5: =J3 -> 10 | AX5: =DATE(AL5,AR5,1) -> 2021-10-01 | BJ5: =WEEKDAY(AX5,1) -> 6
H6: 日 | J6: 月 | L6: 火 | M6: 水 | S6: 木 | Y6: 金 | AE6: 土 | AL6: 日 | AR6: 月 | AX6: 火 | BD6: 水 | BJ6: 木 | BP6: 金 | BV6: 土
H7: =L5-(S5-1) -> 2021-08-29 | J7: =H7+1 -> 2021-08-30 | L7: =J7+1 -> 2021-08-31 | M7: =L7+1 -> 2021-09-01 | S7: =M7+1 -> 2021-09-02 | Y7: =S7+1 -> 2021-09-03 | AE7: =Y7+1 -> 2021-09-04 | AL7: =AX5-(BJ5-1) -> 2021-09-26 | AR7: =AL7+1 -> 2021-09-27 | AX7: =AR7+1 -> 2021-09-28 | BD7: =AX7+1 -> 2021-09-29 | BJ7: =BD7+1 -> 2021-09-30 | BP7: =BJ7+1 -> 2021-10-01 | BV7: =BP7+1 -> 2021-10-02
H8: =IFERROR(VLOOKUP(H7,年度の予定・記録!$H:$AN,31,FALSE),"") ->  | J8: =IFERROR(VLOOKUP(J7,年度の予定・記録!$H:$AN,31,FALSE),"") ->  | L8: =IFERROR(VLOOKUP(L7,年度の予定・記録!$H:$AN,31,FALSE),"") ->  | M8: =IFERROR(VLOOKUP(M7,年度の予定・記録!$H:$AN,31,FALSE),"") ->  | S8: =IFERROR(VLOOKUP(S7,年度の予定・記録!$H:$AN,31,FALSE),"") ->  | Y8: =IFERROR(VLOOKUP(Y7,年度の予定・記録!$H:$AN,31,FALSE),"") ->  | AE8: =IFERROR(VLOOKUP(AE7,年度の予定・記録!$H:$AN,31,FALSE),"") ->  | AL8: =IFERROR(VLOOKUP(AL7,年度の予定・記録!$H:$AN,31,FALSE),"") ->  | AR8: =IFERROR(VLOOKUP(AR7,年度の予定・記録!$H:$AN,31,FALSE),"") ->  | AX8: =IFERROR(VLOOKUP(AX7,年度の予定・記録!$H:$AN,31,FALSE),"") ->  | BD8: =IFERROR(VLOOKUP(BD7,年度の予定・記録!$H:$AN,31,FALSE),"") ->  | BJ8: =IFERROR(VLOOKUP(BJ7,年度の予定・記録!$H:$AN,31,FALSE),"") ->  | BP8: =IFERROR(VLOOKUP(BP7,年度の予定・記録!$H:$AN,31,FALSE),"") ->  | BV8: =IFERROR(VLOOKUP(BV7,年度の予定・記録!$H:$AN,31,FALSE),"") -> 
H9: =AE7+1 -> 2021-09-05 | J9: =H9+1 -> 2021-09-06 | L9: =J9+1 -> 2021-09-07 | M9: =L9+1 -> 2021-09-08 | S9: =M9+1 -> 2021-09-09 | Y9: =S9+1 -> 2021-09-10 | AE9: =Y9+1 -> 2021-09-11 | AL9: =BV7+1 -> 2021-10-03 | AR9: =AL9+1 -> 2021-10-04 | AX9: =AR9+1 -> 2021-10-05 | BD9: =AX9+1 -> 2021-10-06 | BJ9: =BD9+1 -> 2021-10-07 | BP9: =BJ9+1 -> 2021-10-08 | BV9: =BP9+1 -> 2021-10-09
H10: =IFERROR(VLOOKUP(H9,年度の予定・記録!$H:$AN,31,FALSE),"") ->  | J10: =IFERROR(VLOOKUP(J9,年度の予定・記録!$H:$AN,31,FALSE),"") ->  | L10: =IFERROR(VLOOKUP(L9,年度の予定・記録!$H:$AN,31,FALSE),"") ->  | M10: =IFERROR(VLOOKUP(M9,年度の予定・記録!$H:$AN,31,FALSE),"") ->  | S10: =IFERROR(VLOOKUP(S9,年度の予定・記録!$H:$AN,31,FALSE),"") ->  | Y10: =IFERROR(VLOOKUP(Y9,年度の予定・記録!$H:$AN,31,FALSE),"") -> 分会交付金 振込日 本部より交付金入金 | AE10: =IFERROR(VLOOKUP(AE9,年度の予定・記録!$H:$AN,31,FALSE),"") ->  | AL10: =IFERROR(VLOOKUP(AL9,年度の予定・記録!$H:$AN,31,FALSE),"") ->  | AR10: =IFERROR(VLOOKUP(AR9,年度の予定・記録!$H:$AN,31,FALSE),"") ->  | AX10: =IFERROR(VLOOKUP(AX9,年度の予定・記録!$H:$AN,31,FALSE),"") ->  | BD10: =IFERROR(VLOOKUP(BD9,年度の予定・記録!$H:$AN,31,FALSE),"") ->  | BJ10: =IFERROR(VLOOKUP(BJ9,年度の予定・記録!$H:$AN,31,FALSE),"") ->  | BP10: =IFERROR(VLOOKUP(BP9,年度の予定・記録!$H:$AN,31,FALSE),"") ->  | BV10: =IFERROR(VLOOKUP(BV9,年度の予定・記録!$H:$AN,31,FALSE),"") -> 
H11: =AE9+1 -> 2021-09-12 | J11: =H11+1 -> 2021-09-13 | L11: =J11+1 -> 2021-09-14 | M11: =L11+1 -> 2021-09-15 | S11: =M11+1 -> 2021-09-16 | Y11: =S11+1 -> 2021-09-17 | AE11: =Y11+1 -> 2021-09-18 | AL11: =BV9+1 -> 2021-10-10 | AR11: =AL11+1 -> 2021-10-11 | AX11: =AR11+1 -> 2021-10-12 | BD11: =AX11+1 -> 2021-10-13 | BJ11: =BD11+1 -> 2021-10-14 | BP11: =BJ11+1 -> 2021-10-15 | BV11: =BP11+1 -> 2021-10-16
H12: =IFERROR(VLOOKUP(H11,年度の予定・記録!$H:$AN,31,FALSE),"") -> 第1回分会執行委員会 食事代（5名分) | J12: =IFERROR(VLOOKUP(J11,年度の予定・記録!$H:$AN,31,FALSE),"") ->  | L12: =IFERROR(VLOOKUP(L11,年度の予定・記録!$H:$AN,31,FALSE),"") -> 分会大会 会場借用費、コピー用紙代 分会大会後 懇親会 懇親会飲食代 | M12: =IFERROR(VLOOKUP(M11,年度の予定・記録!$H:$AN,31,FALSE),"") ->  | S12: =IFERROR(VLOOKUP(S11,年度の予定・記録!$H:$AN,31,FALSE),"") ->  | Y12: =IFERROR(VLOOKUP(Y11,年度の予定・記録!$H:$AN,31,FALSE),"") ->  | AE12: =IFERROR(VLOOKUP(AE11,年度の予定・記録!$H:$AN,31,FALSE),"") ->  | AL12: =IFERROR(VLOOKUP(AL11,年度の予定・記録!$H:$AN,31,FALSE),"") ->  | AR12: =IFERROR(VLOOKUP(AR11,年度の予定・記録!$H:$AN,31,FALSE),"") ->  | AX12: =IFERROR(VLOOKUP(AX11,年度の予定・記録!$H:$AN,31,FALSE),"") -> 第2回分会執行委員会 飲み物代（E：業務都合で欠席） | BD12: =IFERROR(VLOOKUP(BD11,年度の予定・記録!$H:$AN,31,FALSE),"") ->  | BJ12: =IFERROR(VLOOKUP(BJ11,年度の予定・記録!$H:$AN,31,FALSE),"") ->  | BP12: =IFERROR(VLOOKUP(BP11,年度の予定・記録!$H:$AN,31,FALSE),"") -> 組織活動費 申請 分会集会・執行委員会時 飲食費用として | BV12: =IFERROR(VLOOKUP(BV11,年度の予定・記録!$H:$AN,31,FALSE),"") -> 
H13: =AE11+1 -> 2021-09-19 | J13: =H13+1 -> 2021-09-20 | L13: =J13+1 -> 2021-09-21 | M13: =L13+1 -> 2021-09-22 | S13: =M13+1 -> 2021-09-23 | Y13: =S13+1 -> 2021-09-24 | AE13: =Y13+1 -> 2021-09-25 | AL13: =BV11+1 -> 2021-10-17 | AR13: =AL13+1 -> 2021-10-18 | AX13: =AR13+1 -> 2021-10-19 | BD13: =AX13+1 -> 2021-10-20 | BJ13: =BD13+1 -> 2021-10-21 | BP13: =BJ13+1 -> 2021-10-22 | BV13: =BP13+1 -> 2021-10-23
H14: =IFERROR(VLOOKUP(H13,年度の予定・記録!$H:$AN,31,FALSE),"") ->  | J14: =IFERROR(VLOOKUP(J13,年度の予定・記録!$H:$AN,31,FALSE),"") ->  | L14: =IFERROR(VLOOKUP(L13,年度の予定・記録!$H:$AN,31,FALSE),"") ->  | M14: =IFERROR(VLOOKUP(M13,年度の予定・記録!$H:$AN,31,FALSE),"") -> 活動調査費支給 6か月分（5名分） | S14: =IFERROR(VLOOKUP(S13,年度の予定・記録!$H:$AN,31,FALSE),"") -> 現場パトロール 差入れ飲み物代 現場パトロール 昼食代（3名分) | Y14: =IFERROR(VLOOKUP(Y13,年度の予定・記録!$H:$AN,31,FALSE),"") ->  | AE14: =IFERROR(VLOOKUP(AE13,年度の予定・記録!$H:$AN,31,FALSE),"") ->  | AL14: =IFERROR(VLOOKUP(AL13,年度の予定・記録!$H:$AN,31,FALSE),"") ->  | AR14: =IFERROR(VLOOKUP(AR13,年度の予定・記録!$H:$AN,31,FALSE),"") ->  | AX14: =IFERROR(VLOOKUP(AX13,年度の予定・記録!$H:$AN,31,FALSE),"") ->  | BD14: =IFERROR(VLOOKUP(BD13,年度の予定・記録!$H:$AN,31,FALSE),"") -> 第1回分会集会 飲み物代 第1回分会集会 懇親会 懇親会飲食代補助（会費不足分として） | BJ14: =IFERROR(VLOOKUP(BJ13,年度の予定・記録!$H:$AN,31,FALSE),"") ->  | BP14: =IFERROR(VLOOKUP(BP13,年度の予定・記録!$H:$AN,31,FALSE),"") ->  | BV14: =IFERROR(VLOOKUP(BV13,年度の予定・記録!$H:$AN,31,FALSE),"") -> 
H15: =AE13+1 -> 2021-09-26 | J15: =H15+1 -> 2021-09-27 | L15: =J15+1 -> 2021-09-28 | M15: =L15+1 -> 2021-09-29 | S15: =M15+1 -> 2021-09-30 | Y15: =S15+1 -> 2021-10-01 | AE15: =Y15+1 -> 2021-10-02 | AL15: =BV13+1 -> 2021-10-24 | AR15: =AL15+1 -> 2021-10-25 | AX15: =AR15+1 -> 2021-10-26 | BD15: =AX15+1 -> 2021-10-27 | BJ15: =BD15+1 -> 2021-10-28 | BP15: =BJ15+1 -> 2021-10-29 | BV15: =BP15+1 -> 2021-10-30
H16: =IFERROR(VLOOKUP(H15,年度の予定・記録!$H:$AN,31,FALSE),"") ->  | J16: =IFERROR(VLOOKUP(J15,年度の予定・記録!$H:$AN,31,FALSE),"") ->  | L16: =IFERROR(VLOOKUP(L15,年度の予定・記録!$H:$AN,31,FALSE),"") ->  | M16: =IFERROR(VLOOKUP(M15,年度の予定・記録!$H:$AN,31,FALSE),"") ->  | S16: =IFERROR(VLOOKUP(S15,年度の予定・記録!$H:$AN,31,FALSE),"") ->  | Y16: =IFERROR(VLOOKUP(Y15,年度の予定・記録!$H:$AN,31,FALSE),"") ->  | AE16: =IFERROR(VLOOKUP(AE15,年度の予定・記録!$H:$AN,31,FALSE),"") ->  | AL16: =IFERROR(VLOOKUP(AL15,年度の予定・記録!$H:$AN,31,FALSE),"") ->  | AR16: =IFERROR(VLOOKUP(AR15,年度の予定・記録!$H:$AN,31,FALSE),"") ->  | AX16: =IFERROR(VLOOKUP(AX15,年度の予定・記録!$H:$AN,31,FALSE),"") ->  | BD16: =IFERROR(VLOOKUP(BD15,年度の予定・記録!$H:$AN,31,FALSE),"") ->  | BJ16: =IFERROR(VLOOKUP(BJ15,年度の予定・記録!$H:$AN,31,FALSE),"") ->  | BP16: =IFERROR(VLOOKUP(BP15,年度の予定・記録!$H:$AN,31,FALSE),"") ->  | BV16: =IFERROR(VLOOKUP(BV15,年度の予定・記録!$H:$AN,31,FALSE),"") -> 
H17: =AE15+1 -> 2021-10-03 | J17: =H17+1 -> 2021-10-04 | L17: =J17+1 -> 2021-10-05 | M17: =L17+1 -> 2021-10-06 | S17: =M17+1 -> 2021-10-07 | Y17: =S17+1 -> 2021-10-08 | AE17: =Y17+1 -> 2021-10-09 | AL17: =BV15+1 -> 2021-10-31 | AR17: =AL17+1 -> 2021-11-01 | AX17: =AR17+1 -> 2021-11-02 | BD17: =AX17+1 -> 2021-11-03 | BJ17: =BD17+1 -> 2021-11-04 | BP17: =BJ17+1 -> 2021-11-05 | BV17: =BP17+1 -> 2021-11-06
H18: =IFERROR(VLOOKUP(H17,年度の予定・記録!$H:$AN,31,FALSE),"") ->  | J18: =IFERROR(VLOOKUP(J17,年度の予定・記録!$H:$AN,31,FALSE),"") ->  | L18: =IFERROR(VLOOKUP(L17,年度の予定・記録!$H:$AN,31,FALSE),"") ->  | M18: =IFERROR(VLOOKUP(M17,年度の予定・記録!$H:$AN,31,FALSE),"") ->  | S18: =IFERROR(VLOOKUP(S17,年度の予定・記録!$H:$AN,31,FALSE),"") ->  | Y18: =IFERROR(VLOOKUP(Y17,年度の予定・記録!$H:$AN,31,FALSE),"") ->  | AE18: =IFERROR(VLOOKUP(AE17,年度の予定・記録!$H:$AN,31,FALSE),"") ->  | AL18: =IFERROR(VLOOKUP(AL17,年度の予定・記録!$H:$AN,31,FALSE),"") ->  | AR18: =IFERROR(VLOOKUP(AR17,年度の予定・記録!$H:$AN,31,FALSE),"") ->  | AX18: =IFERROR(VLOOKUP(AX17,年度の予定・記録!$H:$AN,31,FALSE),"") ->  | BD18: =IFERROR(VLOOKUP(BD17,年度の予定・記録!$H:$AN,31,FALSE),"") ->  | BJ18: =IFERROR(VLOOKUP(BJ17,年度の予定・記録!$H:$AN,31,FALSE),"") ->  | BP18: =IFERROR(VLOOKUP(BP17,年度の予定・記録!$H:$AN,31,FALSE),"") ->  | BV18: =IFERROR(VLOOKUP(BV17,年度の予定・記録!$H:$AN,31,FALSE),"") -> 
D20: =TEXT(R21,"yyyymm") -> 202109 | H20: 予定内容 | L20: 対応者 | R20: =J5 -> 9 | AW20: =AR5 -> 10
D21: =TEXT(AW21,"yyyymm") -> 202110 | R21: =L5 -> 2021-09-01 | S21: =R21+1 -> 2021-09-02 | T21: =S21+1 -> 2021-09-03 | U21: 2021-09-04 | V21: 2021-09-05 | W21: 2021-09-06 | X21: 2021-09-07 | Y21: 2021-09-08 | Z21: 2021-09-09 | AA21: 2021-09-10 | AB21: 2021-09-11 | AC21: 2021-09-12 | AD21: 2021-09-13 | AE21: 2021-09-14 | AF21: 2021-09-15 | AG21: 2021-09-16 | AH21: 2021-09-17 | AI21: 2021-09-18 | AJ21: 2021-09-19 | AK21: 2021-09-20 | AL21: 2021-09-21 | AM21: 2021-09-22 | AN21: 2021-09-23 | AO21: 2021-09-24 | AP21: 2021-09-25 | AQ21: 2021-09-26 | AR21: 2021-09-27 | AS21: 2021-09-28 | AT21: 2021-09-29 | AU21: 2021-09-30 | AV21: 2021-10-01 | AW21: =AX5 -> 2021-10-01 | AX21: =AW21+1 -> 2021-10-02 | AY21: 2021-10-03 | AZ21: 2021-10-04 | BA21: 2021-10-05 | BB21: 2021-10-06 | BC21: 2021-10-07 | BD21: 2021-10-08 | BE21: 2021-10-09 | BF21: 2021-10-10 | BG21: 2021-10-11 | BH21: 2021-10-12 | BI21: 2021-10-13 | BJ21: 2021-10-14 | BK21: 2021-10-15 | BL21: 2021-10-16 | BM21: 2021-10-17 | BN21: 2021-10-18 | BO21: 2021-10-19 | BP21: 2021-10-20 | BQ21: 2021-10-21 | BR21: 2021-10-22 | BS21: 2021-10-23 | BT21: 2021-10-24 | BU21: 2021-10-25 | BV21: 2021-10-26 | BW21: 2021-10-27 | BX21: 2021-10-28 | BY21: 2021-10-29 | BZ21: 2021-10-30 | CA21: 2021-10-31
R22: =R21 -> 44440 | S22: =R22+1 -> 44441 | T22: 44442 | U22: 44443 | V22: 44444 | W22: 44445 | X22: 44446 | Y22: 44447 | Z22: 44448 | AA22: 44449 | AB22: 44450 | AC22: 44451 | AD22: 44452 | AE22: 44453 | AF22: 44454 | AG22: 44455 | AH22: 44456 | AI22: 44457 | AJ22: 44458 | AK22: 44459 | AL22: 44460 | AM22: 44461 | AN22: 44462 | AO22: 44463 | AP22: 44464 | AQ22: 44465 | AR22: 44466 | AS22: 44467 | AT22: 44468 | AU22: 44469 | AV22: 44470 | AW22: =AW21 -> 44470 | AX22: =AW22+1 -> 44471 | AY22: =AX22+1 -> 44472 | AZ22: 44473 | BA22: 44474 | BB22: 44475 | BC22: 44476 | BD22: 44477 | BE22: 44478 | BF22: 44479 | BG22: 44480 | BH22: 44481 | BI22: 44482 | BJ22: 44483 | BK22: 44484 | BL22: 44485 | BM22: 44486 | BN22: 44487 | BO22: 44488 | BP22: 44489 | BQ22: 44490 | BR22: 44491 | BS22: 44492 | BT22: 44493 | BU22: 44494 | BV22: 44495 | BW22: 44496 | BX22: 44497 | BY22: 44498 | BZ22: 44499 | CA22: 44500
D23: =VLOOKUP(1,年度の予定・記録!$D$9:$AJ$64,8,FALSE) -> 分会交付金 振込日 | E23: =VLOOKUP(1,年度の予定・記録!$D$9:$AJ$64,31,FALSE) -> C | F23: =VLOOKUP(1,年度の予定・記録!$D$9:$AJ$64,5,FALSE) -> 44449 | G23: =VLOOKUP(1,年度の予定・記録!$D$9:$AJ$64,7,FALSE) -> 44449 | H23: =IFERROR(D23,"") -> 分会交付金 振込日 | L23: =IFERROR(E23,"") -> C | CC23: =IFERROR(VLOOKUP(H23,年度の予定・記録!$H:$AN,4,FALSE),"") -> 
D24: =VLOOKUP(2,年度の予定・記録!$D$9:$AJ$64,8,FALSE) -> 第1回分会執行委員会 | E24: =VLOOKUP(2,年度の予定・記録!$D$9:$AJ$64,31,FALSE) -> A ・ B ・C ・D ・E | F24: =VLOOKUP(2,年度の予定・記録!$D$9:$AJ$64,5,FALSE) -> 44451 | G24: =VLOOKUP(2,年度の予定・記録!$D$9:$AJ$64,7,FALSE) -> 44451 | H24: =IFERROR(D24,"") -> 第1回分会執行委員会 | L24: =IFERROR(E24,"") -> A ・ B ・C ・D ・E | CC24: =IFERROR(VLOOKUP(H24,年度の予定・記録!$H:$AN,4,FALSE),"") -> 
D25: =VLOOKUP(3,年度の予定・記録!$D$9:$AJ$64,8,FALSE) -> 分会大会 | E25: =VLOOKUP(3,年度の予定・記録!$D$9:$AJ$64,31,FALSE) -> 全員 | F25: =VLOOKUP(3,年度の予定・記録!$D$9:$AJ$64,5,FALSE) -> 44453 | G25: =VLOOKUP(3,年度の予定・記録!$D$9:$AJ$64,7,FALSE) -> 44453 | H25: 分会大会 | L25: 全員 | CC25: =IFERROR(VLOOKUP(H25,年度の予定・記録!$H:$AN,4,FALSE),"") -> 
D26: =VLOOKUP(4,年度の予定・記録!$D$9:$AJ$64,8,FALSE) -> 分会大会後 懇親会 | E26: =VLOOKUP(4,年度の予定・記録!$D$9:$AJ$64,31,FALSE) -> 全員 | F26: =VLOOKUP(4,年度の予定・記録!$D$9:$AJ$64,5,FALSE) -> 44453 | G26: =VLOOKUP(4,年度の予定・記録!$D$9:$AJ$64,7,FALSE) -> 44453 | H26: 分会大会後 懇親会 | L26: 全員 | CC26: =IFERROR(VLOOKUP(H26,年度の予定・記録!$H:$AN,4,FALSE),"") -> 
D27: =VLOOKUP(5,年度の予定・記録!$D$9:$AJ$64,8,FALSE) -> 活動調査費支給 | E27: =VLOOKUP(5,年度の予定・記録!$D$9:$AJ$64,31,FALSE) -> 執行委員 | F27: =VLOOKUP(5,年度の予定・記録!$D$9:$AJ$64,5,FALSE) -> 44461 | G27: =VLOOKUP(5,年度の予定・記録!$D$9:$AJ$64,7,FALSE) -> 44461 | H27: 活動調査費支給 | L27: 執行委員 | CC27: =IFERROR(VLOOKUP(H27,年度の予定・記録!$H:$AN,4,FALSE),"") -> 
D28: =VLOOKUP(6,年度の予定・記録!$D$9:$AJ$63,8,FALSE) -> 現場パトロール | E28: =VLOOKUP(6,年度の予定・記録!$D$9:$AJ$64,31,FALSE) -> A ・ B ・D | F28: =VLOOKUP(6,年度の予定・記録!$D$9:$AJ$64,5,FALSE) -> 44462 | G28: =VLOOKUP(6,年度の予定・記録!$D$9:$AJ$64,7,FALSE) -> 44462 | H28: 現場パトロール | L28: A ・ B ・D | CC28: =IFERROR(VLOOKUP(H28,年度の予定・記録!$H:$AN,4,FALSE),"") -> 
D29: =VLOOKUP(7,年度の予定・記録!$D$9:$AJ$64,8,FALSE) -> 現場パトロール | E29: =VLOOKUP(7,年度の予定・記録!$D$9:$AJ$64,31,FALSE) -> A ・ B ・D | F29: =VLOOKUP(7,年度の予定・記録!$D$9:$AJ$64,5,FALSE) -> 44462 | G29: =VLOOKUP(7,年度の予定・記録!$D$9:$AJ$64,7,FALSE) -> 44462 | H29: 現場パトロール | L29: A ・ B ・D | CC29: =IFERROR(VLOOKUP(H29,年度の予定・記録!$H:$AN,4,FALSE),"") -> 
D30: =VLOOKUP(8,年度の予定・記録!$D$9:$AJ$63,8,FALSE) -> 安全衛生委員会 | E30: =VLOOKUP(8,年度の予定・記録!$D$9:$AJ$64,31,FALSE) -> 執行委員 | F30: =VLOOKUP(8,年度の予定・記録!$D$9:$AJ$64,5,FALSE) -> 44462 | G30: =VLOOKUP(8,年度の予定・記録!$D$9:$AJ$64,7,FALSE) -> 44462 | H30: 安全衛生委員会 | L30: 執行委員 | CC30: =IFERROR(VLOOKUP(H30,年度の予定・記録!$H:$AN,4,FALSE),"") -> 
D31: =VLOOKUP(9,年度の予定・記録!$D$9:$AJ$64,8,FALSE) -> 第2回分会執行委員会 | E31: =VLOOKUP(9,年度の予定・記録!$D$9:$AJ$64,31,FALSE) -> A ・ B ・C ・D | F31: =VLOOKUP(9,年度の予定・記録!$D$9:$AJ$64,5,FALSE) -> 44481 | G31: =VLOOKUP(9,年度の予定・記録!$D$9:$AJ$64,7,FALSE) -> 44481 | H31: 第2回分会執行委員会 | L31: A ・ B ・C ・D | CC31: =IFERROR(VLOOKUP(H31,年度の予定・記録!$H:$AN,4,FALSE),"") -> 
D32: =VLOOKUP(10,年度の予定・記録!$D$9:$AJ$64,8,FALSE) -> 組織活動費 申請 | E32: =VLOOKUP(10,年度の予定・記録!$D$9:$AJ$64,31,FALSE) -> C | F32: =VLOOKUP(10,年度の予定・記録!$D$9:$AJ$64,5,FALSE) -> 44484 | G32: =VLOOKUP(10,年度の予定・記録!$D$9:$AJ$64,7,FALSE) -> 44484 | H32: 組織活動費 申請 | L32: C | CC32: =IFERROR(VLOOKUP(H32,年度の予定・記録!$H:$AN,4,FALSE),"") -> 
D33: =VLOOKUP(11,年度の予定・記録!$D$9:$AJ$64,8,FALSE) -> 第1回分会集会 | E33: =VLOOKUP(11,年度の予定・記録!$D$9:$AJ$64,31,FALSE) -> 全員 | F33: =VLOOKUP(11,年度の予定・記録!$D$9:$AJ$64,5,FALSE) -> 44489 | G33: =VLOOKUP(11,年度の予定・記録!$D$9:$AJ$64,7,FALSE) -> 44489 | H33: 第1回分会集会 | L33: 全員 | CC33: =IFERROR(VLOOKUP(H33,年度の予定・記録!$H:$AN,4,FALSE),"") -> 
D34: =VLOOKUP(12,年度の予定・記録!$D$9:$AJ$64,8,FALSE) -> 第1回分会集会 懇親会 | E34: =VLOOKUP(12,年度の予定・記録!$D$9:$AJ$64,31,FALSE) -> 執行委員 | F34: =VLOOKUP(12,年度の予定・記録!$D$9:$AJ$64,5,FALSE) -> 44489 | G34: =VLOOKUP(12,年度の予定・記録!$D$9:$AJ$64,7,FALSE) -> 44489 | H34: 第1回分会集会 懇親会 | L34: 執行委員 | CC34: =IFERROR(VLOOKUP(H34,年度の予定・記録!$H:$AN,4,FALSE),"") -> 
D35: =VLOOKUP(13,年度の予定・記録!$D$9:$AJ$64,8,FALSE) ->  | E35: =VLOOKUP(13,年度の予定・記録!$D$9:$AJ$64,31,FALSE) ->  | F35: =VLOOKUP(13,年度の予定・記録!$D$9:$AJ$64,5,FALSE) ->  | G35: =VLOOKUP(13,年度の予定・記録!$D$9:$AJ$64,7,FALSE) ->  | CC35: =IFERROR(VLOOKUP(H35,年度の予定・記録!$H:$AN,4,FALSE),"") -> 
D36: =VLOOKUP(14,年度の予定・記録!$D$9:$AJ$64,8,FALSE) ->  | E36: =VLOOKUP(14,年度の予定・記録!$D$9:$AJ$64,31,FALSE) ->  | F36: =VLOOKUP(14,年度の予定・記録!$D$9:$AJ$64,5,FALSE) ->  | G36: =VLOOKUP(14,年度の予定・記録!$D$9:$AJ$64,7,FALSE) ->  | CC36: =IFERROR(VLOOKUP(H36,年度の予定・記録!$H:$AN,4,FALSE),"") -> 
D37: =VLOOKUP(15,年度の予定・記録!$D$9:$AJ$64,8,FALSE) ->  | E37: =VLOOKUP(15,年度の予定・記録!$D$9:$AJ$64,31,FALSE) ->  | F37: =VLOOKUP(15,年度の予定・記録!$D$9:$AJ$64,5,FALSE) ->  | G37: =VLOOKUP(15,年度の予定・記録!$D$9:$AJ$64,7,FALSE) ->  | CC37: =IFERROR(VLOOKUP(H37,年度の予定・記録!$H:$AN,4,FALSE),"") -> 
D38: =VLOOKUP(16,年度の予定・記録!$D$9:$AJ$64,8,FALSE) ->  | E38: =VLOOKUP(16,年度の予定・記録!$D$9:$AJ$64,31,FALSE) ->  | F38: =VLOOKUP(16,年度の予定・記録!$D$9:$AJ$64,5,FALSE) ->  | G38: =VLOOKUP(16,年度の予定・記録!$D$9:$AJ$64,7,FALSE) ->  | CC38: =IFERROR(VLOOKUP(H38,年度の予定・記録!$H:$AN,4,FALSE),"") -> 
D39: =VLOOKUP(17,年度の予定・記録!$D$9:$AJ$64,8,FALSE) ->  | E39: =VLOOKUP(17,年度の予定・記録!$D$9:$AJ$64,31,FALSE) ->  | F39: =VLOOKUP(17,年度の予定・記録!$D$9:$AJ$64,5,FALSE) ->  | G39: =VLOOKUP(17,年度の予定・記録!$D$9:$AJ$64,7,FALSE) ->  | CC39: =IFERROR(VLOOKUP(H39,年度の予定・記録!$H:$AN,4,FALSE),"") -> 
D40: =VLOOKUP(18,年度の予定・記録!$D$9:$AJ$64,8,FALSE) ->  | E40: =VLOOKUP(18,年度の予定・記録!$D$9:$AJ$64,31,FALSE) ->  | F40: =VLOOKUP(18,年度の予定・記録!$D$9:$AJ$64,5,FALSE) ->  | G40: =VLOOKUP(18,年度の予定・記録!$D$9:$AJ$64,7,FALSE) ->  | CC40: =IFERROR(VLOOKUP(H40,年度の予定・記録!$H:$AN,4,FALSE),"") -> 
D41: =VLOOKUP(19,年度の予定・記録!$D$9:$AJ$64,8,FALSE) ->  | E41: =VLOOKUP(19,年度の予定・記録!$D$9:$AJ$64,31,FALSE) ->  | F41: =VLOOKUP(19,年度の予定・記録!$D$9:$AJ$64,5,FALSE) ->  | G41: =VLOOKUP(19,年度の予定・記録!$D$9:$AJ$64,7,FALSE) ->  | CC41: =IFERROR(VLOOKUP(H41,年度の予定・記録!$H:$AN,4,FALSE),"") -> 
D42: =VLOOKUP(20,年度の予定・記録!$D$9:$AJ$64,8,FALSE) ->  | E42: =VLOOKUP(20,年度の予定・記録!$D$9:$AJ$64,31,FALSE) ->  | F42: =VLOOKUP(20,年度の予定・記録!$D$9:$AJ$64,5,FALSE) ->  | G42: =VLOOKUP(20,年度の予定・記録!$D$9:$AJ$64,7,FALSE) ->  | CC42: =IFERROR(VLOOKUP(H42,年度の予定・記録!$H:$AN,4,FALSE),"") -> 
D43: =VLOOKUP(21,年度の予定・記録!$D$9:$AJ$64,8,FALSE) ->  | E43: =VLOOKUP(21,年度の予定・記録!$D$9:$AJ$64,31,FALSE) ->  | F43: =VLOOKUP(21,年度の予定・記録!$D$9:$AJ$64,5,FALSE) ->  | G43: =VLOOKUP(21,年度の予定・記録!$D$9:$AJ$64,7,FALSE) ->  | CC43: =IFERROR(VLOOKUP(H43,年度の予定・記録!$H:$AN,4,FALSE),"") -> 
D44: =VLOOKUP(22,年度の予定・記録!$D$9:$AJ$64,8,FALSE) ->  | E44: =VLOOKUP(22,年度の予定・記録!$D$9:$AJ$64,31,FALSE) ->  | F44: =VLOOKUP(22,年度の予定・記録!$D$9:$AJ$64,5,FALSE) ->  | G44: =VLOOKUP(22,年度の予定・記録!$D$9:$AJ$64,7,FALSE) ->  | CC44: =IFERROR(VLOOKUP(H44,年度の予定・記録!$H:$AN,4,FALSE),"") -> 
D45: =VLOOKUP(23,年度の予定・記録!$D$9:$AJ$64,8,FALSE) ->  | E45: =VLOOKUP(23,年度の予定・記録!$D$9:$AJ$64,31,FALSE) ->  | F45: =VLOOKUP(23,年度の予定・記録!$D$9:$AJ$64,5,FALSE) ->  | G45: =VLOOKUP(23,年度の予定・記録!$D$9:$AJ$64,7,FALSE) ->  | CC45: =IFERROR(VLOOKUP(H45,年度の予定・記録!$H:$AN,4,FALSE),"") -> 
D46: =VLOOKUP(24,年度の予定・記録!$D$9:$AJ$64,8,FALSE) ->  | E46: =VLOOKUP(24,年度の予定・記録!$D$9:$AJ$64,31,FALSE) ->  | F46: =VLOOKUP(24,年度の予定・記録!$D$9:$AJ$64,5,FALSE) ->  | G46: =VLOOKUP(24,年度の予定・記録!$D$9:$AJ$64,7,FALSE) ->  | CC46: =IFERROR(VLOOKUP(H46,年度の予定・記録!$H:$AN,4,FALSE),"") -> 
D47: =VLOOKUP(25,年度の予定・記録!$D$9:$AJ$64,8,FALSE) ->  | E47: =VLOOKUP(25,年度の予定・記録!$D$9:$AJ$64,31,FALSE) ->  | F47: =VLOOKUP(25,年度の予定・記録!$D$9:$AJ$64,5,FALSE) ->  | G47: =VLOOKUP(25,年度の予定・記録!$D$9:$AJ$64,7,FALSE) ->  | CC47: =IFERROR(VLOOKUP(H47,年度の予定・記録!$H:$AN,4,FALSE),"") -> 
D48: =VLOOKUP(26,年度の予定・記録!$D$9:$AJ$64,8,FALSE) ->  | E48: =VLOOKUP(26,年度の予定・記録!$D$9:$AJ$64,31,FALSE) ->  | F48: =VLOOKUP(26,年度の予定・記録!$D$9:$AJ$64,5,FALSE) ->  | G48: =VLOOKUP(26,年度の予定・記録!$D$9:$AJ$64,7,FALSE) ->  | CC48: =IFERROR(VLOOKUP(H48,年度の予定・記録!$H:$AN,4,FALSE),"") -> 
D49: =VLOOKUP(27,年度の予定・記録!$D$9:$AJ$64,8,FALSE) ->  | E49: =VLOOKUP(27,年度の予定・記録!$D$9:$AJ$64,31,FALSE) ->  | F49: =VLOOKUP(27,年度の予定・記録!$D$9:$AJ$64,5,FALSE) ->  | G49: =VLOOKUP(27,年度の予定・記録!$D$9:$AJ$64,7,FALSE) ->  | CC49: =IFERROR(VLOOKUP(H49,年度の予定・記録!$H:$AN,4,FALSE),"") -> 
D50: =VLOOKUP(28,年度の予定・記録!$D$9:$AJ$64,8,FALSE) ->  | E50: =VLOOKUP(28,年度の予定・記録!$D$9:$AJ$64,31,FALSE) ->  | F50: =VLOOKUP(28,年度の予定・記録!$D$9:$AJ$64,5,FALSE) ->  | G50: =VLOOKUP(28,年度の予定・記録!$D$9:$AJ$64,7,FALSE) ->  | CC50: =IFERROR(VLOOKUP(H50,年度の予定・記録!$H:$AN,4,FALSE),"") -> 
D51: =VLOOKUP(29,年度の予定・記録!$D$9:$AJ$64,8,FALSE) ->  | E51: =VLOOKUP(29,年度の予定・記録!$D$9:$AJ$64,31,FALSE) ->  | F51: =VLOOKUP(29,年度の予定・記録!$D$9:$AJ$64,5,FALSE) ->  | G51: =VLOOKUP(29,年度の予定・記録!$D$9:$AJ$64,7,FALSE) ->  | CC51: =IFERROR(VLOOKUP(H51,年度の予定・記録!$H:$AN,4,FALSE),"") -> 
D52: =VLOOKUP(30,年度の予定・記録!$D$9:$AJ$64,8,FALSE) ->  | E52: =VLOOKUP(30,年度の予定・記録!$D$9:$AJ$64,31,FALSE) ->  | F52: =VLOOKUP(30,年度の予定・記録!$D$9:$AJ$64,5,FALSE) ->  | G52: =VLOOKUP(30,年度の予定・記録!$D$9:$AJ$64,7,FALSE) ->  | CC52: =IFERROR(VLOOKUP(H52,年度の予定・記録!$H:$AN,4,FALSE),"") -> 
D53: =VLOOKUP(31,年度の予定・記録!$D$9:$AJ$64,8,FALSE) ->  | E53: =VLOOKUP(31,年度の予定・記録!$D$9:$AJ$64,31,FALSE) ->  | F53: =VLOOKUP(31,年度の予定・記録!$D$9:$AJ$64,5,FALSE) ->  | G53: =VLOOKUP(31,年度の予定・記録!$D$9:$AJ$64,7,FALSE) -> 

Sheet Sheet1
B2: =年度の予定・記録!AX1 -> 科目 | C2: =年度の予定・記録!AY1 -> 総務費 | D2: =年度の予定・記録!AZ1 -> 活動調査費 | E2: =年度の予定・記録!BA1 -> 組織活動費 | F2: =年度の予定・記録!BB1 -> 大会費 | G2: =年度の予定・記録!BC1 -> 予備費 | H2: =年度の予定・記録!BD1 -> 合計
B3: 内訳例 | C3: ・コピー用紙・文具・事務用品など ・電報・郵便・郵送代 ・弔電・香典等の慶弔対応費用 ・その他り込み手数料等の事務費 | D3: ・分会執行役員の活動調査費 ・活動に必要な新聞・書本・雑誌購入代金 | E3: 【総務費】、【活動費】、【大会費】以外 全ての活動経費 | F3: ・分会大会の開催に掛かるすべての経費 (会場借用費、飲食代等） ・大会後の懇親会等については、組織活動費として計上すること。 | G3: ・前年度繰越金、銀行利息等 ・各科目毎に予算を超えてしまった部分の充当
B4: =年度の予定・記録!AX2 -> 予算 | C4: =年度の予定・記録!AY2 -> ¥37,400 | D4: =年度の予定・記録!AZ2 -> ¥135,000 | E4: =年度の予定・記録!BA2 -> ¥198,100 | F4: =年度の予定・記録!BB2 -> ¥16,100 | G4: =年度の予定・記録!BC2 -> ¥13,618 | H4: =年度の予定・記録!BD2 -> ¥400,218
B5: =年度の予定・記録!AX3 -> 支出額 | C5: =年度の予定・記録!AY3 -> ¥0 | D5: =年度の予定・記録!AZ3 -> ¥120,000 | E5: =年度の予定・記録!BA3 -> ¥146,766 | F5: =年度の予定・記録!BB3 -> ¥12,340 | G5: =年度の予定・記録!BC3 -> ¥0 | H5: =年度の予定・記録!BD3 -> ¥279,106
B6: =年度の予定・記録!AX5 -> 収入額 | C6: =年度の予定・記録!AY5 -> ¥0 | D6: =年度の予定・記録!AZ5 -> ¥120,000 | E6: =年度の予定・記録!BA5 -> ¥146,766 | F6: =年度の予定・記録!BB5 -> ¥12,340 | G6: =年度の予定・記録!BC5 -> ¥0 | H6: =年度の予定・記録!BD5 -> ¥279,106
B7: =年度の予定・記録!AX6 -> 予算超過分 | C7: =年度の予定・記録!AY6 -> ¥0 | D7: =年度の予定・記録!AZ6 -> ¥0 | E7: =年度の予定・記録!BA6 -> ¥0 | F7: =年度の予定・記録!BB6 -> ¥0 | G7: =年度の予定・記録!BC6 -> ¥0 | H7: =年度の予定・記録!BD6 -> ¥0
B8: =年度の予定・記録!AX7 -> 使用率 | C8: =年度の予定・記録!AY7 -> 0.0% | D8: =年度の予定・記録!AZ7 -> 88.9% | E8: =年度の予定・記録!BA7 -> 74.1% | F8: =年度の予定・記録!BB7 -> 76.6% | G8: =年度の予定・記録!BC7 -> 0.0% | H8: =年度の予定・記録!BD7 -> 69.7%

Sheet 分会定期大会開催案内書 兼 委任状
B3: =TODAY() -> 2022-08-30
B4: =データリスト!F4&"分会組合員 様" -> 福島分会組合員 様
B5: ="ユアテックユニオン"&データリスト!F4&"分会" -> ユアテックユニオン福島分会
B6: ="執行委員長 "&データリスト!F13 -> 執行委員長 A
B8: ="第"&データリスト!I6&"回"&データリスト!F4&"分会"&データリスト!F21&"大会の開催について（出席要請）" -> 第59回福島分会定期大会の開催について（出席要請）
B11: 日頃よりユニオン諸活動に対しまして特段のご理解、ご協力頂き深く感謝申し上げます。
B12: =" さて、"&"第"&データリスト!I6&"回"&データリスト!F4&"分会"&データリスト!F21&"大会を下記のとおり開催いたします。つきましては、大変お忙しい" -> さて、第59回福島分会定期大会を下記のとおり開催いたします。つきましては、大変お忙しい
B13: ところ恐れ入りますが、分会大会開催にあたりまして職場組合員皆様のご出席頂けます様、お願
B14: い申し上げます。
B15: なお、大会当日、業務都合等により出席できない場合は、下記の委任状に必要事項を記入捺印
B16: のうえ、開催日の朝までに分会役員へ提出してください。
B18: 記
B20: （１）開催日時 | E20: =データリスト!F19 -> 2022-09-06T18:30:00
B21: （２）開催場所 | E21: =データリスト!I19 -> 別館会議室２F
B22: （３）上程議案 | E22: 別紙議案書のとおり
B25: 委任状
B28: =" 第"&データリスト!I6&"回"&データリスト!F4&"分会"&データリスト!F21&"大会議長 殿" -> 第59回福島分会定期大会議長 殿
B31: =" 私は、"&TEXT(データリスト!F19,"GGGE年M月D日")&"に開催される「第"&データリスト!I6&"回"&データリスト!F4&"分会"&データリスト!F21&"大会」における議事およ" -> 私は、令和4年9月6日に開催される「第59回福島分会定期大会」における議事およ
B33: びその他一切の事項に関する議決権を大会議長に委任致します。
F36: ="ユアテックユニオン"&データリスト!F4&"分会" -> ユアテックユニオン福島分会
F38: 氏名 ㊞

Sheet 分会大会議案書
L4: 分会大会議事 | V4: =データリスト!F68&"年度 活動経過報告" -> 2021年度 活動経過報告 | AM4: =データリスト!F68&"年度 会計報告" -> 2021年度 会計報告 | AY4: =データリスト!F68&"年度会計監査報告" -> 2021年度会計監査報告
B5: ="第"&データリスト!I6&"回"&" "&データリスト!F4&"分会"&" "&データリスト!F21&"大会" -> 第59回 福島分会 定期大会
L6: １． | M6: 司会者挨拶
U7: =" 私達は、"&データリスト!F68&"年度活動方針を踏まえ労働組合の目的である 「福利厚生を含めた総合的労働条件の向上を図り組合員とその家族の幸せを確実に拡大していくこと」を深く認識し、心・力を合わせ活動してきました。" -> 私達は、2021年度活動方針を踏まえ労働組合の目的である 「福利厚生を含めた総合的労働条件の向上を図り組合員とその家族の幸せを確実に拡大していくこと」を深く認識し、心・力を合わせ活動してきました。 | AQ7: =データリスト!J68 -> 44409
L8: ２． | M8: 資格審査 | AM8: 自 | AQ8: =TEXT(AQ7,"ggge年")&"8月1日" -> 令和3年8月1日
AX9: ="会計監査人は、"&データリスト!F68&"年度会計について本部分会交付金規定に基づき、"&データリスト!Q33&"の計"&データリスト!K36&"回に亘って厳正な監査を実施しました。監査の結果、出納簿・領収書・現金・預金等、確かに示されていることを認めます。" -> 会計監査人は、2021年度会計について本部分会交付金規定に基づき、の計0回に亘って厳正な監査を実施しました。監査の結果、出納簿・領収書・現金・預金等、確かに示されていることを認めます。
L10: ３． | M10: 大会成立宣言 | AM10: 至 | AQ10: =TEXT(AQ7+365,"ggge年")&"7月31日" -> 令和4年7月31日
L12: ４． | M12: 大会議長団選出 | T12: =IFERROR(VLOOKUP(1,年度の予定・記録!$B$10:$K$64,7,FALSE),"") -> 2021-09-12 | W12: =IFERROR(VLOOKUP(1,年度の予定・記録!$B$10:$K$64,10,FALSE),"") -> 第1回分会執行委員会 | AC12: =IFERROR(VLOOKUP(33,年度の予定・記録!$B$10:$K$64,7,FALSE),"") ->  | AF12: =IFERROR(VLOOKUP(33,年度の予定・記録!$B$10:$K$64,10,FALSE),"") ->  | AL12: 支出の部 | AR12: 収入の部
T13: =IFERROR(VLOOKUP(2,年度の予定・記録!$B$10:$K$64,7,FALSE),"") -> 2021-09-14 | W13: =IFERROR(VLOOKUP(2,年度の予定・記録!$B$10:$K$64,10,FALSE),"") -> 分会大会 | AC13: =IFERROR(VLOOKUP(34,年度の予定・記録!$B$10:$K$64,7,FALSE),"") ->  | AF13: =IFERROR(VLOOKUP(34,年度の予定・記録!$B$10:$K$64,10,FALSE),"") -> 
L14: ５． | M14: 議長団挨拶 | T14: =IFERROR(VLOOKUP(3,年度の予定・記録!$B$10:$K$64,7,FALSE),"") -> 2021-09-23 | W14: =IFERROR(VLOOKUP(3,年度の予定・記録!$B$10:$K$64,10,FALSE),"") -> 現場パトロール | AC14: =IFERROR(VLOOKUP(35,年度の予定・記録!$B$10:$K$64,7,FALSE),"") ->  | AF14: =IFERROR(VLOOKUP(35,年度の予定・記録!$B$10:$K$64,10,FALSE),"") ->  | AL14: 科目 | AN14: 予算額 | AP14: 実績 | AR14: 科目 | AT14: 予算額 | AV14: 実績
T15: =IFERROR(VLOOKUP(4,年度の予定・記録!$B$10:$K$64,7,FALSE),"") -> 2021-09-23 | W15: =IFERROR(VLOOKUP(4,年度の予定・記録!$B$10:$K$64,10,FALSE),"") -> 現場パトロール | AC15: =IFERROR(VLOOKUP(36,年度の予定・記録!$B$10:$K$64,7,FALSE),"") ->  | AF15: =IFERROR(VLOOKUP(36,年度の予定・記録!$B$10:$K$64,10,FALSE),"") -> 
C16: 議 案 書 | L16: 6. | M16: 大会書記任命 | T16: =IFERROR(VLOOKUP(5,年度の予定・記録!$B$10:$K$64,7,FALSE),"") -> 2021-09-23 | W16: =IFERROR(VLOOKUP(5,年度の予定・記録!$B$10:$K$64,10,FALSE),"") -> 安全衛生委員会 | AC16: =IFERROR(VLOOKUP(37,年度の予定・記録!$B$10:$K$64,7,FALSE),"") ->  | AF16: =IFERROR(VLOOKUP(37,年度の予定・記録!$B$10:$K$64,10,FALSE),"") ->  | AL16: 総務費 | AN16: =データリスト!F33 -> ¥37,400 | AP16: =SUMIF(年度の予定・記録!W10:Y64,AL16,年度の予定・記録!Y10:Y64) -> 0 | AR16: 分会交付金 | AT16: =データリスト!F26 -> ¥386,600 | AV16: =SUM(年度の予定・記録!X10:X64) -> ¥358,500
T17: =IFERROR(VLOOKUP(6,年度の予定・記録!$B$10:$K$64,7,FALSE),"") -> 2021-10-12 | W17: =IFERROR(VLOOKUP(6,年度の予定・記録!$B$10:$K$64,10,FALSE),"") -> 第2回分会執行委員会 | AC17: =IFERROR(VLOOKUP(38,年度の予定・記録!$B$10:$K$64,7,FALSE),"") ->  | AF17: =IFERROR(VLOOKUP(38,年度の予定・記録!$B$10:$K$64,10,FALSE),"") -> 
L18: ７． | M18: 分会執行委員長挨拶 | T18: =IFERROR(VLOOKUP(7,年度の予定・記録!$B$10:$K$64,7,FALSE),"") -> 2021-10-20 | W18: =IFERROR(VLOOKUP(7,年度の予定・記録!$B$10:$K$64,10,FALSE),"") -> 第1回分会集会 | AC18: =IFERROR(VLOOKUP(39,年度の予定・記録!$B$10:$K$64,7,FALSE),"") ->  | AF18: =IFERROR(VLOOKUP(39,年度の予定・記録!$B$10:$K$64,10,FALSE),"") ->  | AL18: 活動調査費 | AN18: =データリスト!G33 -> ¥135,000 | AP18: =SUMIF(年度の予定・記録!W10:Y64,AL18,年度の予定・記録!Y10:Y64) -> ¥120,000 | AR18: 申請金額 （組織活動費） | AT18: 0 | AV18: =SUMIF(年度の予定・記録!W10:Y64,"申請金額",年度の予定・記録!X10:X64) -> (¥ 170,000)
T19: =IFERROR(VLOOKUP(8,年度の予定・記録!$B$10:$K$64,7,FALSE),"") -> 2021-11-15 | W19: =IFERROR(VLOOKUP(8,年度の予定・記録!$B$10:$K$64,10,FALSE),"") -> 第3回分会執行委員会 | AC19: =IFERROR(VLOOKUP(40,年度の予定・記録!$B$10:$K$64,7,FALSE),"") ->  | AF19: =IFERROR(VLOOKUP(40,年度の予定・記録!$B$10:$K$64,10,FALSE),"") -> 
L20: ８． | M20: 来賓挨拶 | T20: =IFERROR(VLOOKUP(9,年度の予定・記録!$B$10:$K$64,7,FALSE),"") -> 2021-11-20 | W20: =IFERROR(VLOOKUP(9,年度の予定・記録!$B$10:$K$64,10,FALSE),"") -> 電力地協 代表者会議 | AC20: =IFERROR(VLOOKUP(41,年度の予定・記録!$B$10:$K$64,7,FALSE),"") ->  | AF20: =IFERROR(VLOOKUP(41,年度の予定・記録!$B$10:$K$64,10,FALSE),"") ->  | AL20: 組織活動費 | AN20: =データリスト!H33 -> ¥198,100 | AP20: =SUMIF(年度の予定・記録!W10:Y64,AL20,年度の予定・記録!Y10:Y64) -> ¥146,766 | AR20: 受取利息 | AT20: 0 | AV20: =データリスト!F28 -> ¥1
T21: =IFERROR(VLOOKUP(10,年度の予定・記録!$B$10:$K$64,7,FALSE),"") -> 2021-11-24 | W21: =IFERROR(VLOOKUP(10,年度の予定・記録!$B$10:$K$64,10,FALSE),"") -> 安全衛生委員会 | AC21: =IFERROR(VLOOKUP(42,年度の予定・記録!$B$10:$K$64,7,FALSE),"") ->  | AF21: =IFERROR(VLOOKUP(42,年度の予定・記録!$B$10:$K$64,10,FALSE),"") -> 
L22: ９． | M22: 経過報告 | T22: =IFERROR(VLOOKUP(11,年度の予定・記録!$B$10:$K$64,7,FALSE),"") -> 2021-11-24 | W22: =IFERROR(VLOOKUP(11,年度の予定・記録!$B$10:$K$64,10,FALSE),"") -> 労使協議会 | AC22: =IFERROR(VLOOKUP(43,年度の予定・記録!$B$10:$K$64,7,FALSE),"") ->  | AF22: =IFERROR(VLOOKUP(43,年度の予定・記録!$B$10:$K$64,10,FALSE),"") ->  | AL22: 申請金額 （組織活動費） | AN22: 0 | AP22: =AV18 -> ¥170,000 | AR22: 前年度繰越金 | AT22: =データリスト!I26 -> ¥13,618 | AV22: =データリスト!I26 -> ¥13,618
M23: ="（１） "&データリスト!F68&"年度活動経過報告" -> （１） 2021年度活動経過報告 | T23: =IFERROR(VLOOKUP(12,年度の予定・記録!$B$10:$K$64,7,FALSE),"") -> 2021-12-15 | W23: =IFERROR(VLOOKUP(12,年度の予定・記録!$B$10:$K$64,10,FALSE),"") -> 分会クリスマス会第1回実行委員会 | AC23: =IFERROR(VLOOKUP(44,年度の予定・記録!$B$10:$K$64,7,FALSE),"") ->  | AF23: =IFERROR(VLOOKUP(44,年度の予定・記録!$B$10:$K$64,10,FALSE),"") -> 
M24: ="（２） "&データリスト!F68&"年度会計報告" -> （２） 2021年度会計報告 | T24: =IFERROR(VLOOKUP(13,年度の予定・記録!$B$10:$K$64,7,FALSE),"") -> 2021-12-22 | W24: =IFERROR(VLOOKUP(13,年度の予定・記録!$B$10:$K$64,10,FALSE),"") -> 分会クリスマス会第2回実行委員会 | AC24: =IFERROR(VLOOKUP(45,年度の予定・記録!$B$10:$K$64,7,FALSE),"") ->  | AF24: =IFERROR(VLOOKUP(45,年度の予定・記録!$B$10:$K$64,10,FALSE),"") ->  | AL24: 大会費 | AN24: =データリスト!I33 -> ¥16,100 | AP24: =SUMIF(年度の予定・記録!W10:Y64,AL24,年度の予定・記録!Y10:Y64) -> ¥12,340
M25: ="（３） "&データリスト!F68&"年度会計監査報告" -> （３） 2021年度会計監査報告 | T25: =IFERROR(VLOOKUP(14,年度の予定・記録!$B$10:$K$64,7,FALSE),"") -> 2021-12-24 | W25: =IFERROR(VLOOKUP(14,年度の予定・記録!$B$10:$K$64,10,FALSE),"") -> 分会クリスマス会 | AC25: =IFERROR(VLOOKUP(46,年度の予定・記録!$B$10:$K$64,7,FALSE),"") ->  | AF25: =IFERROR(VLOOKUP(46,年度の予定・記録!$B$10:$K$64,10,FALSE),"") -> 
T26: =IFERROR(VLOOKUP(15,年度の予定・記録!$B$10:$K$64,7,FALSE),"") -> 2022-01-13 | W26: =IFERROR(VLOOKUP(15,年度の予定・記録!$B$10:$K$64,10,FALSE),"") -> 労使パトロール | AC26: =IFERROR(VLOOKUP(47,年度の予定・記録!$B$10:$K$64,7,FALSE),"") ->  | AF26: =IFERROR(VLOOKUP(47,年度の予定・記録!$B$10:$K$64,10,FALSE),"") ->  | AL26: 予備費 | AN26: =データリスト!I26 -> ¥13,618 | AP26: =SUMIF(年度の予定・記録!W10:Y64,AL26,年度の予定・記録!Y10:Y64) -> 0
L27: 10． | M27: 活動報告に対する質疑討論 | T27: =IFERROR(VLOOKUP(16,年度の予定・記録!$B$10:$K$64,7,FALSE),"") -> 2022-01-13 | W27: =IFERROR(VLOOKUP(16,年度の予定・記録!$B$10:$K$64,10,FALSE),"") -> 安全衛生委員会 | AC27: =IFERROR(VLOOKUP(48,年度の予定・記録!$B$10:$K$64,7,FALSE),"") ->  | AF27: =IFERROR(VLOOKUP(48,年度の予定・記録!$B$10:$K$64,10,FALSE),"") -> 
T28: =IFERROR(VLOOKUP(17,年度の予定・記録!$B$10:$K$64,7,FALSE),"") -> 2022-01-14 | W28: =IFERROR(VLOOKUP(17,年度の予定・記録!$B$10:$K$64,10,FALSE),"") -> 第4回分会執行委員会 | AC28: =IFERROR(VLOOKUP(49,年度の予定・記録!$B$10:$K$64,7,FALSE),"") ->  | AF28: =IFERROR(VLOOKUP(49,年度の予定・記録!$B$10:$K$64,10,FALSE),"") ->  | AL28: 支出計 | AN28: =SUM(AN16:AO21,AN24,AN26) -> ¥400,218 | AP28: =AP16+AP18+AP20+AP24+AP26 -> ¥279,106 | AR28: 収入計 | AT28: =SUM(AT16:AU27) -> ¥400,218 | AV28: =AV16+AV20+AV22 -> ¥372,119
L29: 11． | M29: 議 事 | T29: =IFERROR(VLOOKUP(18,年度の予定・記録!$B$10:$K$64,7,FALSE),"") -> 2022-01-16 | W29: =IFERROR(VLOOKUP(18,年度の予定・記録!$B$10:$K$64,10,FALSE),"") -> 分会委員長連絡会議 | AC29: =IFERROR(VLOOKUP(50,年度の予定・記録!$B$10:$K$64,7,FALSE),"") ->  | AF29: =IFERROR(VLOOKUP(50,年度の予定・記録!$B$10:$K$64,10,FALSE),"") -> 
M30: ="（１） 第一号議案 "&データリスト!F68+1&"年度活動方針について" -> （１） 第一号議案 2022年度活動方針について | T30: =IFERROR(VLOOKUP(19,年度の予定・記録!$B$10:$K$64,7,FALSE),"") -> 2022-02-17 | W30: =IFERROR(VLOOKUP(19,年度の予定・記録!$B$10:$K$64,10,FALSE),"") -> 分会ボウリング大会第1回実行委員会 | AC30: =IFERROR(VLOOKUP(51,年度の予定・記録!$B$10:$K$64,7,FALSE),"") ->  | AF30: =IFERROR(VLOOKUP(51,年度の予定・記録!$B$10:$K$64,10,FALSE),"") ->  | AL30: 繰越金 | AN30: 0 | AP30: =AV28-AP28 -> ¥93,013 | BA30: =TEXT(A36,"ggge年ｍ月ｄ日（aaa）") -> 令和4年9月6日(火)
M31: ="（２） 第二号議案 "&データリスト!F68&"年度収支剰余金処理について" -> （２） 第二号議案 2021年度収支剰余金処理について | T31: =IFERROR(VLOOKUP(20,年度の予定・記録!$B$10:$K$64,7,FALSE),"") -> 2022-02-27 | W31: =IFERROR(VLOOKUP(20,年度の予定・記録!$B$10:$K$64,10,FALSE),"") -> 分会ボウリング大会第2回実行委員会 | AC31: =IFERROR(VLOOKUP(52,年度の予定・記録!$B$10:$K$64,7,FALSE),"") ->  | AF31: =IFERROR(VLOOKUP(52,年度の予定・記録!$B$10:$K$64,10,FALSE),"") -> 
M32: ="（３） 第三号議案 "&データリスト!F68+1&"年度予算について" -> （３） 第三号議案 2022年度予算について | T32: =IFERROR(VLOOKUP(21,年度の予定・記録!$B$10:$K$64,7,FALSE),"") -> 2022-02-27 | W32: =IFERROR(VLOOKUP(21,年度の予定・記録!$B$10:$K$64,10,FALSE),"") -> 分会ボウリング大会 | AC32: =IFERROR(VLOOKUP(53,年度の予定・記録!$B$10:$K$64,7,FALSE),"") ->  | AF32: =IFERROR(VLOOKUP(53,年度の予定・記録!$B$10:$K$64,10,FALSE),"") ->  | AL32: 総合計 | AN32: =SUM(AN16:AO27) -> ¥400,218 | AP32: =SUM(AP28:AQ31) -> ¥372,119 | AR32: 総合計 | AT32: =SUM(AT16,AT20,AT22) -> ¥400,218 | AV32: =AV28 -> ¥372,119
M33: ="（４） 第四号議案 "&データリスト!F68+1&"年度分会役員について" -> （４） 第四号議案 2022年度分会役員について | T33: =IFERROR(VLOOKUP(22,年度の予定・記録!$B$10:$K$64,7,FALSE),"") ->  | W33: =IFERROR(VLOOKUP(22,年度の予定・記録!$B$10:$K$64,10,FALSE),"") ->  | AC33: =IFERROR(VLOOKUP(54,年度の予定・記録!$B$10:$K$64,7,FALSE),"") ->  | AF33: =IFERROR(VLOOKUP(54,年度の予定・記録!$B$10:$K$64,10,FALSE),"") ->  | AX33: ="ユアテックユニオン"&データリスト!F4&"分会" -> ユアテックユニオン福島分会
C34: 開催日時 | T34: =IFERROR(VLOOKUP(23,年度の予定・記録!$B$10:$K$64,7,FALSE),"") ->  | W34: =IFERROR(VLOOKUP(23,年度の予定・記録!$B$10:$K$64,10,FALSE),"") ->  | AC34: =IFERROR(VLOOKUP(55,年度の予定・記録!$B$10:$K$64,7,FALSE),"") ->  | AF34: =IFERROR(VLOOKUP(55,年度の予定・記録!$B$10:$K$64,10,FALSE),"") -> 
L35: 12． | M35: 議案に対する質疑応答 | T35: =IFERROR(VLOOKUP(24,年度の予定・記録!$B$10:$K$64,7,FALSE),"") ->  | W35: =IFERROR(VLOOKUP(24,年度の予定・記録!$B$10:$K$64,10,FALSE),"") ->  | AC35: =IFERROR(VLOOKUP(56,年度の予定・記録!$B$10:$K$64,7,FALSE),"") ->  | AF35: =IFERROR(VLOOKUP(56,年度の予定・記録!$B$10:$K$64,10,FALSE),"") ->  | AL35: ※ 組織活動費については、予備費(繰越金)を優先に消化し、不足した時に本部に申請用紙を届け出ます。 | AX35: ="第"&データリスト!I6&"回"&"分会"&データリスト!F21&"大会議長殿" -> 第59回分会定期大会議長殿
A36: =データリスト!F19 -> 2022-09-06T18:30:00 | T36: =IFERROR(VLOOKUP(25,年度の予定・記録!$B$10:$K$64,7,FALSE),"") ->  | W36: =IFERROR(VLOOKUP(25,年度の予定・記録!$B$10:$K$64,10,FALSE),"") ->  | AC36: =IFERROR(VLOOKUP(57,年度の予定・記録!$B$10:$K$64,7,FALSE),"") ->  | AF36: =IFERROR(VLOOKUP(57,年度の予定・記録!$B$10:$K$64,10,FALSE),"") -> 
L37: 13． | M37: 役員選出 | T37: =IFERROR(VLOOKUP(26,年度の予定・記録!$B$10:$K$64,7,FALSE),"") ->  | W37: =IFERROR(VLOOKUP(26,年度の予定・記録!$B$10:$K$64,10,FALSE),"") ->  | AC37: =IFERROR(VLOOKUP(58,年度の予定・記録!$B$10:$K$64,7,FALSE),"") ->  | AF37: =IFERROR(VLOOKUP(58,年度の予定・記録!$B$10:$K$64,10,FALSE),"") ->  | AL37: ※【支出の部】『組織活動費』については予算としては計上されますが、一律交付はされず分会で活動を
T38: =IFERROR(VLOOKUP(27,年度の予定・記録!$B$10:$K$64,7,FALSE),"") ->  | W38: =IFERROR(VLOOKUP(27,年度の予定・記録!$B$10:$K$64,10,FALSE),"") ->  | AC38: =IFERROR(VLOOKUP(59,年度の予定・記録!$B$10:$K$64,7,FALSE),"") ->  | AF38: =IFERROR(VLOOKUP(59,年度の予定・記録!$B$10:$K$64,10,FALSE),"") ->  | AL38: 計画し、予算額を申請することで交付されます。 | BA38: 分会会計監査員
L39: 14． | M39: 新旧役員挨拶 | T39: =IFERROR(VLOOKUP(28,年度の予定・記録!$B$10:$K$64,7,FALSE),"") ->  | W39: =IFERROR(VLOOKUP(28,年度の予定・記録!$B$10:$K$64,10,FALSE),"") ->  | AC39: =IFERROR(VLOOKUP(60,年度の予定・記録!$B$10:$K$64,7,FALSE),"") ->  | AF39: =IFERROR(VLOOKUP(60,年度の予定・記録!$B$10:$K$64,10,FALSE),"") -> 
A40: =データリスト!I19 -> 別館会議室２F | T40: =IFERROR(VLOOKUP(29,年度の予定・記録!$B$10:$K$64,7,FALSE),"") ->  | W40: =IFERROR(VLOOKUP(29,年度の予定・記録!$B$10:$K$64,10,FALSE),"") ->  | AC40: =IFERROR(VLOOKUP(61,年度の予定・記録!$B$10:$K$64,7,FALSE),"") ->  | AF40: =IFERROR(VLOOKUP(61,年度の予定・記録!$B$10:$K$64,10,FALSE),"") ->  | AL40: ※【収入の部】申請額については括弧内の通り。科目[分会交付金]の[実績]欄には申請額が含まれています。 | BF40: ㊞
L41: 15． | M41: 議長団解任 | T41: =IFERROR(VLOOKUP(30,年度の予定・記録!$B$10:$K$64,7,FALSE),"") ->  | W41: =IFERROR(VLOOKUP(30,年度の予定・記録!$B$10:$K$64,10,FALSE),"") ->  | AC41: =IFERROR(VLOOKUP(62,年度の予定・記録!$B$10:$K$64,7,FALSE),"") ->  | AF41: =IFERROR(VLOOKUP(62,年度の予定・記録!$B$10:$K$64,10,FALSE),"") -> 
T42: =IFERROR(VLOOKUP(31,年度の予定・記録!$B$10:$K$64,7,FALSE),"") ->  | W42: =IFERROR(VLOOKUP(31,年度の予定・記録!$B$10:$K$64,10,FALSE),"") ->  | AC42: =IFERROR(VLOOKUP(63,年度の予定・記録!$B$10:$K$64,7,FALSE),"") ->  | AF42: =IFERROR(VLOOKUP(63,年度の予定・記録!$B$10:$K$64,10,FALSE),"") -> 
L43: 16． | M43: 閉会の挨拶 | T43: =IFERROR(VLOOKUP(32,年度の予定・記録!$B$10:$K$64,7,FALSE),"") ->  | W43: =IFERROR(VLOOKUP(32,年度の予定・記録!$B$10:$K$64,10,FALSE),"") ->  | AC43: =IFERROR(VLOOKUP(64,年度の予定・記録!$B$10:$K$64,7,FALSE),"") ->  | AF43: =IFERROR(VLOOKUP(64,年度の予定・記録!$B$10:$K$64,10,FALSE),"") -> 
AL44: 【 第四号議案 】
A45: 【 第一号議案 】 | T45: 【 第二号議案 】
AL46: =データリスト!F2&"年度 執行委員" -> 2021年度 執行委員
B47: =データリスト!F2+1&"年度活動方針（案）" -> 2022年度活動方針（案） | L47: 具体的活動について | V47: =データリスト!F2&"年度収支剰余金処理" -> 2021年度収支剰余金処理 | AY47: お わ り に
B50: ～活動を進めるにあたっての基調～ | U50: =データリスト!F2&"年度会計収支剰余金" -> 2021年度会計収支剰余金 | AD50: =IF(AP30<0,0,AP30) -> ¥93,013 | AI50: を、 | AL50: =データリスト!F11 -> 分会執行委員長 | AQ50: =IF(AL50=データリスト!F11,データリスト!F13,"") -> A | AT50: =PHONETIC(データリスト!F13) -> A
L51: =データリスト!F40 -> ～生きいきとした存在感ある組織づくりをめざして～
U52: =データリスト!F2+1&"年度会計に繰入れ処理する。" -> 2022年度会計に繰入れ処理する。 | AL52: =IF(データリスト!G13="","",データリスト!G11) -> 分会執行副委員長 | AQ52: =IF(データリスト!G13="","",データリスト!G13) -> B | AT52: =IF(データリスト!G13="","",PHONETIC(データリスト!G13)) -> B | AY52: 各執行委員の努力と全組合員の
A53: =データリスト!F38 -> がんばるベア！！ | L53: =IF(データリスト!F41="","",データリスト!F41) -> ・生きいきとした存在感ある組織づくりを目指して ・頼りがいのある生活支援機能の充実を目指して ・仲間との連携活動の強化を目指して豊かでゆとりあるライフステージの実現を目指して
AL54: =データリスト!H11 -> 分会書記長 | AQ54: =データリスト!H13 -> C | AT54: =PHONETIC(データリスト!H13) -> C
T55: 【 第三号議案 】
AL56: =IF(データリスト!G13="","",データリスト!I11) -> 分会執行委員 | AQ56: =IF(データリスト!G13="","",データリスト!I13) -> D | AT56: =IF(データリスト!G13="","",PHONETIC(データリスト!I13)) -> D | AY56: あたたかい協力により、分会活動も一歩前進ができましたことを
L57: =データリスト!H40 -> ～頼りがいのある生活支援機能の充実をめざして～ | V57: =データリスト!F2+1&"年度予算（案）" -> 2022年度予算（案）
AL58: =IF(データリスト!G13="",データリスト!K11,データリスト!J11) -> 分会執行委員 | AQ58: =IF(データリスト!G13="",データリスト!K13,データリスト!J13) -> E | AT58: =IF(データリスト!G13="",PHONETIC(データリスト!K13),PHONETIC(データリスト!J13)) -> E
L59: =IF(データリスト!H41="","",データリスト!H41) -> 何としても頑張る
AL60: =IF(データリスト!G13="","",データリスト!K11) -> 分会会計監査員 | AQ60: =IF(データリスト!G13="","",データリスト!K13) -> F | AT60: =IF(データリスト!G13="","",PHONETIC(データリスト!K13)) -> F | AY60: 感謝すると共に、明るく楽しい職場作りのため、みなさんから意見
T61: 支出の部 | AC61: 収入の部
L63: =データリスト!J40 -> ～仲間との連携活動の強化をめざして～
AY64: 要望を聞き入れ、一人、一人が組合を支えているということを再確
L65: =IF(データリスト!J41="","",データリスト!J41) -> たまに息抜き | T65: 科目 | X65: 金額 | AC65: 科目 | AG65: 金額 | AL65: =データリスト!F2+1&"年度 新執行委員（案）" -> 2022年度 新執行委員（案）
T68: 総務費 | X68: =データリスト!F34 -> 0 | AC68: 分会交付金 | AG68: =データリスト!F30 -> 0 | AY68: 認していただき、なお一層のご支援をよろしくお願いいたします。
L69: =データリスト!L40 -> ～豊かでゆとりあるライフステージの実現をめざして～ | AL69: =データリスト!F11 -> 分会執行委員長 | AQ69: =IF(AL69=データリスト!F11,データリスト!F12,"") -> あ | AT69: =PHONETIC(データリスト!F12) -> ア
A71: １・友愛と信義に満ちた生きいきとした組織づくり | L71: =IF(データリスト!L41="","",データリスト!L41) -> そして頑張る | T71: 活動調査費 | X71: =データリスト!G34 -> 0 | AC71: 前年度繰越金 | AG71: =AP30 -> ¥93,013 | AL71: =IF(データリスト!G12="","",データリスト!G11) -> 分会執行副委員長 | AQ71: =IF(データリスト!G12="","",データリスト!G12) -> い | AT71: =IF(データリスト!G12="","",PHONETIC(データリスト!G12)) -> イ
AL73: =データリスト!H11 -> 分会書記長 | AQ73: =データリスト!H12 -> う | AT73: =PHONETIC(データリスト!H12) -> ウ
T74: 組織活動費 | X74: =データリスト!H34 -> 0
A75: ２・「ユアテックユニオンの進路」に基づく活動展開 | L75: =データリスト!N40 -> ～安全で健康な明るい職場の確立をめざして～ | AL75: =IF(データリスト!G12="","",データリスト!I11) -> 分会執行委員 | AQ75: =IF(データリスト!G12="","",データリスト!I12) -> え | AT75: =IF(データリスト!G12="","",PHONETIC(データリスト!I12)) -> エ
L77: =IF(データリスト!N41="","",データリスト!N41) -> さらに頑張る | T77: 大会費 | X77: =データリスト!I34 -> 0 | AL77: =IF(データリスト!G12="",データリスト!K11,データリスト!J11) -> 分会執行委員 | AQ77: =IF(データリスト!G12="",データリスト!K12,データリスト!J12) -> お | AT77: =IF(データリスト!G12="",PHONETIC(データリスト!K12),PHONETIC(データリスト!J12)) -> オ
A79: ３・人間性と効率性が調和した職場づくり | AL79: =IF(データリスト!G12="","",データリスト!K11) -> 分会会計監査員 | AQ79: =IF(データリスト!G12="","",データリスト!K12) -> か | AT79: =IF(データリスト!G12="","",PHONETIC(データリスト!K12)) -> カ
T80: 予備費 | X80: =データリスト!J34 -> ¥93,013
L81: =データリスト!P40 -> ～創造的で活力ある職場風土をめざして～
A83: ４・魅力ある産業、豊かな社会づくりへの参画 | L83: =IF(データリスト!P41="","",データリスト!P41) -> 神になる | T83: 合計 | X83: =SUM(X68:AB82) -> ¥93,013 | AC83: 合計 | AG83: =SUM(AG68:AK82) -> ¥93,013
AL85: ＊ 分会規約第28条および第31条により、職場委員の指名は分会執行委員が行なう。
X86: =SUM(X68:AB79) -> ¥0

Sheet 議長議事進行メモ
B1: ="第"&データリスト!I6&"回"&データリスト!F4&"分会 "&データリスト!F21&"大会議事進行メモ①" -> 第59回福島分会 定期大会議事進行メモ①
B2: １．司会者挨拶 | D2: =データリスト!F24 -> 花見 | F2: 御集りの皆様、御苦労様です。
F3: 本日は、お忙しい中お集りいただき、大変ありがとうございます。
F4: ="本日の司会進行をさせていただきます、"&データリスト!F24&"でございます。" -> 本日の司会進行をさせていただきます、花見でございます。
F5: どうぞよろしくお願いします。
F6: ="さっそくではありますが、只今より第"&データリスト!I6&"回"&データリスト!F4&"分会"&データリスト!F21&"大会を開催いたします。" -> さっそくではありますが、只今より第59回福島分会定期大会を開催いたします。
B8: ２．資格審査 | D8: =データリスト!F24 -> 花見 | F8: これより資格審査を行います、資格審査員の方よろしくお願いします。
D9: =データリスト!G24 -> 冨塚 | F9: ="資格審査員の"&データリスト!G24&"です。" -> 資格審査員の冨塚です。
F10: =データリスト!F4&"分会の組合員数は今日現在 "&データリスト!I4&"名であり、" -> 福島分会の組合員数は今日現在 37名であり、
B11: ＊当日の人数を確認して報告 | F11: 本日出席を確認した組合員数は 名、委任状提出者は 名となっております。
B13: ３．大会成立宣言 | D13: =データリスト!H24 -> 冨塚 | F13: ただ今の報告により、分会規約第１０条の委任出席を含め分会組合員数の３分の２以上の出席の要件を満たしておりますので、大会が成立していることを宣言いたします。
B15: ４．大会議長団選出 | D15: =データリスト!F24 -> 花見 | F15: それではこれより、大会議長の選出に入りたいと思いますが、議長については、腹案がありますので、発表し承認していただきたいと思いますが、ご異議ございませんか？
D16: 会場 | F16: （異議無しの声)
D17: =データリスト!F24 -> 花見 | F17: ="それでは大会議長に、"&データリスト!I24&"さんにお願いしたいと思います。" -> それでは大会議長に、佐藤さんにお願いしたいと思います。
F18: =データリスト!I24&"さん、御登壇お願います。" -> 佐藤さん、御登壇お願います。
D19: =データリスト!I24 -> 佐藤 | F19: （議長席へ移動 議長席の脇で起立のまま待機）
D20: =データリスト!F24 -> 花見 | F20: 大会議長が決定しましたので、これ以降の議事進行については議長にお願いします。ご協力有難うございました。
F21: （司会席へ移動、着席）
B23: ５．議長団挨拶 | D23: =データリスト!I24 -> 佐藤 | F23: ="ただ今、本大会の議長に選任されました、"&データリスト!I24&"でございます。" -> ただ今、本大会の議長に選任されました、佐藤でございます。
F24: 大変不慣れではございますが、スムーズな議事進行に努めて行きたいと思いますので、皆様のご協力を宜しくお願いします。
F25: （一礼後、議長席へ着席）
B27: ６．大会書記任命 | D27: =データリスト!I24 -> 佐藤 | F27: それでは、これより大会書記を任命いたします。氏名を発表し、ご承認を得たいと思いますが、異議ございませんか？
D28: 会場 | F28: （異議無しの声)
D29: =データリスト!I24 -> 佐藤 | F29: 有難うございます。
F30: ="それでは、氏名を発表いたします。"&データリスト!J24&"さん、よろしくお願いします。" -> それでは、氏名を発表いたします。元内さん、よろしくお願いします。
D31: =データリスト!J24 -> 元内 | F31: （その場で起立・一礼・着席）
B33: ７．分会執行委員長挨拶 | D33: =データリスト!I24 -> 佐藤 | F33: それでは、ここで、分会執行部代表の挨拶を受けたいと思います。
F34: =データリスト!F13&"委員長、よろしくお願いいたします。" -> A委員長、よろしくお願いいたします。
D35: =データリスト!F13 -> A | F35: =" （"&データリスト!F13&"委員長あいさつ）" -> （A委員長あいさつ）
D36: =データリスト!I24 -> 佐藤 | F36: 有難うございました。
B37: ="第"&データリスト!I6&"回"&データリスト!F4&"分会 "&データリスト!F21&"大会議事進行メモ②" -> 第59回福島分会 定期大会議事進行メモ②
B38: ８．来賓挨拶 | F38: ★ 来賓者 なし | M38: ★ 来賓者 有り
F39: 祝電 なし | I39: 祝電 あり | M39: 続きまして、来賓より御挨拶頂きたいと思います。 ○○におかれましては、お忙しい中、我々の分会大会においで頂きありがとうございます。 それでは、○○をご紹介し挨拶を頂きたいと思います。 よろしくお願い致します。 （○○あいさつ終了・着席後） ○○、大変ありがとうございました。
B40: 来賓者名簿 ＊退席の有無 | D40: =データリスト!I24 -> 佐藤 | F40: 次第8番の来賓挨拶ですが、多忙の為来られないとの事なので、次第9番の経過報告に移ります。 | I40: 次第8番の来賓挨拶ですが、多忙の為来られないとの事なので、祝電を頂戴してますので読み上げます。 （祝電代読） 次第９番へ移行
B41: =データリスト!K24 -> 神 本部常任執行役員
B42: =データリスト!L24 -> 樋口 本部常任執行役員
B43: =データリスト!M24 -> 猪狩 福島支部委員長
M46: １名の場合 | Q46: ２名以上の場合
M47: 本日はお忙しい中、○○においては、おいで頂き大変ありがとうございました。 | Q47: 続きまして、○○よろしくお願いします。 （○○あいさつ終了・着席後） ○○、大変ありがとうございました。 ＊繰り返す
M53: 来賓の退席
M54: なし | P54: あり（全員） | S54: あり（一部）
M55: ○○に置かれましては、このまま大会に参加して頂きます。 | P55: それではここで、来賓が退席されますので、感謝の意をこめて拍手でお送りしたいと思います。会場の皆様、宜しくお願いします。 （拍手・来賓退席後） ありがとうございました。 | S55: それではここで、来賓が退席されますので、感謝の意をこめて拍手でお送りしたいと思います。会場の皆様、宜しくお願いします。 （拍手・来賓退席後） ありがとうございました。 ○○に置かれましては、このまま大会に参加して頂きます。
M66: 祝電
M67: なし | Q67: あり
M68: 次第９番へ移行 | Q68: ここで、祝電を頂戴してますので読み上げます。 （祝電代読） 次第９番へ移行
B73: ="第"&データリスト!I6&"回"&データリスト!F4&"分会 "&データリスト!F21&"大会議事進行メモ③" -> 第59回福島分会 定期大会議事進行メモ③
B74: ９．経過報告 | D74: =データリスト!I24 -> 佐藤 | F74: それでは、経過報告に入ります。
F75: =データリスト!F2&"年度、分会活動経過報告・会計報告・会計監査報告を、執行部に一括報告して頂きます。" -> 2021年度、分会活動経過報告・会計報告・会計監査報告を、執行部に一括報告して頂きます。
F76: それでは、執行部お願いします。
D77: =データリスト!N24 -> 篤志 | F77: （分会活動経過報告）
D78: =データリスト!O24 -> 篤志 | F78: （会計報告）
D79: =データリスト!P24 -> 柏原 | F79: （会計監査報告）
B81: 10．活動報告に対する質疑討論 | D81: =$D$74 -> 佐藤 | F81: それでは、経過報告に対する審議を行いたいと思います。
F82: =データリスト!F2&"年度、分会活動経過報告・会計報告・会計監査報告について、質問・意見のある方、挙手にてどうぞ。" -> 2021年度、分会活動経過報告・会計報告・会計監査報告について、質問・意見のある方、挙手にてどうぞ。
D83: =$D$81 -> 佐藤 | F83: （会場を確認）
F85: ★ 挙手している人 なし | N85: ★ 挙手している人 あり
F86: それでは、審議は尽くされたものと判断しますので採決に入ります。 | N86: （挙手している人を指名）
F87: =データリスト!F2&"年度、活動経過報告・会計報告・会計監査報告について" -> 2021年度、活動経過報告・会計報告・会計監査報告について | N87: ありがとうございました。
F88: 承認される方は挙手願います。 | N88: 関連の質問・意見はありませんか？
F89: （会場の確認）
F90: ありがとうございました。 | N90: 関連 なし | R90: 関連 あり
F91: 賛成多数で承認されました。 | N91: 今の質問・意見に対し | R91: （挙手している人を指名）
F92: 再度の拍手でご確認ください。 | N92: 執行部の答弁をお願いします | R92: ありがとうございました。
R93: 他、関連の質問・意見はありませんか？
R94: ＊繰り返す
R95: 今の質問・意見に対し
R96: 執行部の答弁をお願いします。
N98: 今の答弁で了解頂けましたで しょうか？
N99: （会場の確認）
N100: 今の質問・意見の他にありませんか？
N101: （会場の確認）
N102: ＊繰り返す
N104: それでは、審議は尽くされたものと判断しますので採決に入ります。
N105: =$F$87 -> 2021年度、活動経過報告・会計報告・会計監査報告について
N106: 承認される方は挙手願います。
N107: （会場の確認）
N108: ありがとうございました。
N109: 賛成多数で承認されました。
N110: 再度の拍手でご確認ください。
B112: ="第"&データリスト!I6&"回"&データリスト!F4&"分会 "&データリスト!F21&"大会議事進行メモ④" -> 第59回福島分会 定期大会議事進行メモ④
B113: 11．議事 | D113: =$D$83 -> 佐藤 | F113: それではこれより、次第１１番の議事に入ります。
F114: ="第一号議案 "&データリスト!F68+1&"年度活動方針" -> 第一号議案 2022年度活動方針
F115: ="第二号議案 "&データリスト!F68&"年度収支剰余金処理" -> 第二号議案 2021年度収支剰余金処理
F116: ="第三号議案 "&データリスト!F68+1&"年度予算" -> 第三号議案 2022年度予算
F117: について、執行部より一括して提案願います。
D118: =データリスト!Q24 -> 篤志 | F118: ="("&F114&")" -> (第一号議案 2022年度活動方針)
D119: =データリスト!R24 -> 篤志 | F119: ="("&F115&")" -> (第二号議案 2021年度収支剰余金処理)
D120: =データリスト!S24 -> 篤志 | F120: (第三号議案 2022年度予算)
B122: 12．議案に対する質疑応答 | D122: =$D$113 -> 佐藤 | F122: それでは、議案に対する一括審議を行いたいと思います。
F123: 第１号議案から第３号議案について、質問・意見のある方どうぞ。
F124: （会場を確認）
F126: ★ 挙手している人 なし | N126: ★ 挙手している人 あり
F127: それでは、審議は尽くされたものと判断しますので採決に入ります。 | N127: （挙手している人を指名）
F128: 第１号議案から第３号議案について、承認される方は挙手願います。 | N128: ありがとうございました。
F129: （会場の確認） | N129: 関連の質問・意見はありませんか？
F130: ありがとうございました。
F131: 賛成多数で承認されました。 | N131: 関連 なし | R131: 関連 あり
F132: 再度の拍手でご確認ください。 | N132: 今の質問・意見に対し | R132: （挙手している人を指名）
N133: 執行部の答弁をお願いします | R133: ありがとうございました。
R134: 他、関連の質問・意見はありませんか？
R135: ＊繰り返す
R136: 今の質問・意見に対し
R137: 執行部の答弁をお願いします。
N139: 今の答弁で了解頂けましたで しょうか？
N140: （会場の確認）
N141: 今の質問・意見の他にありませんか？
N142: （会場の確認）
N143: ＊繰り返す
N145: それでは、審議は尽くされたものと判断しますので採決に入ります。
N146: 第１号議案から第３号議案について、承認される方は挙手願います。
N147: （会場の確認）
N148: ありがとうございました。
N149: 賛成多数で承認されました。
N150: 再度の拍手でご確認ください。
B152: ="第"&データリスト!I6&"回"&データリスト!F4&"分会 "&データリスト!F21&"大会議事進行メモ⑤" -> 第59回福島分会 定期大会議事進行メモ⑤
B153: 13．役員選出 | D153: =$D$122 -> 佐藤 | F153: ="続きまして、第４号議案"&データリスト!F2+1&"年度役員選出に入ります。" -> 続きまして、第４号議案2022年度役員選出に入ります。
F154: ="分会役員については、"&データリスト!I9&"告示を行い、"&データリスト!J9&"立候補者を締切、"&データリスト!K9&"公示を行った結果、記載の方々が無投票当選いたしました。" -> 分会役員については、2021年8月6日告示を行い、2021年8月16日立候補者を締切、2021年8月19日公示を行った結果、記載の方々が無投票当選いたしました。
F155: 全員の拍手で確認をお願いいたします。
D156: 会場 | F156: （拍手）
D157: =$D$153 -> 佐藤 | F157: 続きまして、新役員を紹介しますので、呼ばれましたら演壇の前に整列してください。
F158: =分会大会議案書!AL69&" "&分会大会議案書!AQ69&" "&分会大会議案書!AT69 -> 分会執行委員長 あ ア
F159: =分会大会議案書!AL71&" "&分会大会議案書!AQ71&" "&分会大会議案書!AT71 -> 分会執行副委員長 い イ
F160: =分会大会議案書!AL73&" "&分会大会議案書!AQ73&" "&分会大会議案書!AT73 -> 分会書記長 う ウ
F161: =分会大会議案書!AL75&" "&分会大会議案書!AQ75&" "&分会大会議案書!AT75 -> 分会執行委員 え エ
F162: =分会大会議案書!AL77&" "&分会大会議案書!AQ77&" "&分会大会議案書!AT77 -> 分会執行委員 お オ
F163: =分会大会議案書!AL79&" "&分会大会議案書!AQ79&" "&分会大会議案書!AT79 -> 分会会計監査員 か カ
B165: 14．新旧役員挨拶 | D165: =$D$157 -> 佐藤 | F165: ="それでは新役員を代表し"&データリスト!F12&"委員長より挨拶を頂きます。" -> それでは新役員を代表しあ委員長より挨拶を頂きます。
F166: =データリスト!F12&"委員長よろしくお願いします。" -> あ委員長よろしくお願いします。
D167: =データリスト!F12 -> あ | F167: （委員長挨拶）
D168: =$D$165 -> 佐藤 | F168: ありがとうございました｡
F169: 自席へお戻りください。
F170: （役員着席後）
B172: 15．議長団解任 | D172: =$D$168 -> 佐藤 | F172: （起立）
F173: 以上をもちまして、用意された議事については、全て終了しました。
F174: これで大会書記を解任とさせていただきます。
D175: =データリスト!J24 -> 元内 | F175: （その場で起立・一礼）
D176: =$D$172 -> 佐藤 | F176: 大会議長を解任に移ります。スムーズな議事進行へのご協力ありがとうございました。
F177: （一礼・自席へ着席）
B179: 16．閉会の挨拶 | D179: =データリスト!F24 -> 花見 | F179: =データリスト!I24&"さん、"&データリスト!J24&"さん、ありがとうございました。" -> 佐藤さん、元内さん、ありがとうございました。
F180: 大会議長ならびに大会書記に対して全員の拍手で、その労をねぎらいたいと思います。
F181: 皆さん宜しくお願いします。
D182: 会場 | F182: （拍手）
D183: =$D$179 -> 花見 | F183: ありがとうございました。
F184: ="長時間に渡り大変お疲れ様でした。これを持ちまして、"&"第"&データリスト!I6&"回"&データリスト!F4&"分会"&データリスト!F21&"大会を閉会いたします。" -> 長時間に渡り大変お疲れ様でした。これを持ちまして、第59回福島分会定期大会を閉会いたします。
B186: ＊その他連絡事項 | D186: =$D$183 -> 花見 | F186: 今後の日程につきまして、執行部より事務連絡があればお願いします。
D187: =データリスト!F12 -> あ | F187: （連絡事項があれば伝達）
D188: =$D$187 -> あ | F188: 以上で、本日の日程は終了です。
F189: 長い間、大変お疲れさまでした。
F190: （解散）
